Workbook

Sheet AIX-MARSEILLE
A3: Etablissement | B3: NB Chb | C3: Dispo (resp. SC) (%) | D3: Dispo (toutes resp) (%) | E3: LatMax (ms) | F3: BPMin (Mb/s) | G3: BPMoy (Mb/s) | H3: BPMin 19h-23h (Mb/s) | I3: BPMoy 19h-23h (Mb/s) | J3: Nb de Chb fibrées | K3: Nb de Chb en cours de fibrage
A4: CROUS AIX-MARSEILLE | B4: =SUM(B8:B54) -> 10373 | C4: =SUMPRODUCT(B8:B54,C8:C54)/SUM(B8:B54) -> 99.92301456 | D4: =SUMPRODUCT(B8:B54,D8:D54)/SUM(B8:B54) -> 99.7866837 | E4: =SUMPRODUCT(B8:B54,E8:E54)/SUM(B8:B54) -> 17.80902343 | F4: =SUMPRODUCT(B8:B54,F8:F54)/SUM(B8:B54) -> 163.050535 | G4: =SUMPRODUCT(B8:B54,G8:G54)/SUM(B8:B54) -> 198.0868601 | H4: =SUMPRODUCT(B8:B54,H8:H54)/SUM(B8:B54) -> 145.577374 | I4: =SUMPRODUCT(B8:B54,I8:I54)/SUM(B8:B54) -> 175.0045214 | J4: =SUMIFS(B8:B54,K8:K54,"=Fibre") -> 10037 | K4: =SUMIFS(B8:B54,K8:K54,"=Fibrage en cours") -> 0
J5: =J4/B4 -> 0.9676082136 | K5: =K4/B4 -> 0
A7: Résidence | B7: NB Chb | C7: Dispo (resp. SC) (%) | D7: Dispo (toutes resp) (%) | E7: LatMax (ms) | F7: BPMin (Mb/s) | G7: BPMoy (Mb/s) | H7: BPMin 19h-23h (Mb/s) | I7: BPMoy 19h-23h (Mb/s) | J7: Hors GTR | K7: Collecte | L7: Type de service | M7: Remarques
A8: Canada | B8: 98 | C8: 100 | D8: 99.96 | E8: 19 | F8: 73.9 | G8: 88.1 | H8: 63.7 | I8: 78 | J8: 0 | K8: Fibre | L8: SmartCampus | M8: Le 14/06/21 / responsabilité SmartCampus / Site injoignable / durée : 0.0 heure(s) : Site injoignable / service Wifirst totalement indisponible Diagnostic : Les équipements Wifirst sont injoignables ou les services Wifirst ne sont plus opérationnels Périmètre : l’ensemble du site Impact : Service interrompu Résultat : Action(s) réalisée(s) : Commentaire :
A9: Chabran | B9: 53 | C9: 100 | D9: 100 | E9: 19 | F9: 80.7 | G9: 87.1 | H9: 75.6 | I9: 83.8 | J9: 0 | K9: Fibre | L9: SmartCampus
A10: Chatenoud 1 et 2 | B10: 237 | C10: 100 | D10: 100 | E10: 17 | F10: 136.3 | G10: 173.5 | H10: 114.4 | I10: 149.4 | J10: 0 | K10: Fibre | L10: SmartCampus
A11: Chatenoud 3 | B11: 133 | C11: 100 | D11: 100 | E11: 19 | F11: 112.2 | G11: 128.5 | H11: 102 | I11: 119.3 | J11: 0 | K11: Fibre | L11: SmartCampus
A12: Chatenoud Studios SC | B12: 240 | C12: 100 | D12: 100 | E12: 20 | F12: 162.9 | G12: 186.3 | H12: 156.1 | I12: 169.7 | J12: 0 | K12: Fibre | L12: SmartCampus
A13: Cité Arc de Meyran | B13: 409 | C13: 100 | D13: 99.98 | E13: 16 | F13: 253.6 | G13: 313.3 | H13: 220.8 | I13: 271.7 | J13: 0 | K13: Fibre | L13: SmartCampus | M13: Le 09/06/21 / responsabilité SmartCampus / Site injoignable / durée : 0.0 heure(s) : Site injoignable Diagnostic : aucun équipement n'est joignable sur le site Périmètre de l'incident : l'ensemble du site. Impact de l'incident : coupure du service Le site a-t-il été informé? non Alerte Kiwi "#21449028" ouverte le 09/06/2021 à 19:24 Ouverture de l'incident suite à une réouverture de l'alerte Last Seen à 09/06/2021 à 19:32 Résultat : Le service est rétabli sur le site Cité Arc de Meyran suite à la prise en charge de l'incident par nos équipes.
A14: Cité des Gazelles - Pav1 Pav2 Pav3 Pav4 | B14: 300 | C14: 100 | D14: 100 | E14: 13 | F14: 172.6 | G14: 209.3 | H14: 165.9 | I14: 187.4 | J14: 0 | K14: Fibre | L14: SmartCampus
A15: Cité des Gazelles - Pav5 Pav6 | B15: 351 | C15: 100 | D15: 100 | E15: 16 | F15: 204 | G15: 252.1 | H15: 180 | I15: 220.3 | J15: 0 | K15: Fibre | L15: SmartCampus
A16: Cité des Gazelles - Pav7 Pav8 | B16: 401 | C16: 100 | D16: 100 | E16: 18 | F16: 281.8 | G16: 300 | H16: 275 | I16: 289.3 | J16: 0 | K16: Fibre | L16: SmartCampus
A17: Cité Internationale de Cuques | B17: 387 | C17: 100 | D17: 100 | E17: 11 | F17: 127.7 | G17: 193.4 | H17: 84 | I17: 146.6 | J17: 0 | K17: Fibre | L17: SmartCampus
A18: Cuques P1 | B18: 322 | C18: 100 | D18: 100 | E18: 14 | F18: 153.7 | G18: 196.5 | H18: 130.8 | I18: 171.8 | J18: 0 | K18: Fibre | L18: SmartCampus
A19: Cuques P2 | B19: 338 | C19: 100 | D19: 99.96 | E19: 14 | F19: 177.2 | G19: 214.7 | H19: 160.9 | I19: 190.8 | J19: 0 | K19: Fibre | L19: SmartCampus | M19: Le 19/06/21 / responsabilité SmartCampus / Site injoignable / durée : 0.0 heure(s) : Site injoignable Diagnostic : aucun équipement n'est joignable sur le site Périmètre de l'incident : l'ensemble du site. Impact de l'incident : coupure du service Le site a-t-il été informé? non Alerte Kiwi "#21449515" ouverte le 19/06/2021 à 13:38 Résultat : Le service est rétabli sur le site Cuques suite à la prise en charge de l'incident par nos équipes.
A20: Cuques P3 | B20: 319 | C20: 100 | D20: 100 | E20: 14 | F20: 139.2 | G20: 156.3 | H20: 132.6 | I20: 147.8 | J20: 0 | K20: Fibre | L20: SmartCampus
A21: Cuques P4 | B21: 321 | C21: 100 | D21: 100 | E21: 14 | F21: 143 | G21: 159.5 | H21: 138 | I21: 152.9 | J21: 0 | K21: Fibre | L21: SmartCampus
A22: Delormes | B22: 595 | C22: 100 | D22: 100 | E22: 15 | F22: 357 | G22: 454.5 | H22: 305.6 | I22: 382.9 | J22: 0 | K22: Fibre | L22: PlanetCampus
A23: Dos Felibre | B23: 200 | C23: 100 | D23: 100 | E23: 22 | F23: 105.7 | G23: 152.8 | H23: 88.5 | I23: 124.8 | J23: 0 | K23: Fibre | L23: PlanetCampus
A24: Estelan bat G & F | B24: 499 | C24: 100 | D24: 100 | E24: 17 | F24: 284.3 | G24: 330.2 | H24: 276.3 | I24: 300.2 | J24: 0 | K24: Fibre | L24: SmartCampus
A25: Estelan Les Abeilles | B25: 71 | C25: 100 | D25: 100 | E25: 15 | F25: 49.9 | G25: 71.4 | H25: 42 | I25: 58 | J25: 0 | K25: Fibre | L25: SmartCampus
A26: Fenouillères | B26: 100 | C26: 100 | D26: 100 | E26: 37 | F26: 58.6 | G26: 78.9 | H26: 51.3 | I26: 68.2 | J26: 0 | K26: Fibre | L26: SmartCampus
A27: Galinat | B27: 312 | C27: 100 | D27: 99.49 | E27: 18 | F27: 227.5 | G27: 230.8 | H27: 225.7 | I27: 229.9 | J27: 0 | K27: Fibre | L27: SmartCampus | M27: Le 10/06/21 / responsabilité SmartCampus / Site injoignable / durée : 2.0 heure(s) : Site injoignable Diagnostic : aucun équipement n'est joignable sur le site Périmètre de l'incident : l'ensemble du site. Impact de l'incident : coupure du service Le site a-t-il été informé? non Alerte Kiwi "#21449115" ouverte le 10/06/2021 à 12:58 Résultat : Le service est rétabli sur le site Galinat suite à la prise en charge de l'incident par nos équipes. Le 14/06/21 / responsabilité SmartCampus / Site injoignable / durée : 0.0 heure(s) : Site injoignable / service Wifirst totalement indisponible Diagnostic : Les équipements Wifirst sont injoignables ou les services Wifirst ne sont plus opérationnels Périmètre : l’ensemble du site Impact : Service interrompu Résultat : Action(s) réalisée(s) : Commentaire : Le 14/06/21 / responsabilité SmartCampus / Site injoignable / durée : 0.0 heure(s) : Site injoignable Diagnostic : aucun équipement n'est joignable sur le site Périmètre de l'incident : l'ensemble du site. Impact de l'incident : coupure du service Le site a-t-il été informé? non Alerte Kiwi "#21449245" ouverte le 14/06/2021 à 11:48 Résultat : Le service est rétabli sur le site Galinat suite à la prise en charge de l'incident par nos équipes.
A28: Gaston Berger | B28: 396 | C28: 100 | D28: 100 | E28: 13 | F28: 162.5 | G28: 222 | H28: 130 | I28: 179.2 | J28: 0 | K28: Fibre | L28: SmartCampus
A29: Jean Zay (Agroparc) | B29: 170 | C29: 100 | D29: 100 | E29: 17 | F29: 149.9 | G29: 169 | H29: 143.5 | I29: 158.1 | J29: 0 | K29: Fibre | L29: SmartCampus
A30: La Cité Cornil (A) et la Résidence (Cornil 2) | B30: 523 | C30: 99.17 | D30: 98.51 | E30: 20 | F30: 257.9 | G30: 321.6 | H30: 217.8 | I30: 275.7 | J30: 2 | K30: Fibre | L30: SmartCampus | M30: Le 15/06/21 / responsabilité SmartCampus / Site injoignable / durée : 4.0 heure(s) : Site injoignable Diagnostic : aucun équipement n'est joignable sur le site Périmètre de l'incident : l'ensemble du site. Impact de l'incident : coupure du service Le site a-t-il été informé? non Alerte Kiwi "#21449304" ouverte le 15/06/2021 à 11:12 Résultat : Le service est rétabli sur le site Cornil suite à la prise en charge de l'incident par nos équipes. Le 15/06/21 / responsabilité SmartCampus / Site injoignable / durée : 5.0 heure(s) : Site injoignable / service Wifirst totalement indisponible Diagnostic : Les équipements Wifirst sont injoignables ou les services Wifirst ne sont plus opérationnels Périmètre : l’ensemble du site Impact : Service interrompu Résultat : sites de nouveaux joignables
A31: La Cité Cornil B C D E F G | B31: 272 | C31: 99.17 | D31: 98.51 | E31: 15 | F31: 152 | G31: 182.3 | H31: 135 | I31: 160.8 | J31: 2 | K31: Fibre | L31: SmartCampus | M31: Le 15/06/21 / responsabilité SmartCampus / Site injoignable / durée : 4.0 heure(s) : Site injoignable Diagnostic : aucun équipement n'est joignable sur le site Périmètre de l'incident : l'ensemble du site. Impact de l'incident : coupure du service Le site a-t-il été informé? non Alerte Kiwi "#21449305" ouverte le 15/06/2021 à 11:14 Résultat : Le service est rétabli sur le site Cornil suite à la prise en charge de l'incident par nos équipes. Le 15/06/21 / responsabilité SmartCampus / Site injoignable / durée : 5.0 heure(s) : Site injoignable / service Wifirst totalement indisponible Diagnostic : Les équipements Wifirst sont injoignables ou les services Wifirst ne sont plus opérationnels Périmètre : l’ensemble du site Impact : Service interrompu Résultat : sites de nouveaux joignables
A32: La Garidelle | B32: 77 | C32: 100 | D32: 100 | E32: 12 | F32: 78.6 | G32: 86.6 | H32: 73.6 | I32: 81.9 | J32: 0 | K32: Fibre | L32: SmartCampus
A33: La Miroiterie Avignonaise | B33: 111 | C33: 100 | D33: 100 | E33: 19 | F33: 97.8 | G33: 104.1 | H33: 94.7 | I33: 101.2 | J33: 0 | K33: Fibre | L33: SmartCampus
A34: La Verdiere | B34: 204 | C34: 99.32 | D34: 99.32 | E34: 14 | F34: 145.7 | G34: 167.8 | H34: 129.9 | I34: 153.3 | J34: 1 | K34: Fibre | L34: SmartCampus | M34: Le 02/06/21 / responsabilité SmartCampus / Site injoignable / durée : 4.0 heure(s) : Site injoignable / service Wifirst totalement indisponible Diagnostic : Les équipements Wifirst sont injoignables ou les services Wifirst ne sont plus opérationnels Périmètre : l’ensemble du site Impact : Service interrompu Résultat : Action(s) réalisée(s) :ticket opérateur Commentaire :le service est rétabli suite au changement de notre RAD sur site.
A35: Laugier | B35: 80 | C35: 100 | D35: 99.26 | E35: 29 | F35: 81 | G35: 87.1 | H35: 76.2 | I35: 84.4 | J35: 0 | K35: Fibre | L35: SmartCampus | M35: Le 14/06/21 / responsabilité SmartCampus / Site injoignable / durée : 3.0 heure(s) : Site injoignable Diagnostic : aucun équipement n'est joignable sur le site Périmètre de l'incident : l'ensemble du site. Impact de l'incident : coupure du service Le site a-t-il été informé? non Alerte Kiwi "#21449233" ouverte le 14/06/2021 à 09:04 Résultat : Le service est rétabli sur le site Laugier suite à la prise en charge de l'incident par nos équipes. Le 15/06/21 / responsabilité SmartCampus / Site injoignable / durée : 1.0 heure(s) : Site injoignable Diagnostic : aucun équipement n'est joignable sur le site Périmètre de l'incident : l'ensemble du site. Impact de l'incident : coupure du service Le site a-t-il été informé? non Alerte Kiwi "#21449291" ouverte le 15/06/2021 à 08:56 Résultat : Coupure volontaire du client durant toute la semaine
A36: Les balustres | B36: 126 | C36: 100 | D36: 100 | E36: 32 | F36: 5.6 | G36: 5.6 | H36: 5.6 | I36: 5.6 | J36: 0 | K36: ADSL | L36: SmartCampus
A37: Li passeroun 12 | B37: 21 | C37: 100 | D37: 100 | E37: 58 | F37: 2.8 | G37: 4.7 | H37: 3 | I37: 4.7 | J37: 0 | K37: ADSL | L37: SmartCampus
A38: Li passeroun 13 | B38: 27 | C38: 100 | D38: 99.98 | E38: 34 | F38: 5.7 | G38: 8.2 | H38: 2.1 | I38: 7.7 | J38: 0 | K38: ADSL | L38: SmartCampus | M38: Le 09/06/21 / responsabilité SmartCampus / Site injoignable / durée : 0.0 heure(s) : Site injoignable Diagnostic : aucun équipement n'est joignable sur le site Périmètre de l'incident : l'ensemble du site. Impact de l'incident : coupure du service Le site a-t-il été informé? non Alerte Kiwi "#21449029" ouverte le 09/06/2021 à 19:24 Ouverture de l'incident suite à une réouverture de l'alerte Last Seen à 09/06/2021 à 19:32 Résultat : Le service est rétabli sur le site Li passeroun suite à la prise en charge de l'incident par nos équipes.
A39: Li passeroun 14, 15, 16 | B39: 81 | C39: 100 | D39: 100 | E39: 56 | F39: 5.3 | G39: 5.3 | H39: 4.9 | I39: 5.3 | J39: 0 | K39: ADSL | L39: SmartCampus
A40: Li passeroun 6, 7, 8 | B40: 81 | C40: 100 | D40: 100 | E40: 66 | F40: 3.4 | G40: 4.8 | H40: 3 | I40: 4.4 | J40: 0 | K40: ADSL | L40: SmartCampus
A41: Luminy bat A | B41: 315 | C41: 100 | D41: 99.69 | E41: 13 | F41: 35.1 | G41: 65.6 | H41: 14.6 | I41: 44.7 | J41: 0 | K41: Fibre | L41: SmartCampus | M41: Le 21/06/21 / responsabilité SmartCampus / Site injoignable / durée : 1.0 heure(s) : Site injoignable Diagnostic : aucun équipement n'est joignable sur le site Périmètre de l'incident : l'ensemble du site. Impact de l'incident : coupure du service Le site a-t-il été informé? non Alerte Kiwi "#21449581" ouverte le 21/06/2021 à 10:40 Résultat : Le service est rétabli sur le site Luminy suite à la prise en charge de l'incident par nos équipes. Le 21/06/21 / responsabilité SmartCampus / Site injoignable / durée : 1.0 heure(s) : Site injoignable Diagnostic : aucun équipement n'est joignable sur le site Périmètre de l'incident : l'ensemble du site. Impact de l'incident : coupure du service Le site a-t-il été informé? non Alerte Kiwi "#21449583" ouverte le 21/06/2021 à 10:40 Résultat : Le service est rétabli sur le site Luminy suite à la prise en charge de l'incident par nos équipes.
A42: Luminy bat B | B42: 181 | C42: 100 | D42: 99.85 | E42: 13 | F42: 47.9 | G42: 60.9 | H42: 33.6 | I42: 52.1 | J42: 0 | K42: Fibre | L42: SmartCampus | M42: Le 21/06/21 / responsabilité SmartCampus / Site injoignable / durée : 1.0 heure(s) : Site injoignable Diagnostic : aucun équipement n'est joignable sur le site Périmètre de l'incident : l'ensemble du site. Impact de l'incident : coupure du service Le site a-t-il été informé? non Alerte Kiwi "#21449581" ouverte le 21/06/2021 à 10:40 Résultat : Le service est rétabli sur le site Luminy suite à la prise en charge de l'incident par nos équipes.
A43: Luminy bat C | B43: 321 | C43: 100 | D43: 99.7 | E43: 13 | F43: 81.2 | G43: 87.5 | H43: 76.9 | I43: 85.4 | J43: 0 | K43: Fibre | L43: SmartCampus | M43: Le 21/06/21 / responsabilité SmartCampus / Site injoignable / durée : 1.0 heure(s) : Site injoignable Diagnostic : aucun équipement n'est joignable sur le site Périmètre de l'incident : l'ensemble du site. Impact de l'incident : coupure du service Le site a-t-il été informé? non Alerte Kiwi "#21449581" ouverte le 21/06/2021 à 10:40 Résultat : Le service est rétabli sur le site Luminy suite à la prise en charge de l'incident par nos équipes. Le 21/06/21 / responsabilité SmartCampus / Site injoignable / durée : 1.0 heure(s) : Site injoignable Diagnostic : aucun équipement n'est joignable sur le site Périmètre de l'incident : l'ensemble du site. Impact de l'incident : coupure du service Le site a-t-il été informé? non Alerte Kiwi "#21449586" ouverte le 21/06/2021 à 10:42 Résultat : Le service est rétabli sur le site Luminy suite à la prise en charge de l'incident par nos équipes.
A44: Luminy bat D | B44: 136 | C44: 100 | D44: 98.9 | E44: 16 | F44: 44.9 | G44: 65.3 | H44: 36.4 | I44: 52 | J44: 1 | K44: Fibre | L44: SmartCampus | M44: Le 21/06/21 / responsabilité SmartCampus / Site injoignable / durée : 1.0 heure(s) : Site injoignable Diagnostic : aucun équipement n'est joignable sur le site Périmètre de l'incident : l'ensemble du site. Impact de l'incident : coupure du service Le site a-t-il été informé? non Alerte Kiwi "#21449581" ouverte le 21/06/2021 à 10:40 Résultat : Le service est rétabli sur le site Luminy suite à la prise en charge de l'incident par nos équipes. Le 21/06/21 / responsabilité SmartCampus / Site injoignable / durée : 1.0 heure(s) : Site injoignable Diagnostic : aucun équipement n'est joignable sur le site Périmètre de l'incident : l'ensemble du site. Impact de l'incident : coupure du service Le site a-t-il été informé? non Alerte Kiwi "#21449584" ouverte le 21/06/2021 à 10:42 Résultat : Le service est rétabli sur le site Luminy suite à la prise en charge de l'incident par nos équipes. Le 21/06/21 / responsabilité SmartCampus / Site injoignable / durée : 5.0 heure(s) : Site injoignable Diagnostic : aucun équipement n'est joignable sur le site Périmètre de l'incident : l'ensemble du site. Impact de l'incident : coupure du service Le site a-t-il été informé? non Alerte Kiwi "#21449604" ouverte le 21/06/2021 à 14:06 Résultat : Action(s) réalisée(s) : Le switch est remonté une fois l'alimentation rétabli Commentaire : Des ravaux avait lieu sur le site et l'alimentation avait été coupé.
A45: Luminy bat E | B45: 211 | C45: 100 | D45: 99.48 | E45: 15 | F45: 103.2 | G45: 114.3 | H45: 101.1 | I45: 111.3 | J45: 0 | K45: Fibre | L45: SmartCampus | M45: Le 21/06/21 / responsabilité SmartCampus / Site injoignable / durée : 1.0 heure(s) : Site injoignable Diagnostic : aucun équipement n'est joignable sur le site Périmètre de l'incident : l'ensemble du site. Impact de l'incident : coupure du service Le site a-t-il été informé? non Alerte Kiwi "#21449581" ouverte le 21/06/2021 à 10:40 Résultat : Le service est rétabli sur le site Luminy suite à la prise en charge de l'incident par nos équipes. Le 21/06/21 / responsabilité SmartCampus / Site injoignable / durée : 1.0 heure(s) : Site injoignable Diagnostic : aucun équipement n'est joignable sur le site Périmètre de l'incident : l'ensemble du site. Impact de l'incident : coupure du service Le site a-t-il été informé? non Alerte Kiwi "#21449582" ouverte le 21/06/2021 à 10:40 Résultat : Le service est rétabli sur le site Luminy suite à la prise en charge de l'incident par nos équipes. Le 21/06/21 / responsabilité SmartCampus / Site injoignable / durée : 1.0 heure(s) : Site injoignable Diagnostic : aucun équipement n'est joignable sur le site Périmètre de l'incident : l'ensemble du site. Impact de l'incident : coupure du service Le site a-t-il été informé? non Alerte Kiwi "#21449605" ouverte le 21/06/2021 à 14:08 Résultat : Le service est rétabli sur le site Luminy suite à la prise en charge de l'incident par nos équipes.
A46: Luminy bat F | B46: 208 | C46: 100 | D46: 99.49 | E46: 15 | F46: 42.6 | G46: 88.7 | H46: 15.7 | I46: 69.6 | J46: 0 | K46: Fibre | L46: SmartCampus | M46: Le 21/06/21 / responsabilité SmartCampus / Site injoignable / durée : 1.0 heure(s) : Site injoignable Diagnostic : aucun équipement n'est joignable sur le site Périmètre de l'incident : l'ensemble du site. Impact de l'incident : coupure du service Le site a-t-il été informé? non Alerte Kiwi "#21449581" ouverte le 21/06/2021 à 10:40 Résultat : Le service est rétabli sur le site Luminy suite à la prise en charge de l'incident par nos équipes. Le 21/06/21 / responsabilité SmartCampus / Site injoignable / durée : 1.0 heure(s) : Site injoignable Diagnostic : aucun équipement n'est joignable sur le site Périmètre de l'incident : l'ensemble du site. Impact de l'incident : coupure du service Le site a-t-il été informé? non Alerte Kiwi "#21449585" ouverte le 21/06/2021 à 10:42 Résultat : Le service est rétabli sur le site Luminy suite à la prise en charge de l'incident par nos équipes. Le 21/06/21 / responsabilité SmartCampus / Site injoignable / durée : 1.0 heure(s) : Site injoignable Diagnostic : aucun équipement n'est joignable sur le site Périmètre de l'incident : l'ensemble du site. Impact de l'incident : coupure du service Le site a-t-il été informé? non Alerte Kiwi "#21449607" ouverte le 21/06/2021 à 14:08 Résultat : Le service est rétabli sur le site Luminy suite à la prise en charge de l'incident par nos équipes.
A47: Madagascar | B47: 137 | C47: 100 | D47: 100 | E47: 13 | F47: 73.8 | G47: 105.1 | H47: 60.8 | I47: 83.3 | J47: 0 | K47: Fibre | L47: SmartCampus
A48: Résidence Averroes | B48: 120 | C48: 100 | D48: 99.99 | E48: 15 | F48: 159.2 | G48: 172.4 | H48: 153.8 | I48: 164.9 | J48: 0 | K48: Fibre | L48: SmartCampus | M48: Le 24/06/21 / responsabilité SmartCampus / Site injoignable / durée : 0.0 heure(s) : Site injoignable / service Wifirst totalement indisponible Diagnostic : Les équipements Wifirst sont injoignables ou les services Wifirst ne sont plus opérationnels Périmètre : l’ensemble du site Impact : Service interrompu Résultat : site à nouveau joignable
A49: RESIDENCE PAULIANE | B49: 300 | C49: 100 | D49: 100 | E49: 12 | F49: 211.2 | G49: 232.4 | H49: 196.3 | I49: 218.6 | J49: 0 | K49: Fibre | L49: PlanetCampus
A50: Rocher des Doms | B50: 53 | C50: 100 | D50: 100 | E50: 16 | F50: 73.4 | G50: 84.2 | H50: 65.3 | I50: 77.6 | J50: 0 | K50: Fibre | L50: SmartCampus
A51: Sainte Baume | B51: 217 | C51: 100 | D51: 99.96 | E51: 67 | F51: 126.9 | G51: 147.7 | H51: 122.1 | I51: 133.4 | J51: 0 | K51: Fibre | L51: SmartCampus | M51: Le 14/06/21 / responsabilité SmartCampus / Site injoignable / durée : 0.0 heure(s) : Site injoignable / service Wifirst totalement indisponible Diagnostic : Les équipements Wifirst sont injoignables ou les services Wifirst ne sont plus opérationnels Périmètre : l’ensemble du site Impact : Service interrompu Résultat : Action(s) réalisée(s) : Commentaire :
A52: Studio Luminy | B52: 157 | C52: 100 | D52: 99.7 | E52: 13 | F52: 41.7 | G52: 69.8 | H52: 37.2 | I52: 51.8 | J52: 0 | K52: Fibre | L52: SmartCampus | M52: Le 21/06/21 / responsabilité SmartCampus / Site injoignable / durée : 1.0 heure(s) : Site injoignable Diagnostic : aucun équipement n'est joignable sur le site Périmètre de l'incident : l'ensemble du site. Impact de l'incident : coupure du service Le site a-t-il été informé? non Alerte Kiwi "#21449581" ouverte le 21/06/2021 à 10:40 Résultat : Le service est rétabli sur le site Luminy suite à la prise en charge de l'incident par nos équipes. Le 21/06/21 / responsabilité SmartCampus / Site injoignable / durée : 1.0 heure(s) : Site injoignable Diagnostic : aucun équipement n'est joignable sur le site Périmètre de l'incident : l'ensemble du site. Impact de l'incident : coupure du service Le site a-t-il été informé? non Alerte Kiwi "#21449587" ouverte le 21/06/2021 à 10:42 Résultat : Le service est rétabli sur le site Studio Luminy suite à la prise en charge de l'incident par nos équipes.
A53: Studios Arc de meyran | B53: 137 | C53: 100 | D53: 100 | E53: 13 | F53: 90.6 | G53: 109.3 | H53: 82.8 | I53: 96.8 | J53: 0 | K53: Fibre | L53: SmartCampus
A54: Sylvabelle | B54: 25 | C54: 100 | D54: 99.94 | E54: 11 | F54: 86.8 | G54: 89.1 | H54: 85.3 | I54: 88.2 | J54: 0 | K54: Fibre | L54: SmartCampus | M54: Le 23/06/21 / responsabilité SmartCampus / Site injoignable / durée : 0.0 heure(s) : Site injoignable Diagnostic : aucun équipement n'est joignable sur le site Périmètre de l'incident : l'ensemble du site. Impact de l'incident : coupure du service Le site a-t-il été informé? non Alerte Kiwi "#21449728" ouverte le 23/06/2021 à 10:42 Résultat : Le service est rétabli sur le site Sylvabelle suite à la prise en charge de l'incident par nos équipes. Le 23/06/21 / responsabilité SmartCampus / Site injoignable / durée : 0.0 heure(s) : Site injoignable Diagnostic : aucun équipement n'est joignable sur le site Périmètre de l'incident : l'ensemble du site. Impact de l'incident : coupure du service Le site a-t-il été informé? non Alerte Kiwi "#21449737" ouverte le 23/06/2021 à 12:34 Ouverture de l'incident suite à une réouverture de l'alerte Last Seen à 23/06/2021 à 12:42 Résultat : Le service est rétabli sur le site Sylvabelle suite à la prise en charge de l'incident par nos équipes.

Sheet AMIENS
A3: Etablissement | B3: NB Chb | C3: Dispo (resp. SC) (%) | D3: Dispo (toutes resp) (%) | E3: LatMax (ms) | F3: BPMin (Mb/s) | G3: BPMoy (Mb/s) | H3: BPMin 19h-23h (Mb/s) | I3: BPMoy 19h-23h (Mb/s) | J3: Nb de Chb fibrées | K3: Nb de Chb en cours de fibrage
A4: CROUS AMIENS | B4: =SUM(B8:B20) -> 1959 | C4: =SUMPRODUCT(B8:B20,C8:C20)/SUM(B8:B20) -> 100 | D4: =SUMPRODUCT(B8:B20,D8:D20)/SUM(B8:B20) -> 99.93054109 | E4: =SUMPRODUCT(B8:B20,E8:E20)/SUM(B8:B20) -> 13.5237366 | F4: =SUMPRODUCT(B8:B20,F8:F20)/SUM(B8:B20) -> 166.5140378 | G4: =SUMPRODUCT(B8:B20,G8:G20)/SUM(B8:B20) -> 193.9804492 | H4: =SUMPRODUCT(B8:B20,H8:H20)/SUM(B8:B20) -> 150.5685554 | I4: =SUMPRODUCT(B8:B20,I8:I20)/SUM(B8:B20) -> 175.5853497 | J4: =SUMIFS(B8:B20,K8:K20,"=Fibre") -> 1783 | K4: =SUMIFS(B8:B20,K8:K20,"=Fibrage en cours") -> 0
J5: =J4/B4 -> 0.910158244 | K5: =K4/B4 -> 0
A7: Résidence | B7: NB Chb | C7: Dispo (resp. SC) (%) | D7: Dispo (toutes resp) (%) | E7: LatMax (ms) | F7: BPMin (Mb/s) | G7: BPMoy (Mb/s) | H7: BPMin 19h-23h (Mb/s) | I7: BPMoy 19h-23h (Mb/s) | J7: Hors GTR | K7: Collecte | L7: Type de service | M7: Remarques
A8: Bailly B | B8: 214 | C8: 100 | D8: 100 | E8: 9 | F8: 123.5 | G8: 150.3 | H8: 108.9 | I8: 134.9 | J8: 0 | K8: Fibre | L8: SmartCampus
A9: Bailly C et D | B9: 283 | C9: 100 | D9: 100 | E9: 8 | F9: 116.1 | G9: 162.7 | H9: 84.4 | I9: 131.8 | J9: 0 | K9: Fibre | L9: PlanetCampus
A10: Castillon | B10: 294 | C10: 100 | D10: 100 | E10: 7 | F10: 557.1 | G10: 596.2 | H10: 538.7 | I10: 568.7 | J10: 0 | K10: Fibre | L10: PlanetCampus
A11: Charles de Gaulle | B11: 93 | C11: 100 | D11: 100 | E11: 9 | F11: 57.4 | G11: 75.5 | H11: 46.2 | I11: 65.9 | J11: 0 | K11: Fibre | L11: PlanetCampus
A12: Creil | B12: 97 | C12: 100 | D12: 100 | E12: 20 | F12: 44.7 | G12: 70.9 | H12: 31.9 | I12: 53.4 | J12: 0 | K12: Fibre | L12: PlanetCampus
A13: DELOUARD | B13: 106 | C13: 100 | D13: 100 | E13: 9 | F13: 81 | G13: 99 | H13: 73.5 | I13: 87.9 | J13: 0 | K13: Fibre | L13: PlanetCampus
A14: Friant | B14: 90 | C14: 100 | D14: 100 | E14: 49 | F14: 4.8 | G14: 6.1 | H14: 4.5 | I14: 5.3 | J14: 0 | K14: ADSL | L14: SmartCampus
A15: Friant 2 | B15: 86 | C15: 100 | D15: 100 | E15: 47 | F15: 5.4 | G15: 5.6 | H15: 5.2 | I15: 5.5 | J15: 0 | K15: ADSL | L15: SmartCampus
A16: Hotoie | B16: 140 | C16: 100 | D16: 100 | E16: 9 | F16: 79.3 | G16: 103.1 | H16: 67.6 | I16: 87.7 | J16: 0 | K16: Fibre | L16: PlanetCampus
A17: Kennedy | B17: 99 | C17: 100 | D17: 99.62 | E17: 7 | F17: 59.2 | G17: 79.2 | H17: 47.3 | I17: 66.2 | J17: 0 | K17: Fibre | L17: PlanetCampus | M17: Le 10/06/21 / responsabilité SmartCampus / Site injoignable / durée : 1.0 heure(s) : Site injoignable Diagnostic : aucun équipement n'est joignable sur le site Périmètre de l'incident : l'ensemble du site. Impact de l'incident : coupure du service Le site a-t-il été informé? non Alerte Kiwi "#21449100" ouverte le 10/06/2021 à 08:56 Résultat : Le service est rétabli sur le site Kennedy suite à la prise en charge de l'incident par nos équipes. Le 10/06/21 / responsabilité SmartCampus / Site injoignable / durée : 1.0 heure(s) : Site injoignable Diagnostic : aucun équipement n'est joignable sur le site Périmètre de l'incident : l'ensemble du site. Impact de l'incident : coupure du service Le site a-t-il été informé? non Alerte Kiwi "#21449116" ouverte le 10/06/2021 à 13:00 Résultat : Le service est rétabli sur le site Kennedy suite à la prise en charge de l'incident par nos équipes.
A18: Résidence St Firmin | B18: 55 | C18: 100 | D18: 98.21 | E18: 7 | F18: 265.6 | G18: 268.8 | H18: 263.6 | I18: 267.6 | J18: 2 | K18: Fibre | L18: PlanetCampus | M18: Le 07/06/21 / responsabilité SmartCampus / Site injoignable / durée : 7.0 heure(s) : Site injoignable Diagnostic : aucun équipement n'est joignable sur le site Périmètre de l'incident : l'ensemble du site. Impact de l'incident : coupure du service Le site a-t-il été informé? non Alerte Kiwi "#21448866" ouverte le 07/06/2021 à 10:22 Résultat : Le service est rétabli sur le site Résidence St Firmin suite à la prise en charge de l'incident par nos équipes. Le 30/06/21 / responsabilité SmartCampus / Site injoignable / durée : 5.0 heure(s) : Site injoignable Diagnostic : aucun équipement n'est joignable sur le site Périmètre de l'incident : l'ensemble du site. Impact de l'incident : coupure du service Le site a-t-il été informé? non Alerte Kiwi "#21450018" ouverte le 30/06/2021 à 08:38 Résultat : Le service est rétabli sur le site Résidence St Firmin suite à la prise en charge de l'incident par nos équipes.
A19: Saint Leu | B19: 114 | C19: 100 | D19: 100 | E19: 30 | F19: 65.3 | G19: 86 | H19: 60.3 | I19: 72.1 | J19: 0 | K19: Fibre | L19: PlanetCampus
A20: Thil | B20: 288 | C20: 100 | D20: 100 | E20: 8 | F20: 156.1 | G20: 188.3 | H20: 131.4 | I20: 164.1 | J20: 0 | K20: Fibre | L20: PlanetCampus

Sheet BORDEAUX
A3: Etablissement | B3: NB Chb | C3: Dispo (resp. SC) (%) | D3: Dispo (toutes resp) (%) | E3: LatMax (ms) | F3: BPMin (Mb/s) | G3: BPMoy (Mb/s) | H3: BPMin 19h-23h (Mb/s) | I3: BPMoy 19h-23h (Mb/s) | J3: Nb de Chb fibrées | K3: Nb de Chb en cours de fibrage
A4: CROUS BORDEAUX | B4: =SUM(B8:B62) -> 9149 | C4: =SUMPRODUCT(B8:B62,C8:C62)/SUM(B8:B62) -> 99.9459318 | D4: =SUMPRODUCT(B8:B62,D8:D62)/SUM(B8:B62) -> 99.88184064 | E4: =SUMPRODUCT(B8:B62,E8:E62)/SUM(B8:B62) -> 12.11061318 | F4: =SUMPRODUCT(B8:B62,F8:F62)/SUM(B8:B62) -> 184.4699639 | G4: =SUMPRODUCT(B8:B62,G8:G62)/SUM(B8:B62) -> 227.979812 | H4: =SUMPRODUCT(B8:B62,H8:H62)/SUM(B8:B62) -> 165.0201006 | I4: =SUMPRODUCT(B8:B62,I8:I62)/SUM(B8:B62) -> 198.2222975 | J4: =SUMIFS(B8:B62,K8:K62,"=Fibre") -> 9113 | K4: =SUMIFS(B8:B62,K8:K62,"=Fibrage en cours") -> 0
J5: =J4/B4 -> 0.9960651437 | K5: =K4/B4 -> 0
A7: Résidence | B7: NB Chb | C7: Dispo (resp. SC) (%) | D7: Dispo (toutes resp) (%) | E7: LatMax (ms) | F7: BPMin (Mb/s) | G7: BPMoy (Mb/s) | H7: BPMin 19h-23h (Mb/s) | I7: BPMoy 19h-23h (Mb/s) | J7: Hors GTR | K7: Collecte | L7: Type de service | M7: Remarques
A8: Andre Malraux | B8: 80 | C8: 100 | D8: 100 | E8: 28 | F8: 77 | G8: 83.6 | H8: 74.7 | I8: 80.3 | J8: 0 | K8: Fibre | L8: PlanetCampus
A9: Arancette | B9: 156 | C9: 100 | D9: 100 | E9: 17 | F9: 94.5 | G9: 142.8 | H9: 81.8 | I9: 108.3 | J9: 0 | K9: Fibre | L9: PlanetCampus
A10: Ausone | B10: 120 | C10: 100 | D10: 100 | E10: 9 | F10: 30.1 | G10: 34 | H10: 30.1 | I10: 32.6 | J10: 0 | K10: Fibre | L10: PlanetCampus
A11: Budos | B11: 231 | C11: 100 | D11: 100 | E11: 15 | F11: 95.9 | G11: 142.3 | H11: 79 | I11: 112.4 | J11: 0 | K11: Fibre | L11: PlanetCampus
A12: Carreire | B12: 52 | C12: 100 | D12: 100 | E12: 23 | F12: 53.7 | G12: 67.7 | H12: 48.4 | I12: 61.5 | J12: 0 | K12: Fibre | L12: PlanetCampus
A13: Caserne Bosquet | B13: 76 | C13: 100 | D13: 100 | E13: 31 | F13: 70.2 | G13: 80 | H13: 62.7 | I13: 74.7 | J13: 0 | K13: Fibre | L13: PlanetCampus
A14: Clairefontaine Bat A | B14: 88 | C14: 100 | D14: 100 | E14: 19 | F14: 68.8 | G14: 83.2 | H14: 63.2 | I14: 76.3 | J14: 0 | K14: Fibre | L14: SmartCampus
A15: Clairefontaine Bat B C | B15: 88 | C15: 100 | D15: 100 | E15: 22 | F15: 116.7 | G15: 134.3 | H15: 102.2 | I15: 123.9 | J15: 0 | K15: Fibre | L15: SmartCampus
A16: Clairefontaine bat E-D | B16: 100 | C16: 100 | D16: 100 | E16: 17 | F16: 81.3 | G16: 93 | H16: 69.3 | I16: 86 | J16: 0 | K16: Fibre | L16: PlanetCampus
A17: Clé de Sol | B17: 102 | C17: 99.34 | D17: 99.34 | E17: 19 | F17: 64.8 | G17: 79.1 | H17: 56.4 | I17: 69.8 | J17: 1 | K17: Fibre | L17: SmartCampus | M17: Le 17/06/21 / responsabilité SmartCampus / fr-FR, incident.typology.primary_wan_unavailable / durée : 4.0 heure(s) : WAN principal indisponible mais backup fonctionnel Diagnostic : L'accès WAN principal n'est plus fonctionnel mais l'accès WAN de backup a pris le relai Périmètre : Tout le site Impact : Aucun Résultat : Action(s) réalisée(s) : correction d'un défaut sur la route optique de votre client Commentaire : fibre cassée dans une boîte
A18: Clé des Champs | B18: 180 | C18: 100 | D18: 100 | E18: 15 | F18: 848.4 | G18: 877.9 | H18: 835.4 | I18: 861.1 | J18: 0 | K18: Fibre | L18: SmartCampus
A19: Coeur de Bastide | B19: 234 | C19: 100 | D19: 100 | E19: 19 | F19: 126.7 | G19: 189.7 | H19: 98.3 | I19: 141 | J19: 0 | K19: Fibre | L19: PlanetCampus
A20: Condorcet | B20: 116 | C20: 100 | D20: 100 | E20: 9 | F20: 71.5 | G20: 100.9 | H20: 62.6 | I20: 84.7 | J20: 0 | K20: Fibre | L20: PlanetCampus
A21: Emile Durkheim | B21: 320 | C21: 100 | D21: 100 | E21: 9 | F21: 68 | G21: 96.2 | H21: 55.8 | I21: 74.4 | J21: 0 | K21: Fibre | L21: PlanetCampus
A22: Ernest Gabard | B22: 204 | C22: 100 | D22: 100 | E22: 20 | F22: 814 | G22: 860.9 | H22: 799.9 | I22: 833.9 | J22: 0 | K22: Fibre | L22: SmartCampus
A23: Eugene Goyheneche | B23: 80 | C23: 100 | D23: 100 | E23: 17 | F23: 48.3 | G23: 77.3 | H23: 35.7 | I23: 61.2 | J23: 0 | K23: Fibre | L23: PlanetCampus
A24: Francois Mauriac | B24: 270 | C24: 100 | D24: 100 | E24: 9 | F24: 86.6 | G24: 125.8 | H24: 76.2 | I24: 98 | J24: 0 | K24: Fibre | L24: PlanetCampus
A25: Galilée | B25: 182 | C25: 100 | D25: 100 | E25: 8 | F25: 34.3 | G25: 49.7 | H25: 28.7 | I25: 38.9 | J25: 0 | K25: Fibre | L25: PlanetCampus
A26: Gaston Phoebus | B26: 535 | C26: 100 | D26: 100 | E26: 14 | F26: 175.7 | G26: 275.3 | H26: 119.2 | I26: 204.8 | J26: 0 | K26: Fibre | L26: SmartCampus
A27: Josephine Baker (Nouveau V4) | B27: 402 | C27: 100 | D27: 99.7 | E27: 9 | F27: 101.1 | G27: 199.9 | H27: 71.3 | I27: 141.1 | J27: 0 | K27: Fibre | L27: SmartCampus | M27: Le 16/06/21 / responsabilité SmartCampus / Site injoignable / durée : 2.0 heure(s) : Site injoignable Diagnostic : aucun équipement n'est joignable sur le site Périmètre de l'incident : l'ensemble du site. Impact de l'incident : coupure du service Le site a-t-il été informé? non Alerte Kiwi "#21449380" ouverte le 16/06/2021 à 22:48 Résultat : Le service est rétabli sur le site Josephine Baker (Nouveau V4) suite à la prise en charge de l'incident par nos équipes.
A28: La Boetie | B28: 131 | C28: 100 | D28: 100 | E28: 8 | F28: 73.1 | G28: 103.7 | H28: 55.9 | I28: 86.6 | J28: 0 | K28: Fibre | L28: PlanetCampus
A29: La Cressonniere | B29: 80 | C29: 100 | D29: 100 | E29: 25 | F29: 69.7 | G29: 80.3 | H29: 64.6 | I29: 74.9 | J29: 0 | K29: Fibre | L29: PlanetCampus
A30: La Marne | B30: 161 | C30: 100 | D30: 100 | E30: 9 | F30: 126.2 | G30: 156.8 | H30: 114.7 | I30: 134.5 | J30: 0 | K30: Fibre | L30: SmartCampus
A31: La Victoire | B31: 84 | C31: 100 | D31: 100 | E31: 9 | F31: 19.2 | G31: 46.3 | H31: 8.7 | I31: 27.2 | J31: 0 | K31: Fibre | L31: PlanetCampus
A32: Le General | B32: 27 | C32: 100 | D32: 100 | E32: 10 | F32: 71.3 | G32: 84.6 | H32: 67.9 | I32: 79 | J32: 0 | K32: Fibre | L32: PlanetCampus
A33: Le Musee | B33: 23 | C33: 100 | D33: 100 | E33: 11 | F33: 49.1 | G33: 50 | H33: 47.6 | I33: 49.7 | J33: 0 | K33: Fibre | L33: SmartCampus
A34: Le Patio - Perigueux | B34: 23 | C34: 100 | D34: 100 | E34: 11 | F34: 80.9 | G34: 87.5 | H34: 76.2 | I34: 84.9 | J34: 0 | K34: Fibre | L34: PlanetCampus
A35: Le Théleme | B35: 149 | C35: 100 | D35: 100 | E35: 15 | F35: 406.5 | G35: 430.8 | H35: 392.5 | I35: 415.4 | J35: 0 | K35: Fibre | L35: SmartCampus
A36: Le Velum Calmette bat A | B36: 36 | C36: 100 | D36: 100 | E36: 37 | F36: 5.2 | G36: 5.5 | H36: 5 | I36: 5.4 | J36: 0 | K36: ADSL | L36: SmartCampus
A37: Le Velum Guerin bat B | B37: 42 | C37: 100 | D37: 100 | E37: 30 | F37: 82 | G37: 84.1 | H37: 81.4 | I37: 83.5 | J37: 0 | K37: Fibre | L37: SmartCampus
A38: Léo Drouyn - Bordeaux | B38: 8 | C38: 100 | D38: 100 | E38: 9 | F38: 40.8 | G38: 41.3 | H38: 40.7 | I38: 41.2 | J38: 0 | K38: Fibre | L38: PlanetCampus
A39: Les Erables | B39: 36 | C39: 100 | D39: 100 | E39: 15 | F39: 74.6 | G39: 85.3 | H39: 70.4 | I39: 79.1 | J39: 0 | K39: Fibre | L39: SmartCampus
A40: Les Grandes Arcades | B40: 86 | C40: 100 | D40: 100 | E40: 14 | F40: 71.4 | G40: 82.7 | H40: 68.2 | I40: 76 | J40: 0 | K40: Fibre | L40: PlanetCampus
A41: Les Lumières | B41: 254 | C41: 100 | D41: 99.71 | E41: 8 | F41: 53.9 | G41: 76 | H41: 45 | I41: 64.4 | J41: 0 | K41: Fibre | L41: PlanetCampus | M41: Le 16/06/21 / responsabilité SmartCampus / Site injoignable / durée : 2.0 heure(s) : Site injoignable Diagnostic : aucun équipement n'est joignable sur le site Périmètre de l'incident : l'ensemble du site. Impact de l'incident : coupure du service Le site a-t-il été informé? non Alerte Kiwi "#21449379" ouverte le 16/06/2021 à 22:48 Résultat : Le service est rétabli sur le site Les Lumières suite à la prise en charge de l'incident par nos équipes.
A42: Les Tanneries | B42: 73 | C42: 100 | D42: 100 | E42: 22 | F42: 65.4 | G42: 75.3 | H42: 62.1 | I42: 69.9 | J42: 0 | K42: Fibre | L42: PlanetCampus
A43: Maison des Etudiants - Bordeaux | B43: 61 | C43: 100 | D43: 100 | E43: 10 | F43: 50.2 | G43: 65.8 | H43: 42.8 | I43: 56.7 | J43: 0 | K43: Fibre | L43: PlanetCampus
A44: Maison des Scientifiques | B44: 150 | C44: 100 | D44: 100 | E44: 8 | F44: 41.5 | G44: 53.2 | H44: 35.9 | I44: 46.9 | J44: 0 | K44: Fibre | L44: PlanetCampus
A45: Michel de Montaigne | B45: 61 | C45: 100 | D45: 100 | E45: 9 | F45: 51.1 | G45: 65.8 | H45: 45.5 | I45: 54.7 | J45: 0 | K45: Fibre | L45: PlanetCampus
A46: Michel Serres | B46: 101 | C46: 100 | D46: 100 | E46: 9 | F46: 256.8 | G46: 270.7 | H46: 248.2 | I46: 261.8 | J46: 0 | K46: Fibre | L46: PlanetCampus
A47: Montesquieu - Pessac | B47: 204 | C47: 100 | D47: 99.16 | E47: 9 | F47: 41.2 | G47: 65.1 | H47: 29.9 | I47: 52.3 | J47: 1 | K47: Fibre | L47: SmartCampus | M47: Le 04/06/21 / responsabilité SmartCampus / Site injoignable / durée : 6.0 heure(s) : Site injoignable Diagnostic : aucun équipement n'est joignable sur le site Périmètre de l'incident : l'ensemble du site. Impact de l'incident : coupure du service Le site a-t-il été informé? non Alerte Kiwi "#21448787" ouverte le 04/06/2021 à 10:02 Résultat : Action(s) réalisée(s) : Commentaire :
A48: Pierre Bidart | B48: 78 | C48: 100 | D48: 100 | E48: 17 | F48: 50.7 | G48: 77.5 | H48: 30.2 | I48: 61.2 | J48: 0 | K48: Fibre | L48: PlanetCampus
A49: Pierre et Marie Curie | B49: 321 | C49: 100 | D49: 100 | E49: 9 | F49: 115 | G49: 149.5 | H49: 100.4 | I49: 121.4 | J49: 0 | K49: Fibre | L49: PlanetCampus
A50: Pierre Gilles de Gennes - Bordeaux | B50: 150 | C50: 100 | D50: 99.94 | E50: 11 | F50: 50.2 | G50: 75.9 | H50: 46 | I50: 60.6 | J50: 0 | K50: Fibre | L50: SmartCampus | M50: Le 18/06/21 / responsabilité SmartCampus / Site injoignable / durée : 0.0 heure(s) : Site injoignable Diagnostic : aucun équipement n'est joignable sur le site Périmètre de l'incident : l'ensemble du site. Impact de l'incident : coupure du service Le site a-t-il été informé? non Alerte Kiwi "#21449470" ouverte le 18/06/2021 à 10:28 Résultat : Le service est rétabli sur le site Pierre Gilles de Gennes - Bordeaux suite à la prise en charge de l'incident par nos équipes.
A51: Résidence Francis Jammes | B51: 214 | C51: 100 | D51: 100 | E51: 15 | F51: 119.7 | G51: 145.4 | H51: 109.1 | I51: 128.4 | J51: 0 | K51: Fibre | L51: SmartCampus
A52: Résidence Jean Anouilh | B52: 18 | C52: 100 | D52: 100 | E52: 9 | F52: 59.7 | G52: 64 | H52: 61.2 | I52: 64.2 | J52: 0 | K52: Fibre | L52: SmartCampus
A53: Résidence Kattalin Aguirre (Bâtiment C, Ilôt Bovero) | B53: 51 | C53: 100 | D53: 100 | E53: 18 | F53: 72.2 | G53: 83.6 | H53: 65.3 | I53: 77.1 | J53: 0 | K53: Fibre | L53: SmartCampus
A54: Roland Barthes | B54: 76 | C54: 100 | D54: 100 | E54: 18 | F54: 48.4 | G54: 76 | H54: 31.1 | I54: 58.8 | J54: 0 | K54: Fibre | L54: PlanetCampus
A55: Ronsard | B55: 179 | C55: 100 | D55: 100 | E55: 15 | F55: 862.5 | G55: 883.6 | H55: 855.8 | I55: 869.8 | J55: 0 | K55: Fibre | L55: SmartCampus
A56: Simone Veil (CROUS BORDEAUX) | B56: 253 | C56: 100 | D56: 100 | E56: 9 | F56: 88.6 | G56: 135.4 | H56: 50.6 | I56: 100.3 | J56: 0 | K56: Fibre | L56: SmartCampus
A57: Tauzin | B57: 201 | C57: 100 | D57: 100 | E57: 12 | F57: 95.3 | G57: 143.5 | H57: 78.8 | I57: 113.9 | J57: 0 | K57: Fibre | L57: PlanetCampus
A58: Village Universitaire 1 | B58: 385 | C58: 98.89 | D58: 98.34 | E58: 9 | F58: 430.6 | G58: 518.3 | H58: 399.9 | I58: 447.5 | J58: 1 | K58: Fibre | L58: PlanetCampus | M58: Le 12/06/21 / responsabilité SmartCampus / Site injoignable / durée : 3.0 heure(s) : Site injoignable Diagnostic : aucun équipement n'est joignable sur le site Périmètre de l'incident : l'ensemble du site. Impact de l'incident : coupure du service Le site a-t-il été informé? non Alerte Kiwi "#21449198" ouverte le 12/06/2021 à 16:02 Résultat : Le service est rétabli sur le site Village Universitaire 1 (Bât A B C D G) suite à la prise en charge de l'incident par nos équipes. Le 14/06/21 / responsabilité SmartCampus / Site injoignable / durée : 7.0 heure(s) : Site injoignable Diagnostic : aucun équipement n'est joignable sur le site Périmètre de l'incident : l'ensemble du site. Impact de l'incident : coupure du service Le site a-t-il été informé? non Alerte Kiwi "#21449236" ouverte le 14/06/2021 à 09:36 Résultat : Action(s) réalisée(s) : Commentaire : Le tech a débranché, re-branché le fibre. Le site est remonté à l'issue. Test de connexion effectuée à l'issue: OK
A59: Village Universitaire 2 | B59: 455 | C59: 100 | D59: 100 | E59: 9 | F59: 138 | G59: 210.5 | H59: 105.9 | I59: 163.7 | J59: 0 | K59: Fibre | L59: PlanetCampus
A60: Village Universitaire 3 | B60: 879 | C60: 100 | D60: 100 | E60: 8 | F60: 287.7 | G60: 346.2 | H60: 259.7 | I60: 300.1 | J60: 0 | K60: Fibre | L60: PlanetCampus
A61: Village Universitaire 5 | B61: 189 | C61: 100 | D61: 100 | E61: 8 | F61: 382 | G61: 420.9 | H61: 367.3 | I61: 399.4 | J61: 0 | K61: Fibre | L61: PlanetCampus
A62: Village Universitaire 6 | B62: 294 | C62: 100 | D62: 100 | E62: 9 | F62: 145 | G62: 182.9 | H62: 114 | I62: 161.8 | J62: 0 | K62: Fibre | L62: PlanetCampus

Sheet BOURGOGNE FRANCHE COMTE
A3: Etablissement | B3: NB Chb | C3: Dispo (resp. SC) (%) | D3: Dispo (toutes resp) (%) | E3: LatMax (ms) | F3: BPMin (Mb/s) | G3: BPMoy (Mb/s) | H3: BPMin 19h-23h (Mb/s) | I3: BPMoy 19h-23h (Mb/s) | J3: Nb de Chb fibrées | K3: Nb de Chb en cours de fibrage
A4: CROUS BOURGOGNE FRANCHE COMTE | B4: =SUM(B8:B47) -> 6772 | C4: =SUMPRODUCT(B8:B47,C8:C47)/SUM(B8:B47) -> 99.89810543 | D4: =SUMPRODUCT(B8:B47,D8:D47)/SUM(B8:B47) -> 98.80192262 | E4: =SUMPRODUCT(B8:B47,E8:E47)/SUM(B8:B47) -> 19.73390431 | F4: =SUMPRODUCT(B8:B47,F8:F47)/SUM(B8:B47) -> 134.4465594 | G4: =SUMPRODUCT(B8:B47,G8:G47)/SUM(B8:B47) -> 171.5010337 | H4: =SUMPRODUCT(B8:B47,H8:H47)/SUM(B8:B47) -> 119.4797696 | I4: =SUMPRODUCT(B8:B47,I8:I47)/SUM(B8:B47) -> 147.1076934 | J4: =SUMIFS(B8:B47,K8:K47,"=Fibre") -> 6750 | K4: =SUMIFS(B8:B47,K8:K47,"=Fibrage en cours") -> 0
J5: =J4/B4 -> 0.996751329 | K5: =K4/B4 -> 0
A7: Résidence | B7: NB Chb | C7: Dispo (resp. SC) (%) | D7: Dispo (toutes resp) (%) | E7: LatMax (ms) | F7: BPMin (Mb/s) | G7: BPMoy (Mb/s) | H7: BPMin 19h-23h (Mb/s) | I7: BPMoy 19h-23h (Mb/s) | J7: Hors GTR | K7: Collecte | L7: Type de service | M7: Remarques
A8: Agora-Planoise | B8: 26 | C8: 100 | D8: 100 | E8: 18 | F8: 89.9 | G8: 89.9 | H8: 89.8 | I8: 89.9 | J8: 0 | K8: Fibre | L8: SmartCampus
A9: Antide Janvier | B9: 76 | C9: 100 | D9: 100 | E9: 13 | F9: 77 | G9: 80.9 | H9: 73.2 | I9: 78.9 | J9: 0 | K9: Fibre | L9: SmartCampus
A10: Braudel | B10: 99 | C10: 100 | D10: 100 | E10: 9 | F10: 159 | G10: 172.4 | H10: 155.8 | I10: 167.5 | J10: 0 | K10: Fibre | L10: SmartCampus
A11: Canot | B11: 161 | C11: 100 | D11: 100 | E11: 13 | F11: 117 | G11: 129 | H11: 112.5 | I11: 121.6 | J11: 0 | K11: Fibre | L11: SmartCampus
A12: Cité Beaune | B12: 340 | C12: 100 | D12: 84.67 | E12: 11 | F12: 152 | G12: 202.3 | H12: 127.8 | I12: 167.8 | J12: 1 | K12: Fibre | L12: SmartCampus | M12: Le 07/06/21 / responsabilité SmartCampus / Site injoignable / durée : 110.0 heure(s) : Site injoignable Diagnostic : aucun équipement n'est joignable sur le site Périmètre de l'incident : l'ensemble du site. Impact de l'incident : coupure du service Le site a-t-il été informé? non Alerte Kiwi "#21448862" ouverte le 07/06/2021 à 08:32 Résultat : Tout est up sur site
A13: Cité de l'alternance | B13: 114 | C13: 100 | D13: 100 | E13: 32 | F13: 61.9 | G13: 77.6 | H13: 54.1 | I13: 74.2 | J13: 0 | K13: Fibre | L13: SmartCampus
A14: Colette - Gascar | B14: 717 | C14: 100 | D14: 100 | E14: 12 | F14: 213.9 | G14: 264.6 | H14: 204.3 | I14: 237.8 | J14: 0 | K14: Fibre | L14: SmartCampus
A15: Colette - Gigoux | B15: 1005 | C15: 100 | D15: 100 | E15: 12 | F15: 233.3 | G15: 338.7 | H15: 201.2 | I15: 258.2 | J15: 0 | K15: Fibre | L15: PlanetCampus
A16: Colette - Stendhal | B16: 379 | C16: 100 | D16: 100 | E16: 12 | F16: 94.2 | G16: 137.4 | H16: 75.6 | I16: 115.6 | J16: 0 | K16: Fibre | L16: SmartCampus
A17: Duvillard | B17: 268 | C17: 100 | D17: 100 | E17: 14 | F17: 109.5 | G17: 155.9 | H17: 51.9 | I17: 122.2 | J17: 0 | K17: Fibre | L17: SmartCampus
A18: Hericourt | B18: 22 | C18: 100 | D18: 100 | E18: 0 | F18: 3.9 | G18: 3.9 | H18: 3.9 | I18: 3.9 | J18: 0 | K18: ADSL | L18: SmartCampus
A19: Jean Moulin | B19: 78 | C19: 100 | D19: 100 | E19: 26 | F19: 88.6 | G19: 89.6 | H19: 88.4 | I19: 89.5 | J19: 0 | K19: Fibre | L19: SmartCampus
A20: Jean Zay - Dijon | B20: 166 | C20: 100 | D20: 100 | E20: 32 | F20: 84.5 | G20: 107.6 | H20: 75 | I20: 93.1 | J20: 0 | K20: Fibre | L20: SmartCampus
A21: Jemmapes | B21: 41 | C21: 100 | D21: 100 | E21: 12 | F21: 75.9 | G21: 86.2 | H21: 70.4 | I21: 80.2 | J21: 0 | K21: Fibre | L21: SmartCampus
A22: Megevand | B22: 27 | C22: 100 | D22: 100 | E22: 18 | F22: 86.7 | G22: 89.1 | H22: 84.3 | I22: 87.9 | J22: 0 | K22: Fibre | L22: SmartCampus
A23: Pavillon antipodes | B23: 388 | C23: 100 | D23: 100 | E23: 32 | F23: 231.2 | G23: 259.3 | H23: 219.8 | I23: 243.2 | J23: 0 | K23: Fibre | L23: SmartCampus
A24: Pavillon Autun | B24: 154 | C24: 100 | D24: 100 | E24: 32 | F24: 108.3 | G24: 124 | H24: 98.8 | I24: 114.5 | J24: 0 | K24: Fibre | L24: SmartCampus
A25: Pavillon Auxerre | B25: 153 | C25: 100 | D25: 100 | E25: 32 | F25: 100.7 | G25: 120.1 | H25: 90.7 | I25: 106.3 | J25: 0 | K25: Fibre | L25: SmartCampus
A26: Pavillon Bossuet | B26: 100 | C26: 100 | D26: 100 | E26: 32 | F26: 47.8 | G26: 61.1 | H26: 44.5 | I26: 53.8 | J26: 0 | K26: Fibre | L26: SmartCampus
A27: Pavillon Buffon | B27: 135 | C27: 100 | D27: 100 | E27: 32 | F27: 57.7 | G27: 81.4 | H27: 49.1 | I27: 67.8 | J27: 0 | K27: Fibre | L27: SmartCampus
A28: Pavillon Chalon | B28: 152 | C28: 100 | D28: 100 | E28: 32 | F28: 100.5 | G28: 121.4 | H28: 69.6 | I28: 108 | J28: 0 | K28: Fibre | L28: SmartCampus
A29: Pavillon de Brosses | B29: 109 | C29: 100 | D29: 100 | E29: 32 | F29: 59.7 | G29: 73.1 | H29: 51.7 | I29: 67.3 | J29: 0 | K29: Fibre | L29: SmartCampus
A30: Pavillon Lamartine | B30: 98 | C30: 100 | D30: 100 | E30: 32 | F30: 34.2 | G30: 55.8 | H30: 29.8 | I30: 44.7 | J30: 0 | K30: Fibre | L30: SmartCampus
A31: Pavillon Latitudes | B31: 98 | C31: 100 | D31: 84.69 | E31: 13 | F31: 52.2 | G31: 65.1 | H31: 45.6 | I31: 57.7 | J31: 1 | K31: Fibre | L31: SmartCampus | M31: Le 07/06/21 / responsabilité SmartCampus / Site injoignable / durée : 110.0 heure(s) : Site injoignable Diagnostic : aucun équipement n'est joignable sur le site Périmètre de l'incident : l'ensemble du site. Impact de l'incident : coupure du service Le site a-t-il été informé? non Alerte Kiwi "#21448864" ouverte le 07/06/2021 à 08:34 Résultat : Action(s) réalisée(s) : Redémarrage sur le site Beaume Commentaire : TT 227829
A32: Pavillon Macon | B32: 147 | C32: 100 | D32: 100 | E32: 0 | F32: 130.5 | G32: 130.5 | H32: 130.5 | I32: 130.5 | J32: 0 | K32: Fibre | L32: SmartCampus
A33: Pavillon Nevers | B33: 140 | C33: 100 | D33: 100 | E33: 32 | F33: 89.7 | G33: 109.5 | H33: 84.7 | I33: 101.1 | J33: 0 | K33: Fibre | L33: SmartCampus
A34: Pavillon Piron | B34: 105 | C34: 100 | D34: 100 | E34: 32 | F34: 63.6 | G34: 72.5 | H34: 55.9 | I34: 66.6 | J34: 0 | K34: Fibre | L34: SmartCampus
A35: Pavillon Rameau | B35: 153 | C35: 100 | D35: 100 | E35: 32 | F35: 84.1 | G35: 100.9 | H35: 78.4 | I35: 90.4 | J35: 0 | K35: Fibre | L35: SmartCampus
A36: Pavillon Rimbaud | B36: 245 | C36: 100 | D36: 100 | E36: 32 | F36: 136.5 | G36: 163.6 | H36: 121 | I36: 144.9 | J36: 0 | K36: Fibre | L36: SmartCampus
A37: Pavillon Rude | B37: 105 | C37: 100 | D37: 100 | E37: 32 | F37: 58.8 | G37: 69.9 | H37: 46.6 | I37: 62.6 | J37: 0 | K37: Fibre | L37: SmartCampus
A38: Pavillon Sens | B38: 148 | C38: 100 | D38: 100 | E38: 0 | F38: 0 | G38: 0 | H38: 0 | I38: 0 | J38: 0 | K38: Fibre | L38: SmartCampus
A39: Pavillon St Bernard | B39: 105 | C39: 100 | D39: 100 | E39: 32 | F39: 61.8 | G39: 72 | H39: 56.5 | I39: 67.1 | J39: 0 | K39: Fibre | L39: SmartCampus
A40: Pavillon Vauban | B40: 137 | C40: 100 | D40: 100 | E40: 32 | F40: 70.3 | G40: 86.9 | H40: 65.3 | I40: 78.3 | J40: 0 | K40: Fibre | L40: SmartCampus
A41: Portes du Jura | B41: 84 | C41: 100 | D41: 99.96 | E41: 25 | F41: 68.5 | G41: 81.2 | H41: 63.6 | I41: 72.2 | J41: 0 | K41: Fibre | L41: SmartCampus | M41: Le 23/06/21 / responsabilité SmartCampus / Site injoignable / durée : 0.0 heure(s) : Site injoignable Diagnostic : aucun équipement n'est joignable sur le site Périmètre de l'incident : l'ensemble du site. Impact de l'incident : coupure du service Le site a-t-il été informé? non Alerte Kiwi "#21449731" ouverte le 23/06/2021 à 11:26 Résultat : Le service est rétabli sur le site Portes du Jura suite à la prise en charge de l'incident par nos équipes.
A42: René Thom | B42: 120 | C42: 100 | D42: 100 | E42: 9 | F42: 76.6 | G42: 98.9 | H42: 70.1 | I42: 85.3 | J42: 0 | K42: Fibre | L42: SmartCampus
A43: Residence Irtess | B43: 59 | C43: 100 | D43: 88.01 | E43: 12 | F43: 33.7 | G43: 41.3 | H43: 28.4 | I43: 37.4 | J43: 1 | K43: Fibre | L43: SmartCampus | M43: Le 07/06/21 / responsabilité SmartCampus / Site injoignable / durée : 86.0 heure(s) : Site injoignable Diagnostic : aucun équipement n'est joignable sur le site Périmètre de l'incident : l'ensemble du site. Impact de l'incident : coupure du service Le site a-t-il été informé? non Alerte Kiwi "#21448863" ouverte le 07/06/2021 à 08:32 Résultat : Le service est rétabli sur le site Residence Irtess suite à la prise en charge de l'incident par nos équipes.
A44: Résidence Jaurés | B44: 22 | C44: 100 | D44: 100 | E44: 12 | F44: 88.6 | G44: 89.7 | H44: 89.1 | I44: 89.7 | J44: 0 | K44: Fibre | L44: SmartCampus
A45: RU Montmuzard | B45: 1 | C45: 100 | D45: 100 | E45: 0 | F45: 0 | G45: 0 | H45: 0 | I45: 0 | J45: 0 | K45: Fibre | L45: SmartCampus
A46: Sartre | B46: 142 | C46: 100 | D46: 100 | E46: 9 | F46: 158.4 | G46: 171.3 | H46: 154.9 | I46: 165.9 | J46: 0 | K46: Fibre | L46: SmartCampus
A47: Site Maret | B47: 153 | C47: 95.49 | D47: 95.49 | E47: 32 | F47: 108.5 | G47: 113 | H47: 101 | I47: 110.1 | J47: 1 | K47: Fibre | L47: SmartCampus | M47: Le 26/06/21 / responsabilité SmartCampus / Site injoignable / durée : 32.0 heure(s) : Site injoignable Diagnostic : aucun équipement n'est joignable sur le site Périmètre de l'incident : l'ensemble du site. Impact de l'incident : coupure du service Le site a-t-il été informé? non Alerte Kiwi "#21449886" ouverte le 26/06/2021 à 21:40 Résultat : Action(s) réalisée(s) : Commentaire : onduleur remplacé

Sheet CLERMONT FERRAND
A3: Etablissement | B3: NB Chb | C3: Dispo (resp. SC) (%) | D3: Dispo (toutes resp) (%) | E3: LatMax (ms) | F3: BPMin (Mb/s) | G3: BPMoy (Mb/s) | H3: BPMin 19h-23h (Mb/s) | I3: BPMoy 19h-23h (Mb/s) | J3: Nb de Chb fibrées | K3: Nb de Chb en cours de fibrage
A4: CROUS CLERMONT FERRAND | B4: =SUM(B8:B33) -> 3772 | C4: =SUMPRODUCT(B8:B33,C8:C33)/SUM(B8:B33) -> 100 | D4: =SUMPRODUCT(B8:B33,D8:D33)/SUM(B8:B33) -> 100 | E4: =SUMPRODUCT(B8:B33,E8:E33)/SUM(B8:B33) -> 21.20546129 | F4: =SUMPRODUCT(B8:B33,F8:F33)/SUM(B8:B33) -> 145.5090138 | G4: =SUMPRODUCT(B8:B33,G8:G33)/SUM(B8:B33) -> 182.7276776 | H4: =SUMPRODUCT(B8:B33,H8:H33)/SUM(B8:B33) -> 126.4319989 | I4: =SUMPRODUCT(B8:B33,I8:I33)/SUM(B8:B33) -> 158.8829003 | J4: =SUMIFS(B8:B33,K8:K33,"=Fibre") -> 3742 | K4: =SUMIFS(B8:B33,K8:K33,"=Fibrage en cours") -> 0
J5: =J4/B4 -> 0.9920466596 | K5: =K4/B4 -> 0
A7: Résidence | B7: NB Chb | C7: Dispo (resp. SC) (%) | D7: Dispo (toutes resp) (%) | E7: LatMax (ms) | F7: BPMin (Mb/s) | G7: BPMoy (Mb/s) | H7: BPMin 19h-23h (Mb/s) | I7: BPMoy 19h-23h (Mb/s) | J7: Hors GTR | K7: Collecte | L7: Type de service | M7: Remarques
A8: Cézeaux - Cité 2 | B8: 305 | C8: 100 | D8: 100 | E8: 26 | F8: 245.6 | G8: 263 | H8: 231.7 | I8: 256.4 | J8: 0 | K8: Fibre | L8: SmartCampus
A9: Cézeaux Cité 1 (CCZ) | B9: 306 | C9: 100 | D9: 100 | E9: 16 | F9: 142.4 | G9: 203.7 | H9: 118.2 | I9: 164.1 | J9: 0 | K9: Fibre | L9: PlanetCampus
A10: CROUS CLERMONT FERRAND - Amboise | B10: 147 | C10: 100 | D10: 100 | E10: 16 | F10: 123.6 | G10: 156.2 | H10: 111.4 | I10: 136.5 | J10: 0 | K10: Fibre | L10: PlanetCampus
A11: CROUS CLERMONT FERRAND - Amboise - Annexe | B11: 1 | C11: 100 | D11: 100 | E11: 337 | F11: 8 | G11: 8.8 | H11: 7.8 | I11: 8.8 | J11: 0 | K11: Fibre | L11: PlanetCampus
A12: CROUS CLERMONT FERRAND / Residence Cezeaux- Studios | B12: 375 | C12: 100 | D12: 100 | E12: 26 | F12: 141.1 | G12: 231.7 | H12: 79.7 | I12: 163.6 | J12: 0 | K12: Fibre | L12: SmartCampus
A13: Espace Guy Vigne | B13: 30 | C13: 100 | D13: 100 | E13: 56 | F13: 11.4 | G13: 12 | H13: 12.1 | I13: 12.1 | J13: 0 | K13: ADSL | L13: SmartCampus
A14: Hauts de Lafayette | B14: 169 | C14: 100 | D14: 100 | E14: 14 | F14: 121.8 | G14: 153.1 | H14: 101 | I14: 130 | J14: 0 | K14: Fibre | L14: PlanetCampus
A15: La Poterne | B15: 15 | C15: 100 | D15: 100 | E15: 12 | F15: 41 | G15: 43.8 | H15: 39.1 | I15: 42.8 | J15: 0 | K15: Fibre | L15: PlanetCampus
A16: Le Port | B16: 9 | C16: 100 | D16: 100 | E16: 11 | F16: 88.2 | G16: 88.2 | H16: 88.2 | I16: 88.2 | J16: 0 | K16: Fibre | L16: PlanetCampus
A17: Lebon (CLE) | B17: 478 | C17: 100 | D17: 100 | E17: 24 | F17: 310.8 | G17: 329.2 | H17: 301.1 | I17: 322.7 | J17: 0 | K17: Fibre | L17: SmartCampus
A18: Les Jardins | B18: 58 | C18: 100 | D18: 100 | E18: 12 | F18: 61.2 | G18: 68.8 | H18: 55.8 | I18: 63.7 | J18: 0 | K18: Fibre | L18: SmartCampus
A19: Les Lauréats (CLE) | B19: 65 | C19: 100 | D19: 100 | E19: 12 | F19: 56.3 | G19: 68.6 | H19: 36.8 | I19: 59.6 | J19: 0 | K19: Fibre | L19: PlanetCampus
A20: Maison Internationale Universitaire | B20: 41 | C20: 100 | D20: 100 | E20: 25 | F20: 85.3 | G20: 88.7 | H20: 83.8 | I20: 86.7 | J20: 0 | K20: Fibre | L20: SmartCampus
A21: Meuniers | B21: 80 | C21: 100 | D21: 100 | E21: 12 | F21: 52.5 | G21: 73.1 | H21: 44.1 | I21: 59.4 | J21: 0 | K21: Fibre | L21: PlanetCampus
A22: Montluçon (CMO) | B22: 222 | C22: 100 | D22: 100 | E22: 18 | F22: 137 | G22: 162.1 | H22: 128.8 | I22: 152 | J22: 0 | K22: Fibre | L22: PlanetCampus
A23: Paul Collomp (CLE) | B23: 16 | C23: 100 | D23: 100 | E23: 12 | F23: 87.6 | G23: 89.6 | H23: 86.5 | I23: 88.8 | J23: 0 | K23: Fibre | L23: PlanetCampus
A24: Poncillon | B24: 35 | C24: 100 | D24: 100 | E24: 12 | F24: 58.5 | G24: 58.5 | H24: 58.5 | I24: 58.5 | J24: 0 | K24: Fibre | L24: PlanetCampus
A25: Résidence Dolet - Bâtiment A | B25: 399 | C25: 100 | D25: 100 | E25: 22 | F25: 143.9 | G25: 212.9 | H25: 114.6 | I25: 164.2 | J25: 0 | K25: Fibre | L25: SmartCampus
A26: Résidence Dolet - Bâtiment B | B26: 199 | C26: 100 | D26: 100 | E26: 22 | F26: 94.7 | G26: 129.5 | H26: 76.4 | I26: 109.2 | J26: 0 | K26: Fibre | L26: PlanetCampus
A27: Résidence Dolet - Bâtiments D1 | B27: 119 | C27: 100 | D27: 100 | E27: 21 | F27: 57.5 | G27: 85.8 | H27: 52.5 | I27: 69.1 | J27: 0 | K27: Fibre | L27: SmartCampus
A28: Résidence Dolet - Bâtiments D2 | B28: 45 | C28: 100 | D28: 100 | E28: 21 | F28: 45.7 | G28: 54.6 | H28: 44.1 | I28: 50.9 | J28: 0 | K28: Fibre | L28: SmartCampus
A29: Résidence Dolet - Bâtiments D3 | B29: 77 | C29: 100 | D29: 100 | E29: 21 | F29: 43.2 | G29: 64.2 | H29: 38 | I29: 52.2 | J29: 0 | K29: Fibre | L29: SmartCampus
A30: Résidence Dolet - Bâtiments E | B30: 160 | C30: 100 | D30: 100 | E30: 21 | F30: 61.4 | G30: 95.6 | H30: 49.1 | I30: 74.2 | J30: 0 | K30: Fibre | L30: SmartCampus
A31: Résidence Dolet - Bâtiments F | B31: 138 | C31: 100 | D31: 100 | E31: 22 | F31: 104.5 | G31: 107 | H31: 103.9 | I31: 106.3 | J31: 0 | K31: Fibre | L31: SmartCampus
A32: Résidence La Gare | B32: 133 | C32: 100 | D32: 100 | E32: 21 | F32: 67.4 | G32: 100 | H32: 46.7 | I32: 77.2 | J32: 0 | K32: Fibre | L32: SmartCampus
A33: Résidence Pasteur | B33: 150 | C33: 100 | D33: 100 | E33: 23 | F33: 119.5 | G33: 151.4 | H33: 106.3 | I33: 131.8 | J33: 0 | K33: Fibre | L33: SmartCampus

Sheet CRETEIL
A3: Etablissement | B3: NB Chb | C3: Dispo (resp. SC) (%) | D3: Dispo (toutes resp) (%) | E3: LatMax (ms) | F3: BPMin (Mb/s) | G3: BPMoy (Mb/s) | H3: BPMin 19h-23h (Mb/s) | I3: BPMoy 19h-23h (Mb/s) | J3: Nb de Chb fibrées | K3: Nb de Chb en cours de fibrage
A4: CROUS CRETEIL | B4: =SUM(B8:B33) -> 3955 | C4: =SUMPRODUCT(B8:B33,C8:C33)/SUM(B8:B33) -> 99.99184829 | D4: =SUMPRODUCT(B8:B33,D8:D33)/SUM(B8:B33) -> 99.82259418 | E4: =SUMPRODUCT(B8:B33,E8:E33)/SUM(B8:B33) -> 2.318078382 | F4: =SUMPRODUCT(B8:B33,F8:F33)/SUM(B8:B33) -> 116.4661441 | G4: =SUMPRODUCT(B8:B33,G8:G33)/SUM(B8:B33) -> 164.1111757 | H4: =SUMPRODUCT(B8:B33,H8:H33)/SUM(B8:B33) -> 93.20887484 | I4: =SUMPRODUCT(B8:B33,I8:I33)/SUM(B8:B33) -> 132.5404046 | J4: =SUMIFS(B8:B33,K8:K33,"=Fibre") -> 3955 | K4: =SUMIFS(B8:B33,K8:K33,"=Fibrage en cours") -> 0
J5: =J4/B4 -> 1 | K5: =K4/B4 -> 0
A7: Résidence | B7: NB Chb | C7: Dispo (resp. SC) (%) | D7: Dispo (toutes resp) (%) | E7: LatMax (ms) | F7: BPMin (Mb/s) | G7: BPMoy (Mb/s) | H7: BPMin 19h-23h (Mb/s) | I7: BPMoy 19h-23h (Mb/s) | J7: Hors GTR | K7: Collecte | L7: Type de service | M7: Remarques
A8: Alfred Sisley | B8: 84 | C8: 100 | D8: 100 | E8: 1 | F8: 51.5 | G8: 75.7 | H8: 37.2 | I8: 60.7 | J8: 0 | K8: Fibre | L8: PlanetCampus
A9: Boissy Saint leger | B9: 130 | C9: 100 | D9: 99.9 | E9: 1 | F9: 74.2 | G9: 101.9 | H9: 62 | I9: 81.9 | J9: 0 | K9: Fibre | L9: SmartCampus | M9: Le 09/06/21 / responsabilité SmartCampus / Site injoignable / durée : 0.0 heure(s) : Site injoignable Diagnostic : aucun équipement n'est joignable sur le site Périmètre de l'incident : l'ensemble du site. Impact de l'incident : coupure du service Le site a-t-il été informé? non Alerte Kiwi "#21449027" ouverte le 09/06/2021 à 19:16 Résultat : Le service est rétabli sur le site Boissy Saint Leger - avenue de la Gare suite à la prise en charge de l'incident par nos équipes.
A10: Bondy | B10: 100 | C10: 100 | D10: 100 | E10: 1 | F10: 47.9 | G10: 74.4 | H10: 39.1 | I10: 54.3 | J10: 0 | K10: Fibre | L10: PlanetCampus
A11: Campus de Bobigny | B11: 340 | C11: 100 | D11: 100 | E11: 1 | F11: 260 | G11: 364.9 | H11: 206.4 | I11: 304.2 | J11: 0 | K11: Fibre | L11: SmartCampus
A12: Combs-la-Ville | B12: 162 | C12: 100 | D12: 100 | E12: 2 | F12: 116.9 | G12: 149.2 | H12: 110 | I12: 127.6 | J12: 0 | K12: Fibre | L12: SmartCampus
A13: Condorcet Crous Créteil | B13: 46 | C13: 100 | D13: 99.63 | E13: 1 | F13: 79.5 | G13: 86.5 | H13: 70 | I13: 83.1 | J13: 0 | K13: Fibre | L13: SmartCampus | M13: Le 03/06/21 / responsabilité SmartCampus / Site injoignable / durée : 2.0 heure(s) : Site injoignable Diagnostic : aucun équipement n'est joignable sur le site Périmètre de l'incident : l'ensemble du site. Impact de l'incident : coupure du service Le site a-t-il été informé? non Alerte Kiwi "#21448726" ouverte le 03/06/2021 à 10:34 Résultat : Le service est rétabli sur le site Condorcet Crous Créteil suite à la prise en charge de l'incident par nos équipes.
A14: Creteil Mail des Meches | B14: 91 | C14: 100 | D14: 100 | E14: 3 | F14: 65.2 | G14: 89.4 | H14: 55.9 | I14: 72.3 | J14: 0 | K14: Fibre | L14: PlanetCampus
A15: CROUS CRETEIL / RÉSIDENCE DU KB | B15: 150 | C15: 100 | D15: 100 | E15: 1 | F15: 82.9 | G15: 136.1 | H15: 61.7 | I15: 102.6 | J15: 0 | K15: Fibre | L15: PlanetCampus
A16: ENSAVT | B16: 172 | C16: 100 | D16: 100 | E16: 1 | F16: 101.4 | G16: 142.1 | H16: 92.2 | I16: 115 | J16: 0 | K16: Fibre | L16: PlanetCampus
A17: Epinay | B17: 184 | C17: 100 | D17: 100 | E17: 1 | F17: 61.9 | G17: 118.4 | H17: 40.7 | I17: 79.9 | J17: 0 | K17: Fibre | L17: PlanetCampus
A18: Eugène Pottier | B18: 170 | C18: 100 | D18: 100 | E18: 1 | F18: 86.5 | G18: 133.3 | H18: 54.7 | I18: 99.4 | J18: 0 | K18: Fibre | L18: SmartCampus
A19: Frida Kahlo Crous Créteil | B19: 208 | C19: 100 | D19: 99.63 | E19: 1 | F19: 73.3 | G19: 123.7 | H19: 52.4 | I19: 88.8 | J19: 0 | K19: Fibre | L19: SmartCampus | M19: Le 03/06/21 / responsabilité SmartCampus / Site injoignable / durée : 2.0 heure(s) : Site injoignable Diagnostic : aucun équipement n'est joignable sur le site Périmètre de l'incident : l'ensemble du site. Impact de l'incident : coupure du service Le site a-t-il été informé? non Alerte Kiwi "#21448727" ouverte le 03/06/2021 à 10:34 Résultat : Le service est rétabli sur le site Frida Kahlo Crous Créteil suite à la prise en charge de l'incident par nos équipes.
A20: Guynemer Crous Créteil | B20: 242 | C20: 100 | D20: 98.33 | E20: 1 | F20: 95.5 | G20: 139.1 | H20: 65.5 | I20: 108.4 | J20: 1 | K20: Fibre | L20: SmartCampus | M20: Le 16/06/21 / responsabilité SmartCampus / Site injoignable / durée : 12.0 heure(s) : Site injoignable Diagnostic : aucun équipement n'est joignable sur le site Périmètre de l'incident : l'ensemble du site. Impact de l'incident : coupure du service Le site a-t-il été informé? non Alerte Kiwi "#21449382" ouverte le 16/06/2021 à 23:12 Résultat : Le service est rétabli sur le site Guynemer Crous Créteil suite à la prise en charge de l'incident par nos équipes.
A21: Hermitage Crous Créteil | B21: 308 | C21: 100 | D21: 100 | E21: 1 | F21: 115.3 | G21: 171.8 | H21: 81.6 | I21: 135.8 | J21: 0 | K21: Fibre | L21: SmartCampus
A22: Ilot des Poiriers | B22: 220 | C22: 100 | D22: 100 | E22: 1 | F22: 243.1 | G22: 308.4 | H22: 217.5 | I22: 266 | J22: 0 | K22: Fibre | L22: PlanetCampus
A23: Ilôt du Bel Air | B23: 157 | C23: 100 | D23: 100 | E23: 1 | F23: 71 | G23: 135.1 | H23: 38.5 | I23: 90.8 | J23: 0 | K23: Fibre | L23: PlanetCampus
A24: Le Trident | B24: 99 | C24: 100 | D24: 100 | E24: 3 | F24: 64.2 | G24: 87.2 | H24: 53.6 | I24: 71.2 | J24: 0 | K24: Fibre | L24: SmartCampus
A25: Lieusaint | B25: 125 | C25: 100 | D25: 100 | E25: 3 | F25: 50 | G25: 90.7 | H25: 31.5 | I25: 65.8 | J25: 0 | K25: Fibre | L25: SmartCampus
A26: Lognes Crous Créteil | B26: 111 | C26: 100 | D26: 100 | E26: 2 | F26: 56.2 | G26: 92.6 | H26: 41.2 | I26: 66.4 | J26: 0 | K26: Fibre | L26: SmartCampus
A27: Montesquieu | B27: 224 | C27: 100 | D27: 99.63 | E27: 1 | F27: 272.8 | G27: 318.1 | H27: 254.3 | I27: 283.1 | J27: 0 | K27: Fibre | L27: SmartCampus | M27: Le 03/06/21 / responsabilité SmartCampus / Site injoignable / durée : 2.0 heure(s) : Site injoignable Diagnostic : aucun équipement n'est joignable sur le site Périmètre de l'incident : l'ensemble du site. Impact de l'incident : coupure du service Le site a-t-il été informé? non Alerte Kiwi "#21448729" ouverte le 03/06/2021 à 10:34 Résultat : Le service est rétabli sur le site Montesquieu suite à la prise en charge de l'incident par nos équipes.
A28: Pré St Gervais | B28: 104 | C28: 99.69 | D28: 99.15 | E28: 1 | F28: 61.2 | G28: 85.6 | H28: 51.1 | I28: 70.4 | J28: 0 | K28: Fibre | L28: SmartCampus | M28: Le 03/06/21 / responsabilité SmartCampus / Site injoignable / durée : 2.0 heure(s) : Site injoignable / service Wifirst totalement indisponible Diagnostic : Les équipements Wifirst sont injoignables ou les services Wifirst ne sont plus opérationnels Périmètre : l’ensemble du site Impact : Service interrompu Incident général chez le fournisseur d'accès internet : Tutor Résultat : Action(s) réalisée(s) : covage Commentaire : 2021/06/03 15:48 Jaenescia Adjovi Comment Résolution automatique à cause de l'évènement parent ------- Statut modifié de "Traitement de problème" à "Résolu" Le 25/06/21 / responsabilité SmartCampus / Site injoignable / durée : 3.0 heure(s) : Site injoignable Diagnostic : aucun équipement n'est joignable sur le site Périmètre de l'incident : l'ensemble du site. Impact de l'incident : coupure du service Le site a-t-il été informé? non Alerte Kiwi "#21449858" ouverte le 25/06/2021 à 14:22 Résultat : Le service est rétabli sur le site Pré-Saint-Gervais suite à la prise en charge de l'incident par nos équipes.
A29: Raymond Fischesser | B29: 118 | C29: 100 | D29: 100 | E29: 22 | F29: 77.7 | G29: 98.7 | H29: 62.7 | I29: 84.3 | J29: 0 | K29: Fibre | L29: PlanetCampus
A30: Résidence International | B30: 55 | C30: 100 | D30: 100 | E30: 2 | F30: 53.8 | G30: 63.7 | H30: 52.1 | I30: 61.4 | J30: 0 | K30: Fibre | L30: PlanetCampus
A31: Stains | B31: 190 | C31: 100 | D31: 100 | E31: 1 | F31: 79.6 | G31: 127.5 | H31: 49.3 | I31: 91.7 | J31: 0 | K31: Fibre | L31: PlanetCampus
A32: Torcy | B32: 113 | C32: 100 | D32: 100 | E32: 2 | F32: 125.6 | G32: 157 | H32: 106.5 | I32: 135.6 | J32: 0 | K32: Fibre | L32: SmartCampus
A33: Tour de l'Illustration | B33: 52 | C33: 100 | D33: 99.63 | E33: 33 | F33: 52 | G33: 66.8 | H33: 34.7 | I33: 57.6 | J33: 0 | K33: Fibre | L33: SmartCampus | M33: Le 03/06/21 / responsabilité SmartCampus / Site injoignable / durée : 2.0 heure(s) : Site injoignable Diagnostic : aucun équipement n'est joignable sur le site Périmètre de l'incident : l'ensemble du site. Impact de l'incident : coupure du service Le site a-t-il été informé? non Alerte Kiwi "#21448728" ouverte le 03/06/2021 à 10:34 Résultat : Le service est rétabli sur le site Tour de l'Illustration suite à la prise en charge de l'incident par nos équipes.

Sheet PARIS
A3: Etablissement | B3: NB Chb | C3: Dispo (resp. SC) (%) | D3: Dispo (toutes resp) (%) | E3: LatMax (ms) | F3: BPMin (Mb/s) | G3: BPMoy (Mb/s) | H3: BPMin 19h-23h (Mb/s) | I3: BPMoy 19h-23h (Mb/s) | J3: Nb de Chb fibrées | K3: Nb de Chb en cours de fibrage
A4: CROUS de PARIS | B4: =SUM(B8:B90) -> 7860 | C4: =SUMPRODUCT(B8:B90,C8:C90)/SUM(B8:B90) -> 99.58809415 | D4: =SUMPRODUCT(B8:B90,D8:D90)/SUM(B8:B90) -> 99.37624809 | E4: =SUMPRODUCT(B8:B90,E8:E90)/SUM(B8:B90) -> 3.020992366 | F4: =SUMPRODUCT(B8:B90,F8:F90)/SUM(B8:B90) -> 129.4741858 | G4: =SUMPRODUCT(B8:B90,G8:G90)/SUM(B8:B90) -> 166.2630662 | H4: =SUMPRODUCT(B8:B90,H8:H90)/SUM(B8:B90) -> 112.0789186 | I4: =SUMPRODUCT(B8:B90,I8:I90)/SUM(B8:B90) -> 141.7195165 | J4: =SUMIFS(B8:B90,K8:K90,"=Fibre") -> 7805 | K4: =SUMIFS(B8:B90,K8:K90,"=Fibrage en cours") -> 0
J5: =J4/B4 -> 0.9930025445 | K5: =K4/B4 -> 0
A7: Résidence | B7: NB Chb | C7: Dispo (resp. SC) (%) | D7: Dispo (toutes resp) (%) | E7: LatMax (ms) | F7: BPMin (Mb/s) | G7: BPMoy (Mb/s) | H7: BPMin 19h-23h (Mb/s) | I7: BPMoy 19h-23h (Mb/s) | J7: Hors GTR | K7: Collecte | L7: Type de service | M7: Remarques
A8: Amiral Mouchez | B8: 52 | C8: 100 | D8: 99.84 | E8: 2 | F8: 56.8 | G8: 64.8 | H8: 50 | I8: 61.3 | J8: 0 | K8: Fibre | L8: SmartCampus | M8: Le 01/06/21 / responsabilité SmartCampus / Site injoignable / durée : 1.0 heure(s) : Site injoignable Diagnostic : aucun équipement n'est joignable sur le site Périmètre de l'incident : l'ensemble du site. Impact de l'incident : coupure du service Le site a-t-il été informé? non Alerte Kiwi "#21448623" ouverte le 01/06/2021 à 21:52 Résultat : Le service est rétabli sur le site Amiral Mouchez suite à la prise en charge de l'incident par nos équipes.
A9: Andrée Chedid | B9: 33 | C9: 100 | D9: 100 | E9: 1 | F9: 45.9 | G9: 52.4 | H9: 41.4 | I9: 49.4 | J9: 0 | K9: Fibre | L9: PlanetCampus
A10: Argonne | B10: 132 | C10: 100 | D10: 100 | E10: 2 | F10: 67.9 | G10: 101.3 | H10: 51.6 | I10: 80.3 | J10: 0 | K10: Fibre | L10: PlanetCampus
A11: Auriol | B11: 50 | C11: 100 | D11: 100 | E11: 2 | F11: 58.5 | G11: 63.8 | H11: 55.2 | I11: 61.5 | J11: 0 | K11: Fibre | L11: SmartCampus
A12: Avia | B12: 163 | C12: 100 | D12: 100 | E12: 2 | F12: 90 | G12: 136 | H12: 61.5 | I12: 102.7 | J12: 0 | K12: Fibre | L12: PlanetCampus
A13: Avia 2 | B13: 146 | C13: 100 | D13: 100 | E13: 3 | F13: 109.8 | G13: 121.5 | H13: 103.2 | I13: 119.2 | J13: 0 | K13: Fibre | L13: PlanetCampus
A14: Bastille | B14: 72 | C14: 100 | D14: 100 | E14: 2 | F14: 53.9 | G14: 70.4 | H14: 45.7 | I14: 58.9 | J14: 0 | K14: Fibre | L14: SmartCampus
A15: Bercy Crous | B15: 190 | C15: 100 | D15: 100 | E15: 2 | F15: 81.1 | G15: 132 | H15: 31.5 | I15: 96.3 | J15: 0 | K15: Fibre | L15: SmartCampus
A16: Bessieres | B16: 42 | C16: 100 | D16: 99.92 | E16: 2 | F16: 46.1 | G16: 57.7 | H16: 36.5 | I16: 51.5 | J16: 0 | K16: Fibre | L16: SmartCampus | M16: Le 22/06/21 / responsabilité SmartCampus / Site injoignable / durée : 0.0 heure(s) : Site injoignable Diagnostic : aucun équipement n'est joignable sur le site Périmètre de l'incident : l'ensemble du site. Impact de l'incident : coupure du service Le site a-t-il été informé? non Alerte Kiwi "#21449671" ouverte le 22/06/2021 à 11:46 Résultat : Le service est rétabli sur le site Bessieres suite à la prise en charge de l'incident par nos équipes. Le 22/06/21 / responsabilité SmartCampus / Site injoignable / durée : 0.0 heure(s) : Site injoignable Diagnostic : aucun équipement n'est joignable sur le site Périmètre de l'incident : l'ensemble du site. Impact de l'incident : coupure du service Le site a-t-il été informé? non Alerte Kiwi "#21449678" ouverte le 22/06/2021 à 13:00 Résultat : Le service est rétabli sur le site Bessieres suite à la prise en charge de l'incident par nos équipes.
A17: Bisson | B17: 29 | C17: 100 | D17: 100 | E17: 1 | F17: 43.1 | G17: 51.3 | H17: 39.9 | I17: 47.8 | J17: 0 | K17: Fibre | L17: PlanetCampus
A18: Bonaparte | B18: 63 | C18: 100 | D18: 100 | E18: 2 | F18: 46.9 | G18: 65.6 | H18: 38.3 | I18: 55.6 | J18: 0 | K18: Fibre | L18: PlanetCampus
A19: Carmes | B19: 34 | C19: 100 | D19: 100 | E19: 2 | F19: 45 | G19: 53.7 | H19: 36.9 | I19: 47.9 | J19: 0 | K19: Fibre | L19: SmartCampus
A20: Cascades | B20: 27 | C20: 100 | D20: 100 | E20: 2 | F20: 47.5 | G20: 51.7 | H20: 46.3 | I20: 50.3 | J20: 0 | K20: Fibre | L20: SmartCampus
A21: Cavé | B21: 35 | C21: 100 | D21: 100 | E21: 3 | F21: 50.2 | G21: 59.6 | H21: 43.9 | I21: 55 | J21: 0 | K21: Fibre | L21: PlanetCampus
A22: Championnet 1 | B22: 33 | C22: 100 | D22: 100 | E22: 3 | F22: 47 | G22: 53.6 | H22: 45.3 | I22: 51.8 | J22: 0 | K22: Fibre | L22: SmartCampus
A23: Championnet 2 | B23: 33 | C23: 100 | D23: 100 | E23: 3 | F23: 39.9 | G23: 51.9 | H23: 33.6 | I23: 44.1 | J23: 0 | K23: Fibre | L23: SmartCampus
A24: Chevaleret | B24: 166 | C24: 100 | D24: 99.86 | E24: 2 | F24: 109.7 | G24: 144.5 | H24: 86.9 | I24: 122.5 | J24: 0 | K24: Fibre | L24: SmartCampus | M24: Le 01/06/21 / responsabilité SmartCampus / Site injoignable / durée : 1.0 heure(s) : Site injoignable Diagnostic : aucun équipement n'est joignable sur le site Périmètre de l'incident : l'ensemble du site. Impact de l'incident : coupure du service Le site a-t-il été informé? non Alerte Kiwi "#21448605" ouverte le 01/06/2021 à 11:58 Résultat : Le service est rétabli sur le site Chevaleret suite à la prise en charge de l'incident par nos équipes.
A25: Choisy | B25: 32 | C25: 100 | D25: 100 | E25: 2 | F25: 49 | G25: 54.1 | H25: 47.7 | I25: 53.2 | J25: 0 | K25: Fibre | L25: SmartCampus
A26: Citeaux | B26: 344 | C26: 100 | D26: 100 | E26: 2 | F26: 513.2 | G26: 568.9 | H26: 500.8 | I26: 529.6 | J26: 0 | K26: Fibre | L26: SmartCampus
A27: Concordia | B27: 121 | C27: 100 | D27: 100 | E27: 2 | F27: 70.6 | G27: 92.8 | H27: 57.4 | I27: 78 | J27: 0 | K27: Fibre | L27: PlanetCampus
A28: Convention | B28: 34 | C28: 100 | D28: 100 | E28: 2 | F28: 45.8 | G28: 60.8 | H28: 39.9 | I28: 52.5 | J28: 0 | K28: Fibre | L28: SmartCampus
A29: Coubertin | B29: 125 | C29: 100 | D29: 100 | E29: 15 | F29: 70.9 | G29: 108.4 | H29: 55 | I29: 83.3 | J29: 0 | K29: Fibre | L29: SmartCampus
A30: Cour des Noues | B30: 64 | C30: 100 | D30: 100 | E30: 2 | F30: 49.7 | G30: 71.5 | H30: 42.8 | I30: 57.7 | J30: 0 | K30: Fibre | L30: SmartCampus
A31: CROUS Aubervilliers | B31: 93 | C31: 100 | D31: 99.96 | E31: 2 | F31: 67.9 | G31: 80.1 | H31: 56.3 | I31: 73 | J31: 0 | K31: Fibre | L31: PlanetCampus | M31: Le 23/06/21 / responsabilité SmartCampus / Site injoignable / durée : 0.0 heure(s) : Site injoignable / service Wifirst totalement indisponible Diagnostic : Les équipements Wifirst sont injoignables ou les services Wifirst ne sont plus opérationnels Périmètre : l’ensemble du site Impact : Service interrompu Résultat : Action(s) réalisée(s) : Commentaire :
A32: Dareau 1 & 2 | B32: 268 | C32: 100 | D32: 100 | E32: 2 | F32: 101.6 | G32: 162.4 | H32: 80.5 | I32: 119.9 | J32: 0 | K32: Fibre | L32: PlanetCampus
A33: Daviel | B33: 271 | C33: 100 | D33: 100 | E33: 2 | F33: 93.6 | G33: 166.8 | H33: 69.3 | I33: 127.2 | J33: 0 | K33: Fibre | L33: PlanetCampus
A34: Delaître | B34: 40 | C34: 100 | D34: 100 | E34: 2 | F34: 45 | G34: 60.3 | H34: 33.2 | I34: 53.1 | J34: 0 | K34: Fibre | L34: SmartCampus
A35: Delphine Seyrig | B35: 184 | C35: 100 | D35: 100 | E35: 1 | F35: 78.2 | G35: 125.2 | H35: 59.2 | I35: 92.5 | J35: 0 | K35: Fibre | L35: SmartCampus
A36: Des Haies | B36: 64 | C36: 100 | D36: 100 | E36: 3 | F36: 36.7 | G36: 61.2 | H36: 23.6 | I36: 49.7 | J36: 0 | K36: Fibre | L36: SmartCampus
A37: Docteur Yersin | B37: 54 | C37: 100 | D37: 100 | E37: 2 | F37: 48.7 | G37: 61.5 | H37: 41.5 | I37: 54.1 | J37: 0 | K37: Fibre | L37: SmartCampus
A38: Domrémy | B38: 70 | C38: 100 | D38: 100 | E38: 2 | F38: 60.6 | G38: 72.5 | H38: 52.7 | I38: 64.5 | J38: 0 | K38: Fibre | L38: SmartCampus
A39: Fontaine au roi 1 | B39: 62 | C39: 100 | D39: 100 | E39: 2 | F39: 48.8 | G39: 64.3 | H39: 44.1 | I39: 54.4 | J39: 0 | K39: Fibre | L39: SmartCampus
A40: Fontaine au roi 2 | B40: 46 | C40: 100 | D40: 100 | E40: 5 | F40: 47.3 | G40: 60.3 | H40: 42.9 | I40: 54.3 | J40: 0 | K40: Fibre | L40: SmartCampus
A41: Forest Cavalotti | B41: 42 | C41: 100 | D41: 100 | E41: 2 | F41: 36.4 | G41: 55.2 | H41: 29.8 | I41: 46.4 | J41: 0 | K41: Fibre | L41: SmartCampus
A42: Francis de Croisset | B42: 351 | C42: 100 | D42: 100 | E42: 3 | F42: 471.3 | G42: 546.9 | H42: 417.1 | I42: 486.7 | J42: 0 | K42: Fibre | L42: SmartCampus
A43: Frères Flavien | B43: 121 | C43: 100 | D43: 100 | E43: 1 | F43: 39.2 | G43: 69.5 | H43: 21.1 | I43: 48.3 | J43: 0 | K43: Fibre | L43: SmartCampus
A44: Frères Goncourt | B44: 87 | C44: 100 | D44: 100 | E44: 2 | F44: 51.7 | G44: 71.8 | H44: 49.1 | I44: 60.6 | J44: 0 | K44: Fibre | L44: PlanetCampus
A45: Goutte d'Or | B45: 25 | C45: 100 | D45: 100 | E45: 3 | F45: 39.6 | G45: 46.4 | H45: 38.2 | I45: 43.7 | J45: 0 | K45: Fibre | L45: SmartCampus
A46: Grands Moulins | B46: 55 | C46: 100 | D46: 100 | E46: 2 | F46: 50.1 | G46: 65.6 | H46: 36.2 | I46: 55.2 | J46: 0 | K46: Fibre | L46: SmartCampus
A47: Hostater | B47: 10 | C47: 100 | D47: 100 | E47: 2 | F47: 38.7 | G47: 41.5 | H47: 36.6 | I47: 40.4 | J47: 0 | K47: Fibre | L47: SmartCampus
A48: Indochine | B48: 139 | C48: 100 | D48: 100 | E48: 2 | F48: 53.3 | G48: 98.3 | H48: 29.1 | I48: 70.1 | J48: 0 | K48: Fibre | L48: PlanetCampus
A49: Julie Daubié | B49: 70 | C49: 100 | D49: 94.57 | E49: 11 | F49: 26.5 | G49: 42.3 | H49: 19.7 | I49: 31.8 | J49: 1 | K49: Fibre | L49: SmartCampus | M49: Le 19/06/21 / responsabilité SmartCampus / Site injoignable / durée : 39.0 heure(s) : Site injoignable Diagnostic : aucun équipement n'est joignable sur le site Périmètre de l'incident : l'ensemble du site. Impact de l'incident : coupure du service Le site a-t-il été informé? non Alerte Kiwi "#21449525" ouverte le 19/06/2021 à 18:28 Résultat : site à nouveau joignable
A50: La Garenne | B50: 45 | C50: 100 | D50: 100 | E50: 2 | F50: 52 | G50: 59.6 | H50: 45.4 | I50: 54.1 | J50: 0 | K50: Fibre | L50: SmartCampus
A51: Laghouat | B51: 38 | C51: 100 | D51: 100 | E51: 3 | F51: 45.2 | G51: 57.6 | H51: 40.2 | I51: 50.4 | J51: 0 | K51: Fibre | L51: PlanetCampus
A52: Louise Bourgeois | B52: 129 | C52: 100 | D52: 94.57 | E52: 2 | F52: 54.9 | G52: 93.4 | H52: 35.8 | I52: 71.3 | J52: 1 | K52: Fibre | L52: SmartCampus | M52: Le 19/06/21 / responsabilité SmartCampus / Site injoignable / durée : 39.0 heure(s) : Site injoignable Diagnostic : aucun équipement n'est joignable sur le site Périmètre de l'incident : l'ensemble du site. Impact de l'incident : coupure du service Le site a-t-il été informé? non Alerte Kiwi "#21449525" ouverte le 19/06/2021 à 18:28 Résultat : site à nouveau joignable
A53: Lourcine bâtiment 4 | B53: 312 | C53: 100 | D53: 100 | E53: 2 | F53: 144.9 | G53: 192 | H53: 131.9 | I53: 160.9 | J53: 0 | K53: Fibre | L53: SmartCampus
A54: Luneville | B54: 50 | C54: 100 | D54: 100 | E54: 20 | F54: 55 | G54: 62.8 | H54: 48.2 | I54: 57.5 | J54: 0 | K54: Fibre | L54: SmartCampus
A55: Martin Luther King | B55: 152 | C55: 100 | D55: 100 | E55: 2 | F55: 98.8 | G55: 146 | H55: 76.8 | I55: 115 | J55: 0 | K55: Fibre | L55: SmartCampus
A56: Mazet | B56: 53 | C56: 88.42 | D56: 78.12 | E56: 2 | F56: 45.9 | G56: 61.1 | H56: 40.4 | I56: 53.7 | J56: 2 | K56: Fibre | L56: SmartCampus | M56: Le 31/03/21 / responsabilité SmartCampus / Site injoignable / durée : 603.0 heure(s) : Site injoignable / service Wifirst totalement indisponible Diagnostic : Les équipements Wifirst sont injoignables ou les services Wifirst ne sont plus opérationnels Périmètre : l’ensemble du site Impact : Service interrompu Résultat : Action(s) réalisée(s) : Commentaire : Le 18/06/21 / responsabilité SmartCampus / Site injoignable / durée : 83.0 heure(s) : Site injoignable / service Wifirst totalement indisponible Diagnostic : Les équipements Wifirst sont injoignables ou les services Wifirst ne sont plus opérationnels Périmètre : l’ensemble du site Impact : Service interrompu Résultat : Action(s) réalisée(s) : Commentaire : Cable legerement débranché au niveau du rad opérateur. Cable rebranché. Test de connexion Natbox OK. Vérification uptime interface natbox et switch Ok. La connexion ligne 3 est mauvaise beacuoup de baggot de connexion. test modem Ok. Ouverture ticket sfr: C26585129. Le 29/06/21 / responsabilité SmartCampus / Site injoignable / durée : 0.0 heure(s) : Site injoignable Diagnostic : aucun équipement n'est joignable sur le site Périmètre de l'incident : l'ensemble du site. Impact de l'incident : coupure du service Le site a-t-il été informé? non Alerte Kiwi "#21449988" ouverte le 29/06/2021 à 14:02 Résultat : Le service est rétabli sur le site Mazet suite à la prise en charge de l'incident par nos équipes.
A57: Ménilmontant 1 | B57: 18 | C57: 100 | D57: 100 | E57: 7 | F57: 25.8 | G57: 28.4 | H57: 24.7 | I57: 27.7 | J57: 0 | K57: ADSL | L57: SmartCampus
A58: Ménilmontant 2 | B58: 65 | C58: 100 | D58: 100 | E58: 2 | F58: 51 | G58: 67.2 | H58: 45 | I58: 58.1 | J58: 0 | K58: Fibre | L58: SmartCampus
A59: Michel de Bourges | B59: 51 | C59: 100 | D59: 100 | E59: 2 | F59: 53.2 | G59: 62.3 | H59: 49.8 | I59: 56.1 | J59: 0 | K59: Fibre | L59: SmartCampus
A60: Mouzaia | B60: 50 | C60: 100 | D60: 100 | E60: 1 | F60: 41.7 | G60: 71 | H60: 25.8 | I60: 52.2 | J60: 0 | K60: Fibre | L60: SmartCampus
A61: Myrha 1 | B61: 24 | C61: 100 | D61: 100 | E61: 3 | F61: 42.2 | G61: 47.7 | H61: 39.3 | I61: 44.4 | J61: 0 | K61: Fibre | L61: SmartCampus
A62: Myrha 2 | B62: 19 | C62: 100 | D62: 100 | E62: 3 | F62: 442.6 | G62: 448.2 | H62: 440.4 | I62: 445.5 | J62: 0 | K62: ADSL | L62: SmartCampus
A63: Nicole Reine Lepaute | B63: 207 | C63: 100 | D63: 100 | E63: 2 | F63: 81.6 | G63: 130.8 | H63: 63.7 | I63: 92.3 | J63: 0 | K63: Fibre | L63: PlanetCampus
A64: Observatoire | B64: 47 | C64: 100 | D64: 100 | E64: 3 | F64: 96.5 | G64: 98.4 | H64: 92.9 | I64: 97.5 | J64: 0 | K64: Fibre | L64: PlanetCampus
A65: ORNANO 1 | B65: 141 | C65: 100 | D65: 100 | E65: 6 | F65: 60.1 | G65: 76.5 | H65: 58.4 | I65: 68.2 | J65: 0 | K65: Fibre | L65: SmartCampus
A66: ORNANO 2 | B66: 77 | C66: 100 | D66: 100 | E66: 4 | F66: 72.6 | G66: 84.2 | H66: 66.8 | I66: 78.1 | J66: 0 | K66: Fibre | L66: SmartCampus
A67: Ourcq 1 | B67: 91 | C67: 100 | D67: 100 | E67: 12 | F67: 55.1 | G67: 75.9 | H67: 46.6 | I67: 65.6 | J67: 0 | K67: Fibre | L67: SmartCampus
A68: Pajol 1 | B68: 56 | C68: 100 | D68: 100 | E68: 2 | F68: 47.1 | G68: 61.3 | H68: 32.3 | I68: 52.6 | J68: 0 | K68: Fibre | L68: SmartCampus
A69: Pajol 2 | B69: 143 | C69: 100 | D69: 100 | E69: 1 | F69: 118.3 | G69: 153.8 | H69: 103.4 | I69: 126.6 | J69: 0 | K69: Fibre | L69: PlanetCampus
A70: Parmentier | B70: 55 | C70: 100 | D70: 100 | E70: 2 | F70: 53.5 | G70: 62.9 | H70: 48.6 | I70: 57.8 | J70: 0 | K70: Fibre | L70: SmartCampus
A71: Philippe de Girard 1 | B71: 59 | C71: 100 | D71: 100 | E71: 2 | F71: 47.3 | G71: 63.2 | H71: 31.3 | I71: 54.9 | J71: 0 | K71: Fibre | L71: SmartCampus
A72: Philippe de Girard 2 | B72: 31 | C72: 100 | D72: 100 | E72: 2 | F72: 45.5 | G72: 56.2 | H72: 39.2 | I72: 50.5 | J72: 0 | K72: Fibre | L72: SmartCampus
A73: Philippe de Girard 3 | B73: 62 | C73: 100 | D73: 100 | E73: 3 | F73: 76.5 | G73: 80.9 | H73: 76.2 | I73: 80.8 | J73: 0 | K73: Fibre | L73: SmartCampus
A74: Pitié Salpétrière | B74: 119 | C74: 100 | D74: 100 | E74: 2 | F74: 53.6 | G74: 81.6 | H74: 36.7 | I74: 63.9 | J74: 0 | K74: Fibre | L74: PlanetCampus
A75: Porte de Vanves | B75: 67 | C75: 100 | D75: 100 | E75: 2 | F75: 62.3 | G75: 79.7 | H75: 55 | I75: 69.1 | J75: 0 | K75: Fibre | L75: SmartCampus
A76: Porte des Poissonniers | B76: 243 | C76: 100 | D76: 100 | E76: 3 | F76: 55.9 | G76: 117.6 | H76: 21.3 | I76: 73.1 | J76: 0 | K76: Fibre | L76: SmartCampus
A77: Poulet | B77: 36 | C77: 100 | D77: 100 | E77: 3 | F77: 41 | G77: 53.5 | H77: 32.9 | I77: 46.1 | J77: 0 | K77: Fibre | L77: SmartCampus
A78: Reims | B78: 41 | C78: 100 | D78: 100 | E78: 2 | F78: 41.8 | G78: 54 | H78: 37.8 | I78: 49.5 | J78: 0 | K78: Fibre | L78: PlanetCampus
A79: Résidence ALESIA | B79: 47 | C79: 100 | D79: 100 | E79: 5 | F79: 74.7 | G79: 84.7 | H79: 70.9 | I79: 79.3 | J79: 0 | K79: Fibre | L79: PlanetCampus
A80: Residence CHAMPOLLION | B80: 18 | C80: 100 | D80: 100 | E80: 2 | F80: 52.2 | G80: 53.6 | H80: 52.2 | I80: 53.6 | J80: 0 | K80: ADSL | L80: PlanetCampus
A81: Résidence Jourdan | B81: 365 | C81: 100 | D81: 100 | E81: 2 | F81: 450.3 | G81: 544 | H81: 416.3 | I81: 480.3 | J81: 0 | K81: Fibre | L81: PlanetCampus
A82: REUILLY | B82: 129 | C82: 100 | D82: 100 | E82: 0 | F82: 90 | G82: 90 | H82: 90 | I82: 90 | J82: 0 | K82: Fibre | L82: SmartCampus
A83: Rollin | B83: 57 | C83: 100 | D83: 100 | E83: 2 | F83: 50 | G83: 64.1 | H83: 46.4 | I83: 55.8 | J83: 0 | K83: Fibre | L83: SmartCampus
A84: Romy Schneider | B84: 13 | C84: 100 | D84: 100 | E84: 3 | F84: 40.8 | G84: 43.6 | H84: 39.6 | I84: 42.6 | J84: 0 | K84: Fibre | L84: SmartCampus
A85: Rosa Parks | B85: 146 | C85: 100 | D85: 100 | E85: 2 | F85: 94.8 | G85: 142.7 | H85: 69.3 | I85: 105.5 | J85: 0 | K85: Fibre | L85: SmartCampus
A86: Saint Jacques - Paris | B86: 55 | C86: 100 | D86: 100 | E86: 2 | F86: 57.5 | G86: 68.6 | H86: 52.9 | I86: 63.1 | J86: 0 | K86: Fibre | L86: SmartCampus
A87: Sarrailh | B87: 184 | C87: 85.74 | D87: 85.74 | E87: 2 | F87: 114.4 | G87: 145.2 | H87: 88.7 | I87: 125.2 | J87: 1 | K87: Fibre | L87: SmartCampus | M87: Le 29/05/20 / responsabilité SmartCampus / Site injoignable / durée : 4514.0 heure(s) : Site injoignable Diagnostic : aucun équipement n'est joignable sur le site Périmètre de l'incident : l'ensemble du site. Impact de l'incident : coupure du service Le site a-t-il été informé? non Alerte Kiwi #11717379 ouverte le 29/05/2020 à 11:06 Résultat : Site de nouveau joignable
A88: Thionville | B88: 97 | C88: 100 | D88: 100 | E88: 28 | F88: 53.1 | G88: 72.8 | H88: 49.1 | I88: 62.2 | J88: 0 | K88: Fibre | L88: SmartCampus
A89: Tombe Issoire | B89: 21 | C89: 100 | D89: 100 | E89: 2 | F89: 43.6 | G89: 47.3 | H89: 39.9 | I89: 45.3 | J89: 0 | K89: Fibre | L89: SmartCampus
A90: Vaugirard | B90: 175 | C90: 100 | D90: 100 | E90: 2 | F90: 105.3 | G90: 146.3 | H90: 90.1 | I90: 120.9 | J90: 0 | K90: Fibre | L90: PlanetCampus

Sheet GRENOBLE
A3: Etablissement | B3: NB Chb | C3: Dispo (resp. SC) (%) | D3: Dispo (toutes resp) (%) | E3: LatMax (ms) | F3: BPMin (Mb/s) | G3: BPMoy (Mb/s) | H3: BPMin 19h-23h (Mb/s) | I3: BPMoy 19h-23h (Mb/s) | J3: Nb de Chb fibrées | K3: Nb de Chb en cours de fibrage
A4: CROUS GRENOBLE | B4: =SUM(B8:B42) -> 8217 | C4: =SUMPRODUCT(B8:B42,C8:C42)/SUM(B8:B42) -> 100 | D4: =SUMPRODUCT(B8:B42,D8:D42)/SUM(B8:B42) -> 99.98561519 | E4: =SUMPRODUCT(B8:B42,E8:E42)/SUM(B8:B42) -> 12.94292321 | F4: =SUMPRODUCT(B8:B42,F8:F42)/SUM(B8:B42) -> 274.7147742 | G4: =SUMPRODUCT(B8:B42,G8:G42)/SUM(B8:B42) -> 345.8168066 | H4: =SUMPRODUCT(B8:B42,H8:H42)/SUM(B8:B42) -> 236.3969088 | I4: =SUMPRODUCT(B8:B42,I8:I42)/SUM(B8:B42) -> 297.4570646 | J4: =SUMIFS(B8:B42,K8:K42,"=Fibre") -> 7817 | K4: =SUMIFS(B8:B42,K8:K42,"=Fibrage en cours") -> 0
J5: =J4/B4 -> 0.9513204332 | K5: =K4/B4 -> 0
A7: Résidence | B7: NB Chb | C7: Dispo (resp. SC) (%) | D7: Dispo (toutes resp) (%) | E7: LatMax (ms) | F7: BPMin (Mb/s) | G7: BPMoy (Mb/s) | H7: BPMin 19h-23h (Mb/s) | I7: BPMoy 19h-23h (Mb/s) | J7: Hors GTR | K7: Collecte | L7: Type de service | M7: Remarques
A8: Amandine | B8: 80 | C8: 100 | D8: 100 | E8: 15 | F8: 69.6 | G8: 80.6 | H8: 62.7 | I8: 73.7 | J8: 0 | K8: Fibre | L8: PlanetCampus
A9: Arsonval | B9: 60 | C9: 100 | D9: 100 | E9: 17 | F9: 63.3 | G9: 66.7 | H9: 62.4 | I9: 65 | J9: 0 | K9: Fibre | L9: SmartCampus
A10: Bourget du Lac DJINN | B10: 120 | C10: 100 | D10: 100 | E10: 20 | F10: 866.1 | G10: 886.9 | H10: 849.3 | I10: 872.7 | J10: 0 | K10: Fibre | L10: SmartCampus
A11: Bourget du Lac LES ARVES | B11: 306 | C11: 100 | D11: 100 | E11: 14 | F11: 825.4 | G11: 867.5 | H11: 802.3 | I11: 837.8 | J11: 0 | K11: Fibre | L11: SmartCampus
A12: Cambridge - Grenoble | B12: 303 | C12: 100 | D12: 100 | E12: 11 | F12: 158.9 | G12: 213.7 | H12: 123.4 | I12: 175.5 | J12: 0 | K12: Fibre | L12: PlanetCampus
A13: Carmagnole | B13: 78 | C13: 100 | D13: 100 | E13: 13 | F13: 62.8 | G13: 76.8 | H13: 55.3 | I13: 67 | J13: 0 | K13: Fibre | L13: PlanetCampus
A14: Clacton | B14: 80 | C14: 100 | D14: 100 | E14: 8 | F14: 57.2 | G14: 75.4 | H14: 47.7 | I14: 63.8 | J14: 0 | K14: Fibre | L14: PlanetCampus
A15: Comte Vert | B15: 170 | C15: 100 | D15: 100 | E15: 15 | F15: 150 | G15: 164.2 | H15: 136.8 | I15: 155.1 | J15: 0 | K15: Fibre | L15: SmartCampus
A16: Derodon | B16: 84 | C16: 100 | D16: 100 | E16: 16 | F16: 63.3 | G16: 78.7 | H16: 51.2 | I16: 67.5 | J16: 0 | K16: Fibre | L16: SmartCampus
A17: Filaos | B17: 89 | C17: 100 | D17: 100 | E17: 16 | F17: 81.8 | G17: 88.6 | H17: 78.8 | I17: 85.1 | J17: 0 | K17: Fibre | L17: SmartCampus
A18: Foyer des Etudiants des Alpes 295 | B18: 126 | C18: 100 | D18: 100 | E18: 13 | F18: 56.9 | G18: 76.6 | H18: 52.2 | I18: 64.1 | J18: 0 | K18: Fibre | L18: SmartCampus
A19: Gabriel Faure | B19: 316 | C19: 100 | D19: 100 | E19: 13 | F19: 138.5 | G19: 185.8 | H19: 125.7 | I19: 157.5 | J19: 0 | K19: Fibre | L19: SmartCampus
A20: Galilée 4032 | B20: 65 | C20: 100 | D20: 100 | E20: 11 | F20: 55.5 | G20: 69.9 | H20: 49.5 | I20: 60.8 | J20: 0 | K20: Fibre | L20: SmartCampus
A21: Halle Brun | B21: 81 | C21: 100 | D21: 100 | E21: 17 | F21: 67.8 | G21: 80.8 | H21: 59.8 | I21: 75.7 | J21: 0 | K21: Fibre | L21: PlanetCampus
A22: Hermite | B22: 16 | C22: 100 | D22: 100 | E22: 14 | F22: 43.4 | G22: 45 | H22: 41.8 | I22: 44.5 | J22: 0 | K22: Fibre | L22: PlanetCampus
A23: Jacob Bellecombette | B23: 165 | C23: 100 | D23: 100 | E23: 13 | F23: 144.2 | G23: 163.9 | H23: 129 | I23: 150.3 | J23: 0 | K23: Fibre | L23: SmartCampus
A24: La Cardinière | B24: 102 | C24: 100 | D24: 100 | E24: 13 | F24: 63.8 | G24: 79.7 | H24: 55 | I24: 70.1 | J24: 0 | K24: Fibre | L24: SmartCampus
A25: La Tronche | B25: 315 | C25: 100 | D25: 100 | E25: 15 | F25: 182.9 | G25: 229.8 | H25: 162.3 | I25: 200.9 | J25: 0 | K25: Fibre | L25: PlanetCampus
A26: Le Chaney | B26: 273 | C26: 100 | D26: 100 | E26: 15 | F26: 128.1 | G26: 170.4 | H26: 97 | I26: 141.7 | J26: 0 | K26: Fibre | L26: SmartCampus
A27: Le Home des etudiants | B27: 141 | C27: 100 | D27: 100 | E27: 10 | F27: 115.1 | G27: 144.6 | H27: 105.8 | I27: 126.4 | J27: 0 | K27: Fibre | L27: PlanetCampus
A28: Les Alpilles | B28: 66 | C28: 100 | D28: 99.89 | E28: 16 | F28: 60 | G28: 70.9 | H28: 55 | I28: 64.8 | J28: 0 | K28: Fibre | L28: PlanetCampus | M28: Le 30/06/21 / responsabilité SmartCampus / Site injoignable / durée : 0.0 heure(s) : Site injoignable Diagnostic : aucun équipement n'est joignable sur le site Périmètre de l'incident : l'ensemble du site. Impact de l'incident : coupure du service Le site a-t-il été informé? non Alerte Kiwi "#21450014" ouverte le 30/06/2021 à 08:18 Résultat : Le service est rétabli sur le site Les Alpilles suite à la prise en charge de l'incident par nos équipes.
A29: Les Moulins Valence | B29: 64 | C29: 100 | D29: 100 | E29: 10 | F29: 65.2 | G29: 71.7 | H29: 62.2 | I29: 68.2 | J29: 0 | K29: Fibre | L29: SmartCampus
A30: Magnanerie | B30: 18 | C30: 100 | D30: 100 | E30: 17 | F30: 44.4 | G30: 50 | H30: 42.4 | I30: 46.6 | J30: 0 | K30: Fibre | L30: PlanetCampus
A31: Maison des étudiants - Grenoble | B31: 256 | C31: 100 | D31: 100 | E31: 11 | F31: 118.8 | G31: 155.9 | H31: 78.8 | I31: 127.1 | J31: 0 | K31: Fibre | L31: PlanetCampus
A32: Marie Reynoard | B32: 400 | C32: 100 | D32: 100 | E32: 0 | F32: 0 | G32: 0 | H32: 0 | I32: 0 | J32: 0 | K32: ADSL | L32: PlanetCampus
A33: Olympique Grenoble | B33: 285 | C33: 100 | D33: 100 | E33: 14 | F33: 138 | G33: 179.4 | H33: 125 | I33: 150.3 | J33: 0 | K33: Fibre | L33: PlanetCampus
A34: Rabot | B34: 488 | C34: 100 | D34: 100 | E34: 14 | F34: 206.8 | G34: 285.6 | H34: 96.2 | I34: 230.2 | J34: 0 | K34: Fibre | L34: SmartCampus
A35: Résidence Berlioz - Domaine universitaire | B35: 900 | C35: 100 | D35: 100 | E35: 13 | F35: 408.8 | G35: 536.5 | H35: 345.6 | I35: 444 | J35: 0 | K35: Fibre | L35: SmartCampus
A36: Résidence Les Nocturnes de Fauré | B36: 150 | C36: 100 | D36: 99.69 | E36: 36 | F36: 94.3 | G36: 116.9 | H36: 87.4 | I36: 103.1 | J36: 0 | K36: Fibre | L36: SmartCampus | M36: Le 16/06/21 / responsabilité SmartCampus / Site injoignable / durée : 2.0 heure(s) : Site injoignable Diagnostic : aucun équipement n'est joignable sur le site Périmètre de l'incident : l'ensemble du site. Impact de l'incident : coupure du service Le site a-t-il été informé? non Alerte Kiwi "#21449349" ouverte le 16/06/2021 à 12:18 Résultat : Action(s) réalisée(s) : Commentaire :
A37: Résidence Les Taillées | B37: 200 | C37: 100 | D37: 100 | E37: 14 | F37: 106.6 | G37: 148.8 | H37: 91.6 | I37: 119.6 | J37: 0 | K37: Fibre | L37: SmartCampus
A38: Résidence Ouest | B38: 1074 | C38: 100 | D38: 99.94 | E38: 13 | F38: 514 | G38: 638.2 | H38: 440.3 | I38: 542.9 | J38: 0 | K38: Fibre | L38: SmartCampus | M38: Le 22/06/21 / responsabilité SmartCampus / Site injoignable / durée : 0.0 heure(s) : Site injoignable Diagnostic : aucun équipement n'est joignable sur le site Périmètre de l'incident : l'ensemble du site. Impact de l'incident : coupure du service Le site a-t-il été informé? non Alerte Kiwi "#21449684" ouverte le 22/06/2021 à 14:24 Résultat : Le service est rétabli sur le site Ouest suite à la prise en charge de l'incident par nos équipes.
A39: Résidences Condillac B et Marie Reynoard | B39: 933 | C39: 100 | D39: 100 | E39: 11 | F39: 445.7 | G39: 610 | H39: 396.4 | I39: 516 | J39: 0 | K39: Fibre | L39: SmartCampus
A40: Simone Veil (CROUS GRENOBLE) | B40: 120 | C40: 100 | D40: 100 | E40: 15 | F40: 131.9 | G40: 161.9 | H40: 110 | I40: 141.6 | J40: 0 | K40: Fibre | L40: SmartCampus
A41: Terralis Pont Carpin | B41: 116 | C41: 100 | D41: 100 | E41: 10 | F41: 108.3 | G41: 124.2 | H41: 104.5 | I41: 115.7 | J41: 0 | K41: Fibre | L41: SmartCampus
A42: Tom Morel | B42: 177 | C42: 100 | D42: 100 | E42: 15 | F42: 94.1 | G42: 148.6 | H42: 57.2 | I42: 105.8 | J42: 0 | K42: Fibre | L42: PlanetCampus

Sheet LILLE
A3: Etablissement | B3: NB Chb | C3: Dispo (resp. SC) (%) | D3: Dispo (toutes resp) (%) | E3: LatMax (ms) | F3: BPMin (Mb/s) | G3: BPMoy (Mb/s) | H3: BPMin 19h-23h (Mb/s) | I3: BPMoy 19h-23h (Mb/s) | J3: Nb de Chb fibrées | K3: Nb de Chb en cours de fibrage
A4: CROUS LILLE | B4: =SUM(B8:B50) -> 10072 | C4: =SUMPRODUCT(B8:B50,C8:C50)/SUM(B8:B50) -> 99.9801807 | D4: =SUMPRODUCT(B8:B50,D8:D50)/SUM(B8:B50) -> 99.97529686 | E4: =SUMPRODUCT(B8:B50,E8:E50)/SUM(B8:B50) -> 6.091540905 | F4: =SUMPRODUCT(B8:B50,F8:F50)/SUM(B8:B50) -> 257.904587 | G4: =SUMPRODUCT(B8:B50,G8:G50)/SUM(B8:B50) -> 323.9639098 | H4: =SUMPRODUCT(B8:B50,H8:H50)/SUM(B8:B50) -> 217.0510524 | I4: =SUMPRODUCT(B8:B50,I8:I50)/SUM(B8:B50) -> 277.1674245 | J4: =SUMIFS(B8:B50,K8:K50,"=Fibre") -> 10052 | K4: =SUMIFS(B8:B50,K8:K50,"=Fibrage en cours") -> 0
J5: =J4/B4 -> 0.9980142971 | K5: =K4/B4 -> 0
A7: Résidence | B7: NB Chb | C7: Dispo (resp. SC) (%) | D7: Dispo (toutes resp) (%) | E7: LatMax (ms) | F7: BPMin (Mb/s) | G7: BPMoy (Mb/s) | H7: BPMin 19h-23h (Mb/s) | I7: BPMoy 19h-23h (Mb/s) | J7: Hors GTR | K7: Collecte | L7: Type de service | M7: Remarques
A8: Albert Camus | B8: 997 | C8: 100 | D8: 100 | E8: 5 | F8: 341 | G8: 473.2 | H8: 273 | I8: 379.6 | J8: 0 | K8: Fibre | L8: SmartCampus
A9: Albert Chatelet | B9: 627 | C9: 100 | D9: 100 | E9: 5 | F9: 292.2 | G9: 402.2 | H9: 231.7 | I9: 321 | J9: 0 | K9: Fibre | L9: SmartCampus
A10: Arsenal des Postes | B10: 109 | C10: 100 | D10: 100 | E10: 5 | F10: 79.8 | G10: 100.7 | H10: 71.7 | I10: 89.8 | J10: 0 | K10: Fibre | L10: PlanetCampus
A11: Bachelard | B11: 827 | C11: 100 | D11: 100 | E11: 5 | F11: 354.3 | G11: 447.2 | H11: 322.1 | I11: 379.7 | J11: 0 | K11: Fibre | L11: SmartCampus
A12: Bas Lievin A | B12: 150 | C12: 100 | D12: 100 | E12: 4 | F12: 68.4 | G12: 103.4 | H12: 57.3 | I12: 78.5 | J12: 0 | K12: Fibre | L12: SmartCampus
A13: Bas Lievin B | B13: 156 | C13: 100 | D13: 100 | E13: 4 | F13: 69.7 | G13: 104.9 | H13: 44.8 | I13: 83.3 | J13: 0 | K13: Fibre | L13: SmartCampus
A14: Bethune - Gerard Philippe | B14: 298 | C14: 100 | D14: 100 | E14: 5 | F14: 538 | G14: 581.6 | H14: 527.7 | I14: 550.8 | J14: 0 | K14: Fibre | L14: SmartCampus
A15: Boulevard de l'Ouest | B15: 210 | C15: 100 | D15: 100 | E15: 5 | F15: 75.7 | G15: 129.5 | H15: 58.3 | I15: 96.4 | J15: 0 | K15: Fibre | L15: SmartCampus
A16: Courmont | B16: 104 | C16: 100 | D16: 100 | E16: 5 | F16: 72.9 | G16: 98 | H16: 64.5 | I16: 80.6 | J16: 0 | K16: Fibre | L16: PlanetCampus
A17: Evariste Galois | B17: 792 | C17: 100 | D17: 100 | E17: 0 | F17: 326.5 | G17: 326.5 | H17: 326.5 | I17: 326.5 | J17: 0 | K17: Fibre | L17: SmartCampus
A18: Famars | B18: 150 | C18: 99.97 | D18: 99.97 | E18: 9 | F18: 92.2 | G18: 122.1 | H18: 84.1 | I18: 103.6 | J18: 0 | K18: Fibre | L18: PlanetCampus | M18: Le 07/06/21 / responsabilité SmartCampus / Site injoignable / durée : 0.0 heure(s) : Incident Général dans le 59, validé avec SFR, en cours de résolution Résultat : Action(s) réalisée(s) : Commentaire : Incident SFR en cours depuis cette heure sur un PE SFR.
A19: Fives | B19: 96 | C19: 100 | D19: 100 | E19: 5 | F19: 94 | G19: 106.2 | H19: 86.1 | I19: 98.4 | J19: 0 | K19: Fibre | L19: SmartCampus
A20: Georges Lefevre | B20: 107 | C20: 100 | D20: 100 | E20: 5 | F20: 86.4 | G20: 106.7 | H20: 73.7 | I20: 96.4 | J20: 0 | K20: Fibre | L20: PlanetCampus
A21: Gustave Ansart | B21: 95 | C21: 99.97 | D21: 99.97 | E21: 8 | F21: 69.5 | G21: 95.9 | H21: 67.7 | I21: 87.3 | J21: 0 | K21: Fibre | L21: SmartCampus | M21: Le 07/06/21 / responsabilité SmartCampus / Site injoignable / durée : 0.0 heure(s) : Incident Général dans le 59, validé avec SFR, en cours de résolution Résultat : Action(s) réalisée(s) : Commentaire : Incident SFR en cours depuis cette heure sur un PE SFR.
A22: Gustave Eiffel | B22: 353 | C22: 100 | D22: 99.87 | E22: 5 | F22: 148.1 | G22: 220.7 | H22: 124.3 | I22: 177.2 | J22: 0 | K22: Fibre | L22: SmartCampus | M22: Le 02/06/21 / responsabilité SmartCampus / Site injoignable / durée : 0.0 heure(s) : Site injoignable Diagnostic : aucun équipement n'est joignable sur le site Périmètre de l'incident : l'ensemble du site. Impact de l'incident : coupure du service Le site a-t-il été informé? non Alerte Kiwi "#21448644" ouverte le 02/06/2021 à 09:02 Résultat : Le service est rétabli sur le site Gustave Eiffel suite à la prise en charge de l'incident par nos équipes.
A23: Helene Boucher Villeneuve | B23: 780 | C23: 100 | D23: 100 | E23: 5 | F23: 375.6 | G23: 452.5 | H23: 341.9 | I23: 400 | J23: 0 | K23: Fibre | L23: SmartCampus
A24: Ilot gare | B24: 217 | C24: 100 | D24: 100 | E24: 5 | F24: 67.7 | G24: 123 | H24: 51.8 | I24: 83.8 | J24: 0 | K24: Fibre | L24: SmartCampus
A25: Jean Mermoz A et B (Lille) | B25: 231 | C25: 99.27 | D25: 99.27 | E25: 5 | F25: 193.7 | G25: 235.7 | H25: 167.7 | I25: 204.1 | J25: 1 | K25: Fibre | L25: PlanetCampus | M25: Le 04/06/21 / responsabilité SmartCampus / Site injoignable / durée : 5.0 heure(s) : Site injoignable / service Wifirst totalement indisponible Diagnostic : Les équipements Wifirst sont injoignables ou les services Wifirst ne sont plus opérationnels Périmètre : l’ensemble du site Impact : Service interrompu Résultat : Action(s) réalisée(s) : ticket opé Commentaire :Information clôture : 0PE/RES - Bonjour, le service est rétabli suite à notre réparation dans une BPE de la boucle locale fibreNous restons en attente de votre confirmationSans retour de votre part, le ticket sera clos automatiquementCordialement.
A26: Jean ZAY - Lille | B26: 187 | C26: 100 | D26: 100 | E26: 7 | F26: 41.7 | G26: 66 | H26: 24.8 | I26: 50.7 | J26: 0 | K26: Fibre | L26: SmartCampus
A27: Jules Mousseron | B27: 788 | C27: 99.97 | D27: 99.97 | E27: 8 | F27: 663 | G27: 802.6 | H27: 440.6 | I27: 692.3 | J27: 0 | K27: Fibre | L27: PlanetCampus | M27: Le 07/06/21 / responsabilité SmartCampus / Site injoignable / durée : 0.0 heure(s) : Incident Général dans le 59, validé avec SFR, en cours de résolution Résultat : Action(s) réalisée(s) : Commentaire : Incident SFR en cours depuis cette heure sur un PE SFR.
A28: L'Artois | B28: 96 | C28: 100 | D28: 100 | E28: 6 | F28: 104.3 | G28: 123.8 | H28: 100.1 | I28: 111.2 | J28: 0 | K28: Fibre | L28: PlanetCampus
A29: La Citadelle | B29: 34 | C29: 100 | D29: 100 | E29: 6 | F29: 53 | G29: 61.6 | H29: 45.3 | I29: 55.6 | J29: 0 | K29: Fibre | L29: PlanetCampus
A30: Le Corbusier | B30: 100 | C30: 100 | D30: 100 | E30: 5 | F30: 86.3 | G30: 105 | H30: 83.1 | I30: 96.7 | J30: 0 | K30: Fibre | L30: PlanetCampus
A31: Les Tertiales | B31: 66 | C31: 100 | D31: 100 | E31: 5 | F31: 130.8 | G31: 181.2 | H31: 116.7 | I31: 148.6 | J31: 0 | K31: Fibre | L31: SmartCampus
A32: Les Tilleuls | B32: 112 | C32: 100 | D32: 100 | E32: 5 | F32: 69 | G32: 97.5 | H32: 49.8 | I32: 79.2 | J32: 0 | K32: Fibre | L32: PlanetCampus
A33: Maupassant | B33: 337 | C33: 100 | D33: 100 | E33: 5 | F33: 200 | G33: 261.4 | H33: 162.4 | I33: 212.5 | J33: 0 | K33: Fibre | L33: SmartCampus
A34: Moulin parc centre | B34: 119 | C34: 100 | D34: 100 | E34: 5 | F34: 126.1 | G34: 143.1 | H34: 116.6 | I34: 130.1 | J34: 0 | K34: Fibre | L34: SmartCampus
A35: Pont de bois | B35: 277 | C35: 100 | D35: 100 | E35: 5 | F35: 127.3 | G35: 188.5 | H35: 112.3 | I35: 146.1 | J35: 0 | K35: Fibre | L35: SmartCampus
A36: Pythagore | B36: 51 | C36: 100 | D36: 100 | E36: 8 | F36: 70.2 | G36: 75.3 | H36: 67.8 | I36: 73.5 | J36: 0 | K36: Fibre | L36: SmartCampus
A37: Résidence Didier | B37: 150 | C37: 100 | D37: 100 | E37: 6 | F37: 87.6 | G37: 118.8 | H37: 74.4 | I37: 97.7 | J37: 0 | K37: Fibre | L37: SmartCampus
A38: Residence Evariste Galois 2 | B38: 344 | C38: 100 | D38: 100 | E38: 5 | F38: 107.8 | G38: 189.3 | H38: 94.3 | I38: 138 | J38: 0 | K38: Fibre | L38: PlanetCampus
A39: Résidence Gambetta | B39: 54 | C39: 100 | D39: 100 | E39: 20 | F39: 53.6 | G39: 63.4 | H39: 52.4 | I39: 58.5 | J39: 0 | K39: Fibre | L39: PlanetCampus
A40: Résidence Grand Rue | B40: 38 | C40: 100 | D40: 100 | E40: 7 | F40: 65.4 | G40: 72.8 | H40: 59.1 | I40: 68.5 | J40: 0 | K40: Fibre | L40: PlanetCampus
A41: Résidence La Liberté | B41: 19 | C41: 100 | D41: 100 | E41: 7 | F41: 35.7 | G41: 44 | H41: 33.8 | I41: 42.1 | J41: 0 | K41: Fibre | L41: PlanetCampus
A42: Résidence Liévin | B42: 50 | C42: 100 | D42: 100 | E42: 6 | F42: 73 | G42: 78.7 | H42: 70.3 | I42: 75.9 | J42: 0 | K42: Fibre | L42: PlanetCampus
A43: Résidence René Barjavel | B43: 120 | C43: 100 | D43: 100 | E43: 6 | F43: 135.9 | G43: 154.9 | H43: 127.3 | I43: 144.8 | J43: 0 | K43: Fibre | L43: PlanetCampus
A44: Résidence universitaire de Lens | B44: 100 | C44: 100 | D44: 100 | E44: 5 | F44: 54.9 | G44: 89.4 | H44: 40.1 | I44: 64 | J44: 0 | K44: Fibre | L44: SmartCampus
A45: Robespierre | B45: 297 | C45: 100 | D45: 100 | E45: 5 | F45: 115.1 | G45: 165.2 | H45: 95.9 | I45: 135.3 | J45: 0 | K45: Fibre | L45: SmartCampus
A46: Saint Roch - Bleriot | B46: 55 | C46: 100 | D46: 99.94 | E46: 14 | F46: 75.9 | G46: 84.5 | H46: 73.3 | I46: 79.6 | J46: 0 | K46: Fibre | L46: PlanetCampus | M46: Le 24/06/21 / responsabilité SmartCampus / Site injoignable / durée : 0.0 heure(s) : Site injoignable Diagnostic : aucun équipement n'est joignable sur le site Périmètre de l'incident : l'ensemble du site. Impact de l'incident : coupure du service Le site a-t-il été informé? non Alerte Kiwi "#21449791" ouverte le 24/06/2021 à 11:08 Résultat : Le service est rétabli sur le site Saint Roch (Bleriot) suite à la prise en charge de l'incident par nos équipes.
A47: Sainte Barbe | B47: 20 | C47: 100 | D47: 100 | E47: 11 | F47: 446 | G47: 448.7 | H47: 445.6 | I47: 448.1 | J47: 0 | K47: ADSL | L47: PlanetCampus
A48: Templiers | B48: 41 | C48: 100 | D48: 100 | E48: 8 | F48: 67.3 | G48: 75.4 | H48: 66.2 | I48: 71.7 | J48: 0 | K48: Fibre | L48: PlanetCampus
A49: Tour Danrémont | B49: 18 | C49: 100 | D49: 100 | E49: 9 | F49: 43.5 | G49: 46.4 | H49: 42.1 | I49: 44.9 | J49: 0 | K49: Fibre | L49: PlanetCampus
A50: Triolo A-B-C | B50: 300 | C50: 100 | D50: 100 | E50: 36 | F50: 149.9 | G50: 182.1 | H50: 145.4 | I50: 159.1 | J50: 0 | K50: Fibre | L50: SmartCampus

Sheet LIMOGES
A3: Etablissement | B3: NB Chb | C3: Dispo (resp. SC) (%) | D3: Dispo (toutes resp) (%) | E3: LatMax (ms) | F3: BPMin (Mb/s) | G3: BPMoy (Mb/s) | H3: BPMin 19h-23h (Mb/s) | I3: BPMoy 19h-23h (Mb/s) | J3: Nb de Chb fibrées | K3: Nb de Chb en cours de fibrage
A4: CROUS LIMOGES | B4: =SUM(B8:B15) -> 1765 | C4: =SUMPRODUCT(B8:B15,C8:C15)/SUM(B8:B15) -> 100 | D4: =SUMPRODUCT(B8:B15,D8:D15)/SUM(B8:B15) -> 99.98675921 | E4: =SUMPRODUCT(B8:B15,E8:E15)/SUM(B8:B15) -> 19.39150142 | F4: =SUMPRODUCT(B8:B15,F8:F15)/SUM(B8:B15) -> 378.6236827 | G4: =SUMPRODUCT(B8:B15,G8:G15)/SUM(B8:B15) -> 459.4033994 | H4: =SUMPRODUCT(B8:B15,H8:H15)/SUM(B8:B15) -> 350.1156941 | I4: =SUMPRODUCT(B8:B15,I8:I15)/SUM(B8:B15) -> 399.585779 | J4: =SUMIFS(B8:B15,K8:K15,"=Fibre") -> 1765 | K4: =SUMIFS(B8:B15,K8:K15,"=Fibrage en cours") -> 0
J5: =J4/B4 -> 1 | K5: =K4/B4 -> 0
A7: Résidence | B7: NB Chb | C7: Dispo (resp. SC) (%) | D7: Dispo (toutes resp) (%) | E7: LatMax (ms) | F7: BPMin (Mb/s) | G7: BPMoy (Mb/s) | H7: BPMin 19h-23h (Mb/s) | I7: BPMoy 19h-23h (Mb/s) | J7: Hors GTR | K7: Collecte | L7: Type de service | M7: Remarques
A8: Beaublanc | B8: 56 | C8: 100 | D8: 100 | E8: 13 | F8: 60.2 | G8: 70.9 | H8: 57.1 | I8: 66 | J8: 0 | K8: Fibre | L8: PlanetCampus
A9: Brive | B9: 170 | C9: 100 | D9: 100 | E9: 15 | F9: 862.6 | G9: 887.2 | H9: 854.6 | I9: 870.5 | J9: 0 | K9: Fibre | L9: SmartCampus
A10: Camille Guérin et les hauts de Venteaux | B10: 571 | C10: 100 | D10: 99.97 | E10: 21 | F10: 155.2 | G10: 258.8 | H10: 112.1 | I10: 175.9 | J10: 0 | K10: Fibre | L10: PlanetCampus | M10: Le 15/06/21 / responsabilité SmartCampus / Site injoignable / durée : 0.0 heure(s) : Site injoignable Diagnostic : aucun équipement n'est joignable sur le site Périmètre de l'incident : l'ensemble du site. Impact de l'incident : coupure du service Le site a-t-il été informé? non Alerte Kiwi "#21449300" ouverte le 15/06/2021 à 10:20 Résultat : Le service est rétabli sur le site Camille Guérin suite à la prise en charge de l'incident par nos équipes.
A11: Cité universitaire La Borie | B11: 611 | C11: 100 | D11: 100 | E11: 22 | F11: 662 | G11: 783.4 | H11: 626.1 | I11: 697.9 | J11: 0 | K11: Fibre | L11: SmartCampus
A12: Jacobins | B12: 76 | C12: 100 | D12: 100 | E12: 21 | F12: 48.1 | G12: 68.1 | H12: 34.6 | I12: 53.8 | J12: 0 | K12: Fibre | L12: PlanetCampus
A13: L'Aurence A | B13: 81 | C13: 100 | D13: 100 | E13: 15 | F13: 64 | G13: 81.6 | H13: 55.2 | I13: 71.3 | J13: 0 | K13: Fibre | L13: SmartCampus
A14: L'Aurence B | B14: 96 | C14: 100 | D14: 100 | E14: 13 | F14: 96.3 | G14: 96.3 | H14: 96.3 | I14: 96.3 | J14: 0 | K14: Fibre | L14: SmartCampus
A15: residence Ester | B15: 104 | C15: 100 | D15: 99.94 | E15: 14 | F15: 68 | G15: 82.6 | H15: 63.2 | I15: 73.3 | J15: 0 | K15: Fibre | L15: PlanetCampus | M15: Le 18/06/21 / responsabilité SmartCampus / Site injoignable / durée : 0.0 heure(s) : Site injoignable Diagnostic : aucun équipement n'est joignable sur le site Périmètre de l'incident : l'ensemble du site. Impact de l'incident : coupure du service Le site a-t-il été informé? non Alerte Kiwi "#21449467" ouverte le 18/06/2021 à 09:58 Résultat : Le service est rétabli sur le site Résidence Ester suite à la prise en charge de l'incident par nos équipes.

Sheet LORRAINE
A3: Etablissement | B3: NB Chb | C3: Dispo (resp. SC) (%) | D3: Dispo (toutes resp) (%) | E3: LatMax (ms) | F3: BPMin (Mb/s) | G3: BPMoy (Mb/s) | H3: BPMin 19h-23h (Mb/s) | I3: BPMoy 19h-23h (Mb/s) | J3: Nb de Chb fibrées | K3: Nb de Chb en cours de fibrage
A4: CROUS LORRAINE | B4: =SUM(B8:B8) -> 32 | C4: =SUMPRODUCT(B8:B8,C8:C8)/SUM(B8:B8) -> 100 | D4: =SUMPRODUCT(B8:B8,D8:D8)/SUM(B8:B8) -> 100 | E4: =SUMPRODUCT(B8:B8,E8:E8)/SUM(B8:B8) -> 59 | F4: =SUMPRODUCT(B8:B8,F8:F8)/SUM(B8:B8) -> 8.8 | G4: =SUMPRODUCT(B8:B8,G8:G8)/SUM(B8:B8) -> 9.9 | H4: =SUMPRODUCT(B8:B8,H8:H8)/SUM(B8:B8) -> 8.8 | I4: =SUMPRODUCT(B8:B8,I8:I8)/SUM(B8:B8) -> 9.8 | J4: =SUMIFS(B8:B8,K8:K8,"=Fibre") -> 0 | K4: =SUMIFS(B8:B8,K8:K8,"=Fibrage en cours") -> 0
J5: =J4/B4 -> 0 | K5: =K4/B4 -> 0
A7: Résidence | B7: NB Chb | C7: Dispo (resp. SC) (%) | D7: Dispo (toutes resp) (%) | E7: LatMax (ms) | F7: BPMin (Mb/s) | G7: BPMoy (Mb/s) | H7: BPMin 19h-23h (Mb/s) | I7: BPMoy 19h-23h (Mb/s) | J7: Hors GTR | K7: Collecte | L7: Type de service | M7: Remarques
A8: Douaumont | B8: 32 | C8: 100 | D8: 100 | E8: 59 | F8: 8.8 | G8: 9.9 | H8: 8.8 | I8: 9.8 | J8: 0 | K8: ADSL | L8: SmartCampus

Sheet LYON
A3: Etablissement | B3: NB Chb | C3: Dispo (resp. SC) (%) | D3: Dispo (toutes resp) (%) | E3: LatMax (ms) | F3: BPMin (Mb/s) | G3: BPMoy (Mb/s) | H3: BPMin 19h-23h (Mb/s) | I3: BPMoy 19h-23h (Mb/s) | J3: Nb de Chb fibrées | K3: Nb de Chb en cours de fibrage
A4: CROUS LYON | B4: =SUM(B8:B56) -> 9025 | C4: =SUMPRODUCT(B8:B56,C8:C56)/SUM(B8:B56) -> 99.93943934 | D4: =SUMPRODUCT(B8:B56,D8:D56)/SUM(B8:B56) -> 99.89916233 | E4: =SUMPRODUCT(B8:B56,E8:E56)/SUM(B8:B56) -> 12.01606648 | F4: =SUMPRODUCT(B8:B56,F8:F56)/SUM(B8:B56) -> 139.5577729 | G4: =SUMPRODUCT(B8:B56,G8:G56)/SUM(B8:B56) -> 181.9248199 | H4: =SUMPRODUCT(B8:B56,H8:H56)/SUM(B8:B56) -> 117.9929861 | I4: =SUMPRODUCT(B8:B56,I8:I56)/SUM(B8:B56) -> 153.057795 | J4: =SUMIFS(B8:B56,K8:K56,"=Fibre") -> 9025 | K4: =SUMIFS(B8:B56,K8:K56,"=Fibrage en cours") -> 0
J5: =J4/B4 -> 1 | K5: =K4/B4 -> 0
A7: Résidence | B7: NB Chb | C7: Dispo (resp. SC) (%) | D7: Dispo (toutes resp) (%) | E7: LatMax (ms) | F7: BPMin (Mb/s) | G7: BPMoy (Mb/s) | H7: BPMin 19h-23h (Mb/s) | I7: BPMoy 19h-23h (Mb/s) | J7: Hors GTR | K7: Collecte | L7: Type de service | M7: Remarques
A8: Aimé Cesaire | B8: 122 | C8: 100 | D8: 100 | E8: 9 | F8: 75.9 | G8: 103.4 | H8: 66.2 | I8: 86.5 | J8: 0 | K8: Fibre | L8: PlanetCampus
A9: Allix Arche Agripa | B9: 283 | C9: 100 | D9: 100 | E9: 9 | F9: 154.5 | G9: 216.2 | H9: 102.9 | I9: 171 | J9: 0 | K9: Fibre | L9: SmartCampus
A10: Allix Bat K | B10: 144 | C10: 100 | D10: 99.5 | E10: 9 | F10: 84.8 | G10: 113.1 | H10: 62.3 | I10: 90.7 | J10: 0 | K10: Fibre | L10: SmartCampus | M10: Le 18/06/21 / responsabilité SmartCampus / Site injoignable / durée : 3.0 heure(s) : Site injoignable Diagnostic : aucun équipement n'est joignable sur le site Périmètre de l'incident : l'ensemble du site. Impact de l'incident : coupure du service Le site a-t-il été informé? non Alerte Kiwi "#21449497" ouverte le 19/06/2021 à 00:32 Résultat : Le service est rétabli sur le site Allix (bat K) suite à la prise en charge de l'incident par nos équipes.
A11: Allix Bât L | B11: 104 | C11: 100 | D11: 100 | E11: 9 | F11: 61.2 | G11: 88.4 | H11: 53.6 | I11: 71.3 | J11: 0 | K11: Fibre | L11: PlanetCampus
A12: Allix D | B12: 142 | C12: 100 | D12: 100 | E12: 9 | F12: 92.8 | G12: 112 | H12: 76.1 | I12: 99.2 | J12: 0 | K12: Fibre | L12: SmartCampus
A13: Allix E | B13: 142 | C13: 100 | D13: 100 | E13: 9 | F13: 85.1 | G13: 111.5 | H13: 68.6 | I13: 94.3 | J13: 0 | K13: Fibre | L13: SmartCampus
A14: Allix F | B14: 100 | C14: 100 | D14: 100 | E14: 9 | F14: 54.8 | G14: 76.8 | H14: 41.3 | I14: 61.4 | J14: 0 | K14: Fibre | L14: SmartCampus
A15: Allix Fort Sainte-Irénée | B15: 160 | C15: 100 | D15: 100 | E15: 9 | F15: 151.4 | G15: 169.4 | H15: 141.7 | I15: 158.7 | J15: 0 | K15: Fibre | L15: PlanetCampus
A16: Allix G | B16: 204 | C16: 100 | D16: 100 | E16: 9 | F16: 133.4 | G16: 140.5 | H16: 127.4 | I16: 136.9 | J16: 0 | K16: Fibre | L16: SmartCampus
A17: Allix H | B17: 194 | C17: 100 | D17: 99.92 | E17: 9 | F17: 94.7 | G17: 116.8 | H17: 88.5 | I17: 104 | J17: 0 | K17: Fibre | L17: SmartCampus | M17: Le 16/06/21 / responsabilité SmartCampus / Site injoignable / durée : 0.0 heure(s) : Site injoignable / service Wifirst totalement indisponible Diagnostic : Les équipements Wifirst sont injoignables ou les services Wifirst ne sont plus opérationnels Périmètre : l’ensemble du site Impact : Service interrompu Résultat : site à nouveau joignable
A18: Altheas | B18: 207 | C18: 100 | D18: 100 | E18: 12 | F18: 104.1 | G18: 135.6 | H18: 89.3 | I18: 113.2 | J18: 0 | K18: Fibre | L18: SmartCampus
A19: Benjamin Delessert | B19: 322 | C19: 100 | D19: 100 | E19: 9 | F19: 121.2 | G19: 186.2 | H19: 95.1 | I19: 139.5 | J19: 0 | K19: Fibre | L19: PlanetCampus
A20: Bourg en Bresse Crous | B20: 59 | C20: 100 | D20: 100 | E20: 88 | F20: 2.1 | G20: 5 | H20: 1.7 | I20: 3.4 | J20: 0 | K20: Fibre | L20: PlanetCampus
A21: Bugeaud | B21: 69 | C21: 100 | D21: 100 | E21: 13 | F21: 65.4 | G21: 80.6 | H21: 59.2 | I21: 71.1 | J21: 0 | K21: Fibre | L21: SmartCampus
A22: Confluence | B22: 89 | C22: 100 | D22: 100 | E22: 10 | F22: 37.2 | G22: 77.4 | H22: 36.1 | I22: 69.2 | J22: 0 | K22: Fibre | L22: PlanetCampus
A23: Cotonne | B23: 305 | C23: 100 | D23: 100 | E23: 0 | F23: 130.5 | G23: 130.5 | H23: 130.5 | I23: 130.5 | J23: 0 | K23: Fibre | L23: SmartCampus
A24: Croix du Sud | B24: 193 | C24: 100 | D24: 100 | E24: 16 | F24: 87.4 | G24: 127 | H24: 59.9 | I24: 99.3 | J24: 0 | K24: Fibre | L24: PlanetCampus
A25: Einstein | B25: 241 | C25: 100 | D25: 100 | E25: 6 | F25: 108.3 | G25: 162.4 | H25: 93.7 | I25: 125.6 | J25: 0 | K25: Fibre | L25: SmartCampus
A26: Garibaldi Lyon | B26: 199 | C26: 100 | D26: 100 | E26: 9 | F26: 119.3 | G26: 156.2 | H26: 106.9 | I26: 131.4 | J26: 0 | K26: Fibre | L26: PlanetCampus
A27: Georges Rinck | B27: 41 | C27: 100 | D27: 100 | E27: 10 | F27: 49.6 | G27: 56.8 | H27: 47.7 | I27: 54.5 | J27: 0 | K27: Fibre | L27: PlanetCampus
A28: Jacques Cavalier | B28: 262 | C28: 100 | D28: 100 | E28: 9 | F28: 91.9 | G28: 141.4 | H28: 73.4 | I28: 108.4 | J28: 0 | K28: Fibre | L28: SmartCampus
A29: Jaurés | B29: 210 | C29: 100 | D29: 100 | E29: 16 | F29: 100.8 | G29: 141.7 | H29: 73.7 | I29: 112.7 | J29: 0 | K29: Fibre | L29: PlanetCampus
A30: Jussieu B | B30: 144 | C30: 100 | D30: 100 | E30: 7 | F30: 77 | G30: 104.9 | H30: 61.8 | I30: 85.5 | J30: 0 | K30: Fibre | L30: SmartCampus
A31: Jussieu C | B31: 132 | C31: 100 | D31: 100 | E31: 14 | F31: 68.3 | G31: 96.2 | H31: 58.7 | I31: 78.8 | J31: 0 | K31: Fibre | L31: SmartCampus
A32: Jussieu D | B32: 144 | C32: 100 | D32: 100 | E32: 16 | F32: 89.3 | G32: 110.2 | H32: 82.5 | I32: 96.6 | J32: 0 | K32: Fibre | L32: SmartCampus
A33: Jussieu E | B33: 146 | C33: 100 | D33: 100 | E33: 6 | F33: 80.4 | G33: 107.6 | H33: 71.9 | I33: 89.9 | J33: 0 | K33: Fibre | L33: PlanetCampus
A34: Jussieu F | B34: 144 | C34: 100 | D34: 100 | E34: 15 | F34: 107.3 | G34: 119.2 | H34: 101.4 | I34: 112.3 | J34: 0 | K34: Fibre | L34: SmartCampus
A35: Jussieu Studios | B35: 163 | C35: 100 | D35: 100 | E35: 6 | F35: 88.9 | G35: 123.6 | H35: 77.8 | I35: 105.7 | J35: 0 | K35: Fibre | L35: PlanetCampus
A36: La Duchere | B36: 126 | C36: 100 | D36: 100 | E36: 10 | F36: 142 | G36: 164.7 | H36: 137.2 | I36: 150.1 | J36: 0 | K36: Fibre | L36: PlanetCampus
A37: La Métare | B37: 271 | C37: 100 | D37: 100 | E37: 30 | F37: 128.5 | G37: 170.4 | H37: 112.9 | I37: 141.7 | J37: 0 | K37: Fibre | L37: PlanetCampus
A38: Les Antonins | B38: 404 | C38: 100 | D38: 100 | E38: 13 | F38: 201.5 | G38: 251.6 | H38: 177.4 | I38: 217.6 | J38: 0 | K38: Fibre | L38: SmartCampus
A39: Les Quais | B39: 201 | C39: 100 | D39: 100 | E39: 9 | F39: 75.6 | G39: 140.1 | H39: 52.6 | I39: 99.4 | J39: 0 | K39: Fibre | L39: PlanetCampus
A40: Lirondelle | B40: 99 | C40: 100 | D40: 100 | E40: 9 | F40: 52.3 | G40: 72.6 | H40: 42.7 | I40: 59.8 | J40: 0 | K40: Fibre | L40: PlanetCampus
A41: Madeleine Lyon | B41: 343 | C41: 100 | D41: 100 | E41: 28 | F41: 789 | G41: 845.1 | H41: 756.8 | I41: 801.5 | J41: 0 | K41: Fibre | L41: PlanetCampus
A42: Maison des Arts CROUS | B42: 30 | C42: 100 | D42: 100 | E42: 19 | F42: 73.8 | G42: 83.9 | H42: 70.9 | I42: 79.3 | J42: 0 | K42: Fibre | L42: PlanetCampus
A43: Mermoz | B43: 819 | C43: 100 | D43: 100 | E43: 9 | F43: 150.3 | G43: 253.9 | H43: 96.7 | I43: 182.8 | J43: 0 | K43: Fibre | L43: PlanetCampus
A44: Meygret | B44: 74 | C44: 100 | D44: 100 | E44: 12 | F44: 62.3 | G44: 77.9 | H44: 57.5 | I44: 67.8 | J44: 0 | K44: Fibre | L44: PlanetCampus
A45: Monod | B45: 245 | C45: 100 | D45: 100 | E45: 9 | F45: 204.8 | G45: 240.5 | H45: 183.3 | I45: 214.7 | J45: 0 | K45: Fibre | L45: PlanetCampus
A46: Paradin | B46: 300 | C46: 100 | D46: 99.86 | E46: 16 | F46: 130.7 | G46: 180.7 | H46: 106.4 | I46: 144.6 | J46: 0 | K46: Fibre | L46: SmartCampus | M46: Le 10/06/21 / responsabilité SmartCampus / Site injoignable / durée : 0.0 heure(s) : Site injoignable Diagnostic : aucun équipement n'est joignable sur le site Périmètre de l'incident : l'ensemble du site. Impact de l'incident : coupure du service Le site a-t-il été informé? non Alerte Kiwi "#21449109" ouverte le 10/06/2021 à 11:56 Résultat : Le service est rétabli sur le site Paradin suite à la prise en charge de l'incident par nos équipes. Le 11/06/21 / responsabilité SmartCampus / Site injoignable / durée : 0.0 heure(s) : Site injoignable Diagnostic : aucun équipement n'est joignable sur le site Périmètre de l'incident : l'ensemble du site. Impact de l'incident : coupure du service Le site a-t-il été informé? non Alerte Kiwi "#21449160" ouverte le 11/06/2021 à 11:38 Résultat : Le service est rétabli sur le site Paradin suite à la prise en charge de l'incident par nos équipes.
A47: Parc Blandan | B47: 257 | C47: 100 | D47: 100 | E47: 9 | F47: 87.7 | G47: 135.6 | H47: 52.6 | I47: 102.3 | J47: 0 | K47: Fibre | L47: PlanetCampus
A48: Paul Bert | B48: 32 | C48: 100 | D48: 100 | E48: 12 | F48: 81.8 | G48: 88.2 | H48: 79.3 | I48: 84.9 | J48: 0 | K48: Fibre | L48: SmartCampus
A49: Puvis | B49: 298 | C49: 100 | D49: 99.24 | E49: 13 | F49: 122.1 | G49: 173.4 | H49: 81.9 | I49: 134.4 | J49: 1 | K49: Fibre | L49: PlanetCampus | M49: Le 11/06/21 / responsabilité SmartCampus / Site injoignable / durée : 5.0 heure(s) : Site injoignable Diagnostic : aucun équipement n'est joignable sur le site Périmètre de l'incident : l'ensemble du site. Impact de l'incident : coupure du service Le site a-t-il été informé? non Alerte Kiwi "#21449156" ouverte le 11/06/2021 à 08:56 Résultat : Le service est rétabli sur le site Puvis suite à la prise en charge de l'incident par nos équipes.
A50: Résidence Chavanelle | B50: 58 | C50: 100 | D50: 100 | E50: 14 | F50: 65.6 | G50: 79.8 | H50: 57.8 | I50: 72 | J50: 0 | K50: Fibre | L50: PlanetCampus
A51: Résidence Jussieu Archimède | B51: 206 | C51: 100 | D51: 100 | E51: 21 | F51: 78.6 | G51: 137 | H51: 59.9 | I51: 98.4 | J51: 0 | K51: Fibre | L51: PlanetCampus
A52: Résidence Les Girondins | B52: 125 | C52: 100 | D52: 99.94 | E52: 9 | F52: 61.2 | G52: 94.5 | H52: 20.8 | I52: 73.6 | J52: 0 | K52: Fibre | L52: PlanetCampus | M52: Le 24/06/21 / responsabilité SmartCampus / Site injoignable / durée : 0.0 heure(s) : Site injoignable Diagnostic : aucun équipement n'est joignable sur le site Périmètre de l'incident : l'ensemble du site. Impact de l'incident : coupure du service Le site a-t-il été informé? non Alerte Kiwi "#21449823" ouverte le 24/06/2021 à 21:06 Résultat : Le service est rétabli sur le site Résidence Les Girondins suite à la prise en charge de l'incident par nos équipes.
A53: Résidence Philomène Magnin | B53: 122 | C53: 95.52 | D53: 95.52 | E53: 9 | F53: 130.5 | G53: 157.5 | H53: 120.2 | I53: 140.8 | J53: 1 | K53: Fibre | L53: PlanetCampus | M53: Le 15/06/21 / responsabilité SmartCampus / Site injoignable / durée : 32.0 heure(s) : Site injoignable Diagnostic : aucun équipement n'est joignable sur le site Périmètre de l'incident : l'ensemble du site. Impact de l'incident : coupure du service Le site a-t-il été informé? non Alerte Kiwi "#21449320" ouverte le 15/06/2021 à 15:44 Résultat : Action(s) réalisée(s) : Commentaire :
A54: Roanne Crous | B54: 80 | C54: 100 | D54: 100 | E54: 12 | F54: 69.4 | G54: 81.6 | H54: 66.2 | I54: 75 | J54: 0 | K54: Fibre | L54: PlanetCampus
A55: Trefilerie | B55: 227 | C55: 100 | D55: 100 | E55: 9 | F55: 141 | G55: 163.2 | H55: 132.4 | I55: 149.1 | J55: 0 | K55: Fibre | L55: PlanetCampus
A56: Voltaire Lyon | B56: 43 | C56: 100 | D56: 100 | E56: 9 | F56: 77.8 | G56: 85.3 | H56: 65.8 | I56: 81.4 | J56: 0 | K56: Fibre | L56: SmartCampus

Sheet MONTPELLIER
A3: Etablissement | B3: NB Chb | C3: Dispo (resp. SC) (%) | D3: Dispo (toutes resp) (%) | E3: LatMax (ms) | F3: BPMin (Mb/s) | G3: BPMoy (Mb/s) | H3: BPMin 19h-23h (Mb/s) | I3: BPMoy 19h-23h (Mb/s) | J3: Nb de Chb fibrées | K3: Nb de Chb en cours de fibrage
A4: CROUS MONTPELLIER | B4: =SUM(B8:B83) -> 10869 | C4: =SUMPRODUCT(B8:B83,C8:C83)/SUM(B8:B83) -> 100 | D4: =SUMPRODUCT(B8:B83,D8:D83)/SUM(B8:B83) -> 99.88174349 | E4: =SUMPRODUCT(B8:B83,E8:E83)/SUM(B8:B83) -> 18.07424786 | F4: =SUMPRODUCT(B8:B83,F8:F83)/SUM(B8:B83) -> 64.73803478 | G4: =SUMPRODUCT(B8:B83,G8:G83)/SUM(B8:B83) -> 107.4032294 | H4: =SUMPRODUCT(B8:B83,H8:H83)/SUM(B8:B83) -> 48.19559297 | I4: =SUMPRODUCT(B8:B83,I8:I83)/SUM(B8:B83) -> 86.84074892 | J4: =SUMIFS(B8:B83,K8:K83,"=Fibre") -> 10619 | K4: =SUMIFS(B8:B83,K8:K83,"=Fibrage en cours") -> 0
J5: =J4/B4 -> 0.9769988039 | K5: =K4/B4 -> 0
A7: Résidence | B7: NB Chb | C7: Dispo (resp. SC) (%) | D7: Dispo (toutes resp) (%) | E7: LatMax (ms) | F7: BPMin (Mb/s) | G7: BPMoy (Mb/s) | H7: BPMin 19h-23h (Mb/s) | I7: BPMoy 19h-23h (Mb/s) | J7: Hors GTR | K7: Collecte | L7: Type de service | M7: Remarques
A8: Agropolis K-J | B8: 204 | C8: 100 | D8: 100 | E8: 21 | F8: 126.5 | G8: 145.6 | H8: 115.6 | I8: 135.8 | J8: 0 | K8: Fibre | L8: SmartCampus
A9: Alain Savary (bat B à G) | B9: 333 | C9: 100 | D9: 100 | E9: 18 | F9: 31.2 | G9: 72.1 | H9: 13.7 | I9: 52.4 | J9: 0 | K9: Fibre | L9: SmartCampus
A10: Alain Savary bât A. | B10: 80 | C10: 100 | D10: 100 | E10: 19 | F10: 68.3 | G10: 74.2 | H10: 66.6 | I10: 71.8 | J10: 0 | K10: Fibre | L10: SmartCampus
A11: Alexandrie | B11: 248 | C11: 100 | D11: 100 | E11: 20 | F11: 135.5 | G11: 175.6 | H11: 123.5 | I11: 147.5 | J11: 0 | K11: Fibre | L11: PlanetCampus
A12: Boutonnet A | B12: 52 | C12: 100 | D12: 100 | E12: 19 | F12: 54 | G12: 64 | H12: 46.2 | I12: 59.6 | J12: 0 | K12: Fibre | L12: SmartCampus
A13: Boutonnet B | B13: 52 | C13: 100 | D13: 100 | E13: 21 | F13: 44.1 | G13: 59.6 | H13: 33.9 | I13: 52.5 | J13: 0 | K13: Fibre | L13: SmartCampus
A14: Boutonnet C + HALL + SALLE RÉUNION | B14: 125 | C14: 100 | D14: 100 | E14: 20 | F14: 28.3 | G14: 47.2 | H14: 18.3 | I14: 38.9 | J14: 0 | K14: Fibre | L14: SmartCampus
A15: Boutonnet D | B15: 133 | C15: 100 | D15: 100 | E15: 23 | F15: 89.5 | G15: 106.7 | H15: 82.4 | I15: 96.4 | J15: 0 | K15: Fibre | L15: SmartCampus
A16: Boutonnet E | B16: 135 | C16: 100 | D16: 100 | E16: 24 | F16: 20.8 | G16: 46.7 | H16: 4.5 | I16: 34.1 | J16: 0 | K16: Fibre | L16: SmartCampus
A17: Boutonnet F | B17: 125 | C17: 100 | D17: 100 | E17: 20 | F17: 24.5 | G17: 45.7 | H17: 11.9 | I17: 37.7 | J17: 0 | K17: Fibre | L17: SmartCampus
A18: Boutonnet G | B18: 127 | C18: 100 | D18: 100 | E18: 24 | F18: 13.9 | G18: 42.5 | H18: 8.2 | I18: 31.9 | J18: 0 | K18: Fibre | L18: SmartCampus
A19: Brasserie Boutonnet | B19: 1 | C19: 100 | D19: 100 | E19: 22 | F19: 17.1 | G19: 17.8 | H19: 18 | I19: 18 | J19: 0 | K19: Fibre | L19: SmartCampus
A20: Canigou A | B20: 27 | C20: 100 | D20: 100 | E20: 20 | F20: 15.9 | G20: 20.5 | H20: 14.7 | I20: 19.2 | J20: 0 | K20: Fibre | L20: SmartCampus
A21: Canigou B | B21: 27 | C21: 100 | D21: 100 | E21: 19 | F21: 18.3 | G21: 21.4 | H21: 13.8 | I21: 19.3 | J21: 0 | K21: Fibre | L21: SmartCampus
A22: Canigou C | B22: 27 | C22: 100 | D22: 100 | E22: 20 | F22: 17.5 | G22: 20.8 | H22: 16.7 | I22: 20.1 | J22: 0 | K22: Fibre | L22: SmartCampus
A23: Canigou D | B23: 27 | C23: 100 | D23: 100 | E23: 19 | F23: 18.2 | G23: 21.2 | H23: 12.8 | I23: 19.5 | J23: 0 | K23: Fibre | L23: SmartCampus
A24: Canigou E | B24: 27 | C24: 100 | D24: 100 | E24: 19 | F24: 13 | G24: 19.7 | H24: 8.3 | I24: 16 | J24: 0 | K24: Fibre | L24: SmartCampus
A25: Canigou F | B25: 18 | C25: 100 | D25: 100 | E25: 19 | F25: 11.6 | G25: 16 | H25: 9.8 | I25: 14.2 | J25: 0 | K25: Fibre | L25: SmartCampus
A26: Clerisseau | B26: 50 | C26: 100 | D26: 100 | E26: 15 | F26: 70.1 | G26: 79.9 | H26: 64.3 | I26: 73.9 | J26: 0 | K26: Fibre | L26: PlanetCampus
A27: Colombieres | B27: 1234 | C27: 100 | D27: 99.45 | E27: 21 | F27: 122.2 | G27: 321.6 | H27: 51 | I27: 225.5 | J27: 0 | K27: Fibre | L27: PlanetCampus | M27: Le 26/06/21 / responsabilité SmartCampus / Site injoignable / durée : 0.0 heure(s) : Site injoignable Diagnostic : aucun équipement n'est joignable sur le site Périmètre de l'incident : l'ensemble du site. Impact de l'incident : coupure du service Le site a-t-il été informé? non Alerte Kiwi "#21449883" ouverte le 26/06/2021 à 17:08 Résultat : Le service est rétabli sur le site Colombieres (Cité U) suite à la prise en charge de l'incident par nos équipes. Le 26/06/21 / responsabilité SmartCampus / Site injoignable / durée : 3.0 heure(s) : Site injoignable Diagnostic : aucun équipement n'est joignable sur le site Périmètre de l'incident : l'ensemble du site. Impact de l'incident : coupure du service Le site a-t-il été informé? non Alerte Kiwi "#21449887" ouverte le 26/06/2021 à 21:50 Résultat : Le service est rétabli sur le site Colombieres (Cité U) suite à la prise en charge de l'incident par nos équipes.
A28: Colonel Marchand | B28: 54 | C28: 100 | D28: 100 | E28: 24 | F28: 60.7 | G28: 77.8 | H28: 56.3 | I28: 70.5 | J28: 0 | K28: Fibre | L28: PlanetCampus
A29: Georges Besse A | B29: 71 | C29: 100 | D29: 100 | E29: 14 | F29: 72.5 | G29: 83.3 | H29: 61.6 | I29: 78.8 | J29: 0 | K29: Fibre | L29: PlanetCampus
A30: Hoche | B30: 160 | C30: 100 | D30: 100 | E30: 18 | F30: 53.9 | G30: 74.4 | H30: 46.7 | I30: 59.5 | J30: 0 | K30: Fibre | L30: SmartCampus
A31: Immeuble Baudin | B31: 6 | C31: 100 | D31: 100 | E31: 22 | F31: 57.8 | G31: 57.8 | H31: 57.8 | I31: 57.8 | J31: 0 | K31: Fibre | L31: PlanetCampus
A32: La Gralla | B32: 58 | C32: 100 | D32: 100 | E32: 24 | F32: 67.5 | G32: 72.4 | H32: 64.4 | I32: 70.1 | J32: 0 | K32: Fibre | L32: PlanetCampus
A33: La Lyre | B33: 296 | C33: 100 | D33: 100 | E33: 19 | F33: 31.8 | G33: 66 | H33: 5.8 | I33: 48.6 | J33: 0 | K33: Fibre | L33: SmartCampus
A34: La Panacée - Cité des Artistes | B34: 59 | C34: 100 | D34: 100 | E34: 47 | F34: 12.9 | G34: 15.9 | H34: 11 | I34: 14.6 | J34: 0 | K34: ADSL | L34: SmartCampus
A35: Lattes | B35: 36 | C35: 100 | D35: 100 | E35: 19 | F35: 66.8 | G35: 73.2 | H35: 57.2 | I35: 69.9 | J35: 0 | K35: Fibre | L35: PlanetCampus
A36: Le Parc - Crous Montpellier | B36: 168 | C36: 100 | D36: 100 | E36: 18 | F36: 92.7 | G36: 120.9 | H36: 66.3 | I36: 103.5 | J36: 0 | K36: Fibre | L36: PlanetCampus
A37: Les Arceaux | B37: 361 | C37: 100 | D37: 99.7 | E37: 21 | F37: 71.6 | G37: 123.8 | H37: 34.6 | I37: 91.2 | J37: 0 | K37: Fibre | L37: PlanetCampus | M37: Le 13/06/21 / responsabilité SmartCampus / Site injoignable / durée : 2.0 heure(s) : Site injoignable / service Wifirst totalement indisponible Diagnostic : Les équipements Wifirst sont injoignables ou les services Wifirst ne sont plus opérationnels Périmètre : l’ensemble du site Impact : Service interrompu Résultat : Action(s) réalisée(s) : Commentaire : site up sans retour client
A38: Les palmes | B38: 60 | C38: 100 | D38: 99.4 | E38: 14 | F38: 430.2 | G38: 441.6 | H38: 427.3 | I38: 434.1 | J38: 0 | K38: ADSL | L38: PlanetCampus | M38: Le 01/06/21 / responsabilité SmartCampus / Site injoignable / durée : 2.0 heure(s) : Site injoignable Diagnostic : aucun équipement n'est joignable sur le site Périmètre de l'incident : l'ensemble du site. Impact de l'incident : coupure du service Le site a-t-il été informé? non Alerte Kiwi "#21448583" ouverte le 01/06/2021 à 08:10 Résultat : Le service est rétabli sur le site Les Palmes suite à la prise en charge de l'incident par nos équipes. Le 20/06/21 / responsabilité SmartCampus / Site injoignable / durée : 1.0 heure(s) : Site injoignable Diagnostic : aucun équipement n'est joignable sur le site Périmètre de l'incident : l'ensemble du site. Impact de l'incident : coupure du service Le site a-t-il été informé? non Alerte Kiwi "#21449550" ouverte le 20/06/2021 à 11:18 Résultat : Le service est rétabli sur le site Les Palmes suite à la prise en charge de l'incident par nos équipes.
A39: Mar I Sol | B39: 166 | C39: 100 | D39: 100 | E39: 36 | F39: 88.9 | G39: 114.7 | H39: 78.5 | I39: 97.8 | J39: 0 | K39: Fibre | L39: SmartCampus
A40: Matisse A | B40: 300 | C40: 100 | D40: 100 | E40: 15 | F40: 138.8 | G40: 181.8 | H40: 126.9 | I40: 161.6 | J40: 0 | K40: Fibre | L40: SmartCampus
A41: Matisse B | B41: 300 | C41: 100 | D41: 100 | E41: 21 | F41: 205.2 | G41: 217 | H41: 200.9 | I41: 212.8 | J41: 0 | K41: Fibre | L41: SmartCampus
A42: Minerve | B42: 196 | C42: 100 | D42: 100 | E42: 21 | F42: 118.1 | G42: 152.5 | H42: 104.4 | I42: 131.1 | J42: 0 | K42: Fibre | L42: PlanetCampus
A43: Moulin à Vent | B43: 0 | C43: 100 | D43: 100 | E43: 20 | F43: 12.3 | G43: 13.3 | H43: 11.8 | I43: 13.2 | J43: 0 | K43: Fibre | L43: SmartCampus
A44: Moulin à Vent A | B44: 135 | C44: 100 | D44: 100 | E44: 28 | F44: 113.6 | G44: 130.6 | H44: 96.4 | I44: 119.9 | J44: 0 | K44: Fibre | L44: SmartCampus
A45: Moulin à Vent D | B45: 145 | C45: 100 | D45: 100 | E45: 20 | F45: 62.2 | G45: 92.8 | H45: 52.5 | I45: 69.1 | J45: 0 | K45: Fibre | L45: SmartCampus
A46: Moulin à Vent E | B46: 164 | C46: 100 | D46: 100 | E46: 18 | F46: 98.4 | G46: 117.4 | H46: 93.3 | I46: 106.7 | J46: 0 | K46: Fibre | L46: SmartCampus
A47: Occitanie | B47: 87 | C47: 100 | D47: 99.81 | E47: 22 | F47: 17.8 | G47: 22.6 | H47: 12.8 | I47: 20.4 | J47: 0 | K47: Fibre | L47: PlanetCampus | M47: Le 08/06/21 / responsabilité SmartCampus / Site injoignable / durée : 1.0 heure(s) : Site injoignable Diagnostic : aucun équipement n'est joignable sur le site Périmètre de l'incident : l'ensemble du site. Impact de l'incident : coupure du service Le site a-t-il été informé? non Alerte Kiwi "#21448937" ouverte le 08/06/2021 à 07:00 Résultat : Le service est rétabli sur le site Occitanie suite à la prise en charge de l'incident par nos équipes.
A48: Olympique Montpellier 76 | B48: 162 | C48: 100 | D48: 100 | E48: 19 | F48: 118.3 | G48: 149.8 | H48: 97.8 | I48: 127.5 | J48: 0 | K48: Fibre | L48: SmartCampus
A49: Persée | B49: 103 | C49: 100 | D49: 100 | E49: 19 | F49: 145 | G49: 164.1 | H49: 124.7 | I49: 151.1 | J49: 0 | K49: Fibre | L49: PlanetCampus
A50: Pous de La Sers | B50: 124 | C50: 100 | D50: 100 | E50: 20 | F50: 101 | G50: 120.2 | H50: 92.3 | I50: 110.2 | J50: 0 | K50: Fibre | L50: PlanetCampus
A51: Primavera | B51: 118 | C51: 100 | D51: 100 | E51: 20 | F51: 89.2 | G51: 112.2 | H51: 80.9 | I51: 97.5 | J51: 0 | K51: Fibre | L51: PlanetCampus
A52: RESTAURANT UNIVERSITAIRE PERPIGNAN | B52: 1 | C52: 100 | D52: 100 | E52: 19 | F52: 13.3 | G52: 13.4 | H52: 13.5 | I52: 13.5 | J52: 0 | K52: Fibre | L52: SmartCampus
A53: Restaurant Universitaire Saint Césaire | B53: 1 | C53: 100 | D53: 100 | E53: 51 | F53: 5.1 | G53: 5.1 | H53: 5.1 | I53: 5.1 | J53: 0 | K53: ADSL | L53: SmartCampus
A54: Restaurant universitaire Vert-bois | B54: 1 | C54: 100 | D54: 100 | E54: 45 | F54: 4.9 | G54: 6.2 | H54: 4.9 | I54: 6.2 | J54: 0 | K54: ADSL | L54: SmartCampus
A55: SUD ALTERNANCE | B55: 100 | C55: 100 | D55: 100 | E55: 15 | F55: 96 | G55: 111.1 | H55: 75.9 | I55: 101.6 | J55: 0 | K55: Fibre | L55: PlanetCampus
A56: Tour Magne | B56: 145 | C56: 100 | D56: 99.96 | E56: 20 | F56: 92.6 | G56: 116.1 | H56: 87.5 | I56: 102.3 | J56: 0 | K56: Fibre | L56: SmartCampus | M56: Le 03/06/21 / responsabilité SmartCampus / Site injoignable / durée : 0.0 heure(s) : Site injoignable Diagnostic : aucun équipement n'est joignable sur le site Périmètre de l'incident : l'ensemble du site. Impact de l'incident : coupure du service Le site a-t-il été informé? non Alerte Kiwi "#21448745" ouverte le 03/06/2021 à 15:10 Résultat : Le service est rétabli sur le site Tour Magne suite à la prise en charge de l'incident par nos équipes.
A57: Tramuntana | B57: 133 | C57: 100 | D57: 100 | E57: 16 | F57: 92.3 | G57: 117.3 | H57: 79.1 | I57: 102.5 | J57: 0 | K57: Fibre | L57: SmartCampus
A58: Triolet (residence) | B58: 136 | C58: 100 | D58: 100 | E58: 19 | F58: 11.3 | G58: 28.2 | H58: 7.3 | I58: 19.5 | J58: 0 | K58: Fibre | L58: SmartCampus
A59: TRIOLET 2 A-B-C | B59: 315 | C59: 100 | D59: 100 | E59: 19 | F59: 24.7 | G59: 85.6 | H59: 11.2 | I59: 61.4 | J59: 0 | K59: Fibre | L59: SmartCampus
A60: Triolet A | B60: 104 | C60: 100 | D60: 100 | E60: 19 | F60: 23.2 | G60: 30.7 | H60: 20.4 | I60: 28.6 | J60: 0 | K60: Fibre | L60: SmartCampus
A61: Triolet B | B61: 128 | C61: 100 | D61: 100 | E61: 19 | F61: 16.9 | G61: 32.2 | H61: 10.2 | I61: 26.2 | J61: 0 | K61: Fibre | L61: SmartCampus
A62: Triolet C | B62: 119 | C62: 100 | D62: 100 | E62: 19 | F62: 13.8 | G62: 31.1 | H62: 10.1 | I62: 25.7 | J62: 0 | K62: Fibre | L62: SmartCampus
A63: Triolet D | B63: 160 | C63: 100 | D63: 100 | E63: 19 | F63: 33.9 | G63: 48.7 | H63: 24.4 | I63: 42.3 | J63: 0 | K63: Fibre | L63: SmartCampus
A64: Triolet E | B64: 116 | C64: 100 | D64: 100 | E64: 19 | F64: 15.6 | G64: 33 | H64: 13.6 | I64: 25.8 | J64: 0 | K64: Fibre | L64: SmartCampus
A65: Triolet F | B65: 127 | C65: 100 | D65: 100 | E65: 19 | F65: 30.2 | G65: 39 | H65: 22.6 | I65: 34.2 | J65: 0 | K65: Fibre | L65: SmartCampus
A66: Triolet Fédérateur / Restaurant Universitaire Triolet | B66: 1 | C66: 100 | D66: 100 | E66: 19 | F66: 6.3 | G66: 6.7 | H66: 6.7 | I66: 6.7 | J66: 0 | K66: Fibre | L66: SmartCampus
A67: Triolet G | B67: 122 | C67: 100 | D67: 100 | E67: 19 | F67: 27.1 | G67: 38 | H67: 20.6 | I67: 33.2 | J67: 0 | K67: Fibre | L67: SmartCampus
A68: Triolet H | B68: 124 | C68: 100 | D68: 100 | E68: 19 | F68: 19.9 | G68: 34 | H68: 12.8 | I68: 26.8 | J68: 0 | K68: Fibre | L68: SmartCampus
A69: Triolet I | B69: 128 | C69: 100 | D69: 100 | E69: 19 | F69: 26.4 | G69: 39.3 | H69: 13.7 | I69: 35.1 | J69: 0 | K69: Fibre | L69: SmartCampus
A70: Vert Bois (Cite U) | B70: 910 | C70: 100 | D70: 100 | E70: 0 | F70: 0 | G70: 0 | H70: 0 | I70: 0 | J70: 0 | K70: Fibre | L70: SmartCampus
A71: Vert Bois (Cité U) E | B71: 129 | C71: 100 | D71: 100 | E71: 0 | F71: 0 | G71: 0 | H71: 0 | I71: 0 | J71: 0 | K71: ADSL | L71: SmartCampus
A72: Vert Bois (residence) 10 (MER) | B72: 200 | C72: 100 | D72: 97.8 | E72: 19 | F72: 14.6 | G72: 42.4 | H72: 14.6 | I72: 34.9 | J72: 1 | K72: Fibre | L72: PlanetCampus | M72: Le 26/06/21 / responsabilité SmartCampus / Site injoignable / durée : 15.0 heure(s) : Site injoignable Diagnostic : aucun équipement n'est joignable sur le site Périmètre de l'incident : l'ensemble du site. Impact de l'incident : coupure du service Le site a-t-il été informé? non Alerte Kiwi "#21449889" ouverte le 27/06/2021 à 00:38 Résultat : Problème sur le réseau Crous, les vlan 101 & 102 ne sont pas propagé sur le réseau
A73: VEYRASSI | B73: 153 | C73: 100 | D73: 100 | E73: 15 | F73: 103.2 | G73: 131.4 | H73: 95.5 | I73: 114.1 | J73: 0 | K73: Fibre | L73: PlanetCampus
A74: Voie Domitienne 1 | B74: 123 | C74: 100 | D74: 100 | E74: 19 | F74: 9.9 | G74: 30.4 | H74: 5.6 | I74: 24.8 | J74: 0 | K74: Fibre | L74: SmartCampus
A75: Voie Domitienne 2 | B75: 150 | C75: 100 | D75: 100 | E75: 19 | F75: 7.4 | G75: 37.3 | H75: 5.8 | I75: 32.9 | J75: 0 | K75: Fibre | L75: SmartCampus
A76: Voie Domitienne 3 | B76: 151 | C76: 100 | D76: 100 | E76: 19 | F76: 6.5 | G76: 33.4 | H76: 3 | I76: 26.9 | J76: 0 | K76: Fibre | L76: SmartCampus
A77: Voie Domitienne 4 | B77: 136 | C77: 100 | D77: 100 | E77: 19 | F77: 5.5 | G77: 30.5 | H77: 4.6 | I77: 27.1 | J77: 0 | K77: Fibre | L77: SmartCampus
A78: Voie Domitienne 5 | B78: 133 | C78: 100 | D78: 100 | E78: 19 | F78: 10.5 | G78: 31.1 | H78: 8.3 | I78: 28.1 | J78: 0 | K78: Fibre | L78: SmartCampus
A79: Voie Domitienne 6 | B79: 134 | C79: 100 | D79: 100 | E79: 19 | F79: 8.8 | G79: 30.8 | H79: 4.4 | I79: 27.4 | J79: 0 | K79: Fibre | L79: SmartCampus
A80: Voie Domitienne 7 | B80: 128 | C80: 100 | D80: 100 | E80: 19 | F80: 12.2 | G80: 50.3 | H80: 6.1 | I80: 44 | J80: 0 | K80: Fibre | L80: SmartCampus
A81: Voie Domitienne 8 | B81: 149 | C81: 100 | D81: 100 | E81: 18 | F81: 13.9 | G81: 34.6 | H81: 7.4 | I81: 32.8 | J81: 0 | K81: Fibre | L81: SmartCampus
A82: Voie Domitienne ADMINISTRATION | B82: 1 | C82: 100 | D82: 100 | E82: 19 | F82: 4.5 | G82: 8.1 | H82: 4.5 | I82: 8.4 | J82: 0 | K82: Fibre | L82: SmartCampus
A83: Wilson | B83: 30 | C83: 100 | D83: 100 | E83: 16 | F83: 64.8 | G83: 69.9 | H83: 63.6 | I83: 68.4 | J83: 0 | K83: Fibre | L83: PlanetCampus

Sheet NANTES
A3: Etablissement | B3: NB Chb | C3: Dispo (resp. SC) (%) | D3: Dispo (toutes resp) (%) | E3: LatMax (ms) | F3: BPMin (Mb/s) | G3: BPMoy (Mb/s) | H3: BPMin 19h-23h (Mb/s) | I3: BPMoy 19h-23h (Mb/s) | J3: Nb de Chb fibrées | K3: Nb de Chb en cours de fibrage
A4: CROUS NANTES | B4: =SUM(B8:B48) -> 8709 | C4: =SUMPRODUCT(B8:B48,C8:C48)/SUM(B8:B48) -> 99.93955219 | D4: =SUMPRODUCT(B8:B48,D8:D48)/SUM(B8:B48) -> 99.90079458 | E4: =SUMPRODUCT(B8:B48,E8:E48)/SUM(B8:B48) -> 13.01067861 | F4: =SUMPRODUCT(B8:B48,F8:F48)/SUM(B8:B48) -> 169.2203927 | G4: =SUMPRODUCT(B8:B48,G8:G48)/SUM(B8:B48) -> 214.568412 | H4: =SUMPRODUCT(B8:B48,H8:H48)/SUM(B8:B48) -> 143.6349983 | I4: =SUMPRODUCT(B8:B48,I8:I48)/SUM(B8:B48) -> 183.9383167 | J4: =SUMIFS(B8:B48,K8:K48,"=Fibre") -> 8709 | K4: =SUMIFS(B8:B48,K8:K48,"=Fibrage en cours") -> 0
J5: =J4/B4 -> 1 | K5: =K4/B4 -> 0
A7: Résidence | B7: NB Chb | C7: Dispo (resp. SC) (%) | D7: Dispo (toutes resp) (%) | E7: LatMax (ms) | F7: BPMin (Mb/s) | G7: BPMoy (Mb/s) | H7: BPMin 19h-23h (Mb/s) | I7: BPMoy 19h-23h (Mb/s) | J7: Hors GTR | K7: Collecte | L7: Type de service | M7: Remarques
A8: Alpha City | B8: 100 | C8: 100 | D8: 100 | E8: 40 | F8: 44.6 | G8: 74.2 | H8: 39.8 | I8: 58.6 | J8: 0 | K8: Fibre | L8: SmartCampus
A9: Berlioz A | B9: 165 | C9: 100 | D9: 100 | E9: 16 | F9: 92.6 | G9: 122 | H9: 82.7 | I9: 102.9 | J9: 0 | K9: Fibre | L9: SmartCampus
A10: Berlioz B | B10: 165 | C10: 100 | D10: 100 | E10: 16 | F10: 101.3 | G10: 122.9 | H10: 95.4 | I10: 108.6 | J10: 0 | K10: Fibre | L10: SmartCampus
A11: Celestin Port | B11: 40 | C11: 100 | D11: 100 | E11: 17 | F11: 53.1 | G11: 58 | H11: 52.2 | I11: 56.6 | J11: 0 | K11: Fibre | L11: PlanetCampus
A12: Cité BELLE BEILLE | B12: 552 | C12: 100 | D12: 100 | E12: 5 | F12: 329 | G12: 387.4 | H12: 297.2 | I12: 346.5 | J12: 0 | K12: Fibre | L12: SmartCampus
A13: Cité Bourgonnier | B13: 122 | C13: 100 | D13: 100 | E13: 6 | F13: 43.9 | G13: 56.7 | H13: 40.8 | I13: 51.4 | J13: 0 | K13: Fibre | L13: SmartCampus
A14: Cité CASTERNEAU | B14: 271 | C14: 100 | D14: 100 | E14: 13 | F14: 74.8 | G14: 144.3 | H14: 31.4 | I14: 90.7 | J14: 0 | K14: Fibre | L14: SmartCampus
A15: Cité CHANZY | B15: 250 | C15: 100 | D15: 100 | E15: 12 | F15: 130.1 | G15: 166.2 | H15: 117.4 | I15: 147.7 | J15: 0 | K15: Fibre | L15: SmartCampus
A16: Cité COUFFON- PAVOT | B16: 341 | C16: 100 | D16: 100 | E16: 6 | F16: 169.3 | G16: 206.4 | H16: 144.5 | I16: 181.9 | J16: 0 | K16: Fibre | L16: SmartCampus
A17: Cité Frescheblanc Bat A | B17: 624 | C17: 100 | D17: 99.86 | E17: 13 | F17: 306 | G17: 364.9 | H17: 249.2 | I17: 320.3 | J17: 0 | K17: Fibre | L17: SmartCampus | M17: Le 15/06/21 / responsabilité SmartCampus / Site injoignable / durée : 1.0 heure(s) : Site injoignable Diagnostic : aucun équipement n'est joignable sur le site Périmètre de l'incident : l'ensemble du site. Impact de l'incident : coupure du service Le site a-t-il été informé? non Alerte Kiwi "#21449293" ouverte le 15/06/2021 à 09:12 Résultat : Le service est rétabli sur le site Cité Frescheblanc suite à la prise en charge de l'incident par nos équipes.
A18: Cité HEINLEX | B18: 267 | C18: 100 | D18: 100 | E18: 52 | F18: 151.2 | G18: 186.7 | H18: 134.3 | I18: 162.7 | J18: 0 | K18: Fibre | L18: SmartCampus
A19: Cité La Bourgeonniere | B19: 469 | C19: 100 | D19: 100 | E19: 13 | F19: 152 | G19: 245.2 | H19: 111.4 | I19: 179 | J19: 0 | K19: Fibre | L19: SmartCampus
A20: Cite Lakanal | B20: 305 | C20: 100 | D20: 100 | E20: 9 | F20: 218.3 | G20: 225.5 | H20: 214.8 | I20: 222.9 | J20: 0 | K20: Fibre | L20: SmartCampus
A21: Cité Launay Violette | B21: 275 | C21: 100 | D21: 100 | E21: 13 | F21: 173.8 | G21: 194.9 | H21: 171.4 | I21: 186.9 | J21: 0 | K21: Fibre | L21: SmartCampus
A22: Cité VAUROUZE | B22: 716 | C22: 100 | D22: 100 | E22: 4 | F22: 317.5 | G22: 385.6 | H22: 254.7 | I22: 342.5 | J22: 0 | K22: Fibre | L22: SmartCampus
A23: Dauversiere 2 | B23: 82 | C23: 100 | D23: 99.96 | E23: 7 | F23: 60.8 | G23: 79.8 | H23: 56.1 | I23: 68.6 | J23: 0 | K23: Fibre | L23: SmartCampus | M23: Le 24/06/21 / responsabilité SmartCampus / Site injoignable / durée : 0.0 heure(s) : Site injoignable Diagnostic : aucun équipement n'est joignable sur le site Périmètre de l'incident : l'ensemble du site. Impact de l'incident : coupure du service Le site a-t-il été informé? non Alerte Kiwi "#21449789" ouverte le 24/06/2021 à 10:46 Résultat : Le service est rétabli sur le site Dauversiere 2 suite à la prise en charge de l'incident par nos équipes.
A24: Flora Tristan B | B24: 113 | C24: 100 | D24: 100 | E24: 7 | F24: 140.2 | G24: 158.5 | H24: 124.7 | I24: 147 | J24: 0 | K24: Fibre | L24: PlanetCampus
A25: La Simbrandière Bat principal | B25: 120 | C25: 100 | D25: 99.92 | E25: 12 | F25: 78.8 | G25: 99.2 | H25: 68.4 | I25: 87.4 | J25: 0 | K25: Fibre | L25: SmartCampus | M25: Le 24/06/21 / responsabilité SmartCampus / Site injoignable / durée : 0.0 heure(s) : Site injoignable Diagnostic : aucun équipement n'est joignable sur le site Périmètre de l'incident : l'ensemble du site. Impact de l'incident : coupure du service Le site a-t-il été informé? non Alerte Kiwi "#21449793" ouverte le 24/06/2021 à 11:48 Résultat : Le service est rétabli sur le site La Simbrandière suite à la prise en charge de l'incident par nos équipes.
A26: Leonard de Vinci | B26: 30 | C26: 100 | D26: 100 | E26: 10 | F26: 53.7 | G26: 58 | H26: 50.9 | I26: 56.3 | J26: 0 | K26: Fibre | L26: SmartCampus
A27: Olympe de gouges (CROUS NANTES) | B27: 214 | C27: 97.54 | D27: 97.16 | E27: 13 | F27: 120 | G27: 147.7 | H27: 100.1 | I27: 130.1 | J27: 1 | K27: Fibre | L27: SmartCampus | M27: Le 02/06/21 / responsabilité SmartCampus / Site injoignable / durée : 17.0 heure(s) : Site injoignable Diagnostic : aucun équipement n'est joignable sur le site Périmètre de l'incident : l'ensemble du site. Impact de l'incident : coupure du service Le site a-t-il été informé? non Alerte Kiwi "#21448637" ouverte le 02/06/2021 à 06:36 Résultat : Action(s) réalisée(s) : Baie principal re-démarrée! Commentaire : Il y a eu un bug matérielSite de nouveau joignable &#9989; Le 15/06/21 / responsabilité SmartCampus / Site injoignable / durée : 1.0 heure(s) : Site injoignable Diagnostic : aucun équipement n'est joignable sur le site Périmètre de l'incident : l'ensemble du site. Impact de l'incident : coupure du service Le site a-t-il été informé? non Alerte Kiwi "#21449292" ouverte le 15/06/2021 à 09:12 Résultat : Le service est rétabli sur le site Olympe de Gouges suite à la prise en charge de l'incident par nos équipes. Le 23/06/21 / responsabilité SmartCampus / Site injoignable / durée : 1.0 heure(s) : Site injoignable Diagnostic : aucun équipement n'est joignable sur le site Périmètre de l'incident : l'ensemble du site. Impact de l'incident : coupure du service Le site a-t-il été informé? non Alerte Kiwi "#21449720" ouverte le 23/06/2021 à 08:50 Résultat : Le service est rétabli sur le site Olympe de Gouges suite à la prise en charge de l'incident par nos équipes.
A28: Résidence Alice MILLIAT | B28: 298 | C28: 100 | D28: 100 | E28: 24 | F28: 98.7 | G28: 166.8 | H28: 63.1 | I28: 123.3 | J28: 0 | K28: Fibre | L28: SmartCampus
A29: Résidence BARTHOLDI | B29: 205 | C29: 100 | D29: 100 | E29: 5 | F29: 515 | G29: 574.5 | H29: 499.6 | I29: 533.4 | J29: 0 | K29: Fibre | L29: SmartCampus
A30: Résidence CORBILO | B30: 157 | C30: 100 | D30: 100 | E30: 10 | F30: 92.6 | G30: 134.3 | H30: 66.1 | I30: 102.4 | J30: 0 | K30: Fibre | L30: SmartCampus
A31: Résidence EINSTEIN | B31: 158 | C31: 100 | D31: 100 | E31: 7 | F31: 201.1 | G31: 231.3 | H31: 184.4 | I31: 210.6 | J31: 0 | K31: Fibre | L31: PlanetCampus
A32: Résidence FAIDHERBE | B32: 57 | C32: 100 | D32: 100 | E32: 6 | F32: 51.2 | G32: 64.7 | H32: 47.1 | I32: 58 | J32: 0 | K32: Fibre | L32: SmartCampus
A33: Résidence Haute Forêt | B33: 167 | C33: 100 | D33: 100 | E33: 12 | F33: 79.7 | G33: 115.2 | H33: 61.4 | I33: 93 | J33: 0 | K33: Fibre | L33: SmartCampus
A34: Résidence ILE DE NANTES | B34: 135 | C34: 100 | D34: 100 | E34: 10 | F34: 87 | G34: 114.4 | H34: 71 | I34: 96.2 | J34: 0 | K34: Fibre | L34: SmartCampus
A35: Résidence Jacques TYMEN | B35: 206 | C35: 100 | D35: 99.85 | E35: 13 | F35: 99.2 | G35: 141.8 | H35: 79 | I35: 110.4 | J35: 0 | K35: Fibre | L35: SmartCampus | M35: Le 15/06/21 / responsabilité SmartCampus / Site injoignable / durée : 1.0 heure(s) : Site injoignable Diagnostic : aucun équipement n'est joignable sur le site Périmètre de l'incident : l'ensemble du site. Impact de l'incident : coupure du service Le site a-t-il été informé? non Alerte Kiwi "#21449315" ouverte le 15/06/2021 à 14:20 Résultat : Le service est rétabli sur le site Jacques Tymen suite à la prise en charge de l'incident par nos équipes.
A36: Résidence JEAN TUSQUES | B36: 76 | C36: 100 | D36: 100 | E36: 13 | F36: 54.2 | G36: 76.3 | H36: 43.5 | I36: 63.5 | J36: 0 | K36: Fibre | L36: SmartCampus
A37: Résidence John Pershing | B37: 78 | C37: 100 | D37: 100 | E37: 46 | F37: 56.8 | G37: 79 | H37: 45.7 | I37: 66.1 | J37: 0 | K37: Fibre | L37: SmartCampus
A38: Résidence LA DORMERIE | B38: 150 | C38: 100 | D38: 100 | E38: 10 | F38: 78.1 | G38: 110.4 | H38: 57.8 | I38: 87.5 | J38: 0 | K38: Fibre | L38: SmartCampus
A39: Résidence La Madeleine | B39: 43 | C39: 100 | D39: 100 | E39: 9 | F39: 12.6 | G39: 21.6 | H39: 10.4 | I39: 16 | J39: 0 | K39: Fibre | L39: SmartCampus
A40: Résidence LES HAUTS DE SAINT AUBIN | B40: 151 | C40: 100 | D40: 100 | E40: 12 | F40: 105 | G40: 136 | H40: 86.9 | I40: 119 | J40: 0 | K40: Fibre | L40: SmartCampus
A41: Résidence les Landes | B41: 236 | C41: 100 | D41: 99.47 | E41: 33 | F41: 84.7 | G41: 137.6 | H41: 72.2 | I41: 102.1 | J41: 0 | K41: Fibre | L41: SmartCampus | M41: Le 01/06/21 / responsabilité SmartCampus / Site injoignable / durée : 2.0 heure(s) : Site injoignable Diagnostic : aucun équipement n'est joignable sur le site Périmètre de l'incident : l'ensemble du site. Impact de l'incident : coupure du service Le site a-t-il été informé? non Alerte Kiwi "#21448628" ouverte le 01/06/2021 à 23:04 Résultat : Le service est rétabli sur le site Résidence Les Landes suite à la prise en charge de l'incident par nos équipes. Le 08/06/21 / responsabilité SmartCampus / Site injoignable / durée : 0.0 heure(s) : Site injoignable Diagnostic : aucun équipement n'est joignable sur le site Périmètre de l'incident : l'ensemble du site. Impact de l'incident : coupure du service Le site a-t-il été informé? non Alerte Kiwi "#21448951" ouverte le 08/06/2021 à 12:00 Résultat : Le service est rétabli sur le site Résidence Les Landes suite à la prise en charge de l'incident par nos équipes. Le 29/06/21 / responsabilité SmartCampus / Site injoignable / durée : 1.0 heure(s) : Site injoignable Diagnostic : aucun équipement n'est joignable sur le site Périmètre de l'incident : l'ensemble du site. Impact de l'incident : coupure du service Le site a-t-il été informé? non Alerte Kiwi "#21449987" ouverte le 29/06/2021 à 13:56 Résultat : Le service est rétabli sur le site Résidence Les Landes suite à la prise en charge de l'incident par nos équipes.
A42: Résidence les SAUMONIERES | B42: 95 | C42: 100 | D42: 100 | E42: 10 | F42: 53.1 | G42: 74.9 | H42: 44.7 | I42: 60.5 | J42: 0 | K42: Fibre | L42: SmartCampus
A43: Résidence LONGCHAMP | B43: 190 | C43: 100 | D43: 100 | E43: 16 | F43: 107.5 | G43: 146 | H43: 94.2 | I43: 119.3 | J43: 0 | K43: Fibre | L43: SmartCampus
A44: Résidence Madeleine Bres | B44: 236 | C44: 100 | D44: 100 | E44: 10 | F44: 88.4 | G44: 142.2 | H44: 70.6 | I44: 103.6 | J44: 0 | K44: Fibre | L44: SmartCampus
A45: Residence O-Slow | B45: 136 | C45: 100 | D45: 100 | E45: 10 | F45: 107.1 | G45: 150.8 | H45: 84.8 | I45: 122 | J45: 0 | K45: Fibre | L45: PlanetCampus
A46: Résidence Rene Rouchy | B46: 119 | C46: 100 | D46: 100 | E46: 10 | F46: 119.8 | G46: 145.1 | H46: 108.1 | I46: 129.2 | J46: 0 | K46: Fibre | L46: SmartCampus
A47: Résidence Volta | B47: 300 | C47: 100 | D47: 100 | E47: 7 | F47: 146.4 | G47: 184.1 | H47: 134.8 | I47: 157 | J47: 0 | K47: Fibre | L47: PlanetCampus
A48: Résidence WANGARI MAATHAI Nantes | B48: 295 | C48: 100 | D48: 100 | E48: 13 | F48: 102.9 | G48: 167.6 | H48: 72.9 | I48: 121.7 | J48: 0 | K48: Fibre | L48: SmartCampus

Sheet NICE-TOULON
A3: Etablissement | B3: NB Chb | C3: Dispo (resp. SC) (%) | D3: Dispo (toutes resp) (%) | E3: LatMax (ms) | F3: BPMin (Mb/s) | G3: BPMoy (Mb/s) | H3: BPMin 19h-23h (Mb/s) | I3: BPMoy 19h-23h (Mb/s) | J3: Nb de Chb fibrées | K3: Nb de Chb en cours de fibrage
A4: CROUS NICE-TOULON | B4: =SUM(B8:B28) -> 4588 | C4: =SUMPRODUCT(B8:B28,C8:C28)/SUM(B8:B28) -> 100 | D4: =SUMPRODUCT(B8:B28,D8:D28)/SUM(B8:B28) -> 99.96362467 | E4: =SUMPRODUCT(B8:B28,E8:E28)/SUM(B8:B28) -> 17.71207498 | F4: =SUMPRODUCT(B8:B28,F8:F28)/SUM(B8:B28) -> 162.495728 | G4: =SUMPRODUCT(B8:B28,G8:G28)/SUM(B8:B28) -> 201.571578 | H4: =SUMPRODUCT(B8:B28,H8:H28)/SUM(B8:B28) -> 143.7435702 | I4: =SUMPRODUCT(B8:B28,I8:I28)/SUM(B8:B28) -> 178.2322799 | J4: =SUMIFS(B8:B28,K8:K28,"=Fibre") -> 4588 | K4: =SUMIFS(B8:B28,K8:K28,"=Fibrage en cours") -> 0
J5: =J4/B4 -> 1 | K5: =K4/B4 -> 0
A7: Résidence | B7: NB Chb | C7: Dispo (resp. SC) (%) | D7: Dispo (toutes resp) (%) | E7: LatMax (ms) | F7: BPMin (Mb/s) | G7: BPMoy (Mb/s) | H7: BPMin 19h-23h (Mb/s) | I7: BPMoy 19h-23h (Mb/s) | J7: Hors GTR | K7: Collecte | L7: Type de service | M7: Remarques
A8: Baie des Anges | B8: 509 | C8: 100 | D8: 99.88 | E8: 16 | F8: 534.5 | G8: 585.9 | H8: 517.2 | I8: 548.1 | J8: 0 | K8: Fibre | L8: SmartCampus | M8: Le 04/06/21 / responsabilité SmartCampus / Site injoignable / durée : 0.0 heure(s) : Site injoignable Diagnostic : aucun équipement n'est joignable sur le site Périmètre de l'incident : l'ensemble du site. Impact de l'incident : coupure du service Le site a-t-il été informé? non Alerte Kiwi "#21448781" ouverte le 04/06/2021 à 08:54 Résultat : Le service est rétabli sur le site Baie des Anges suite à la prise en charge de l'incident par nos équipes.
A9: Coudon - Bâtiment F | B9: 97 | C9: 100 | D9: 100 | E9: 15 | F9: 89.8 | G9: 94.6 | H9: 87.6 | I9: 92.9 | J9: 0 | K9: Fibre | L9: SmartCampus
A10: Coudon - Bâtiment G | B10: 218 | C10: 100 | D10: 100 | E10: 15 | F10: 158.7 | G10: 168.6 | H10: 155.6 | I10: 165.7 | J10: 0 | K10: Fibre | L10: SmartCampus
A11: Faron | B11: 294 | C11: 100 | D11: 100 | E11: 15 | F11: 128.8 | G11: 182.5 | H11: 86.4 | I11: 145.1 | J11: 0 | K11: Fibre | L11: SmartCampus
A12: Fenouillet | B12: 150 | C12: 100 | D12: 100 | E12: 15 | F12: 91.8 | G12: 114.6 | H12: 69.2 | I12: 101.1 | J12: 0 | K12: Fibre | L12: SmartCampus
A13: Jean Médecin A/B | B13: 232 | C13: 100 | D13: 100 | E13: 19 | F13: 94.8 | G13: 148.9 | H13: 71.9 | I13: 123.2 | J13: 0 | K13: Fibre | L13: PlanetCampus
A14: Jean Médecin C | B14: 149 | C14: 100 | D14: 100 | E14: 18 | F14: 82.4 | G14: 111.3 | H14: 73.4 | I14: 96 | J14: 0 | K14: Fibre | L14: SmartCampus
A15: Jean Médecin D | B15: 158 | C15: 100 | D15: 100 | E15: 20 | F15: 72.5 | G15: 104.3 | H15: 64 | I15: 88.2 | J15: 0 | K15: Fibre | L15: SmartCampus
A16: Jean Médecin E | B16: 187 | C16: 100 | D16: 100 | E16: 16 | F16: 123 | G16: 138.8 | H16: 105.4 | I16: 128 | J16: 0 | K16: Fibre | L16: SmartCampus
A17: Jean Médecin F | B17: 179 | C17: 100 | D17: 100 | E17: 18 | F17: 104.6 | G17: 130.6 | H17: 100.6 | I17: 114.8 | J17: 0 | K17: Fibre | L17: SmartCampus
A18: La Madeleine | B18: 200 | C18: 100 | D18: 99.57 | E18: 21 | F18: 102.8 | G18: 143.9 | H18: 66.2 | I18: 112.8 | J18: 0 | K18: Fibre | L18: SmartCampus | M18: Le 09/06/21 / responsabilité SmartCampus / Site injoignable / durée : 3.0 heure(s) : Site injoignable Diagnostic : aucun équipement n'est joignable sur le site Périmètre de l'incident : l'ensemble du site. Impact de l'incident : coupure du service Le site a-t-il été informé? non Alerte Kiwi "#21449015" ouverte le 09/06/2021 à 14:20 Résultat : Le service est rétabli sur le site La Madeleine suite à la prise en charge de l'incident par nos équipes.
A19: Les Clémentines | B19: 84 | C19: 100 | D19: 100 | E19: 17 | F19: 59.2 | G19: 77.5 | H19: 51.9 | I19: 66.1 | J19: 0 | K19: Fibre | L19: SmartCampus
A20: Les Collinettes | B20: 253 | C20: 100 | D20: 99.95 | E20: 22 | F20: 131.7 | G20: 155.8 | H20: 125.6 | I20: 143.4 | J20: 0 | K20: Fibre | L20: SmartCampus | M20: Le 04/06/21 / responsabilité SmartCampus / Site injoignable / durée : 0.0 heure(s) : Site injoignable Diagnostic : aucun équipement n'est joignable sur le site Périmètre de l'incident : l'ensemble du site. Impact de l'incident : coupure du service Le site a-t-il été informé? non Alerte Kiwi "#21448801" ouverte le 04/06/2021 à 13:44 Résultat : Le service est rétabli sur le site Les Collinettes suite à la prise en charge de l'incident par nos équipes.
A21: Les Dolines | B21: 222 | C21: 100 | D21: 100 | E21: 18 | F21: 86.7 | G21: 139.6 | H21: 71.8 | I21: 105.2 | J21: 0 | K21: Fibre | L21: SmartCampus
A22: Montebello | B22: 342 | C22: 100 | D22: 100 | E22: 19 | F22: 136.9 | G22: 203.2 | H22: 94 | I22: 167.5 | J22: 0 | K22: Fibre | L22: SmartCampus
A23: Newton | B23: 224 | C23: 100 | D23: 100 | E23: 17 | F23: 96.8 | G23: 144.2 | H23: 73.2 | I23: 108.3 | J23: 0 | K23: Fibre | L23: SmartCampus
A24: Olivier Chesneau | B24: 257 | C24: 100 | D24: 100 | E24: 18 | F24: 106.4 | G24: 162.6 | H24: 78.8 | I24: 143.1 | J24: 0 | K24: Fibre | L24: SmartCampus
A25: Portalis | B25: 106 | C25: 100 | D25: 100 | E25: 14 | F25: 60.6 | G25: 89.8 | H25: 51.4 | I25: 69.8 | J25: 0 | K25: Fibre | L25: SmartCampus
A26: Residence Valrose | B26: 200 | C26: 100 | D26: 100 | E26: 19 | F26: 117 | G26: 149.8 | H26: 104.6 | I26: 129.4 | J26: 0 | K26: Fibre | L26: SmartCampus
A27: Romain Gary | B27: 169 | C27: 100 | D27: 100 | E27: 16 | F27: 90.8 | G27: 121.4 | H27: 81.7 | I27: 106 | J27: 0 | K27: Fibre | L27: PlanetCampus
A28: Saint-Antoine | B28: 358 | C28: 100 | D28: 99.98 | E28: 20 | F28: 201 | G28: 233.5 | H28: 190.8 | I28: 215.7 | J28: 0 | K28: Fibre | L28: SmartCampus | M28: Le 01/06/21 / responsabilité SmartCampus / Site injoignable / durée : 0.0 heure(s) : Site injoignable Diagnostic : aucun équipement n'est joignable sur le site Périmètre de l'incident : l'ensemble du site. Impact de l'incident : coupure du service Le site a-t-il été informé? non Alerte Kiwi "#21448593" ouverte le 01/06/2021 à 09:48 Résultat : Le service est rétabli sur le site Saint-Antoine suite à la prise en charge de l'incident par nos équipes.

Sheet Normandie
A3: Etablissement | B3: NB Chb | C3: Dispo (resp. SC) (%) | D3: Dispo (toutes resp) (%) | E3: LatMax (ms) | F3: BPMin (Mb/s) | G3: BPMoy (Mb/s) | H3: BPMin 19h-23h (Mb/s) | I3: BPMoy 19h-23h (Mb/s) | J3: Nb de Chb fibrées | K3: Nb de Chb en cours de fibrage
A4: CROUS Normandie | B4: =SUM(B8:B47) -> 10136 | C4: =SUMPRODUCT(B8:B47,C8:C47)/SUM(B8:B47) -> 99.94611977 | D4: =SUMPRODUCT(B8:B47,D8:D47)/SUM(B8:B47) -> 99.83341456 | E4: =SUMPRODUCT(B8:B47,E8:E47)/SUM(B8:B47) -> 8.709550118 | F4: =SUMPRODUCT(B8:B47,F8:F47)/SUM(B8:B47) -> 233.0176796 | G4: =SUMPRODUCT(B8:B47,G8:G47)/SUM(B8:B47) -> 282.8098658 | H4: =SUMPRODUCT(B8:B47,H8:H47)/SUM(B8:B47) -> 214.0148185 | I4: =SUMPRODUCT(B8:B47,I8:I47)/SUM(B8:B47) -> 249.202871 | J4: =SUMIFS(B8:B47,K8:K47,"=Fibre") -> 10114 | K4: =SUMIFS(B8:B47,K8:K47,"=Fibrage en cours") -> 0
J5: =J4/B4 -> 0.9978295185 | K5: =K4/B4 -> 0
A7: Résidence | B7: NB Chb | C7: Dispo (resp. SC) (%) | D7: Dispo (toutes resp) (%) | E7: LatMax (ms) | F7: BPMin (Mb/s) | G7: BPMoy (Mb/s) | H7: BPMin 19h-23h (Mb/s) | I7: BPMoy 19h-23h (Mb/s) | J7: Hors GTR | K7: Collecte | L7: Type de service | M7: Remarques
A8: A'Dock | B8: 101 | C8: 100 | D8: 100 | E8: 29 | F8: 74.1 | G8: 83.8 | H8: 71 | I8: 77.1 | J8: 0 | K8: Fibre | L8: SmartCampus
A9: ANDRÉ BRETON | B9: 179 | C9: 99.8 | D9: 99.52 | E9: 7 | F9: 74.2 | G9: 115.4 | H9: 69.1 | I9: 88 | J9: 0 | K9: Fibre | L9: SmartCampus | M9: Le 11/06/21 / responsabilité SmartCampus / Site injoignable / durée : 2.0 heure(s) : Site injoignable Diagnostic : aucun équipement n'est joignable sur le site Périmètre de l'incident : l'ensemble du site. Impact de l'incident : coupure du service Le site a-t-il été informé? non Alerte Kiwi "#21449172" ouverte le 11/06/2021 à 17:42 Résultat : Le service est rétabli sur le site André Breton suite à la prise en charge de l'incident par nos équipes. Le 11/06/21 / responsabilité SmartCampus / Site injoignable / durée : 1.0 heure(s) : Site injoignable / service Wifirst totalement indisponible Diagnostic : Les équipements Wifirst sont injoignables ou les services Wifirst ne sont plus opérationnels Périmètre : l’ensemble du site Impact : Service interrompu Résultat : Action(s) réalisée(s) : Commentaire : le service est rétabli suite à défaut énergie sur site
A10: Barbet | B10: 82 | C10: 100 | D10: 100 | E10: 22 | F10: 66.7 | G10: 80.7 | H10: 60.9 | I10: 72.2 | J10: 0 | K10: Fibre | L10: SmartCampus
A11: Bougainville | B11: 119 | C11: 100 | D11: 100 | E11: 14 | F11: 75.8 | G11: 95.2 | H11: 72.1 | I11: 81.4 | J11: 0 | K11: Fibre | L11: SmartCampus
A12: Boulevard des Belges | B12: 136 | C12: 100 | D12: 100 | E12: 4 | F12: 69.8 | G12: 100 | H12: 55.2 | I12: 82.2 | J12: 0 | K12: Fibre | L12: SmartCampus
A13: Bovary | B13: 136 | C13: 100 | D13: 100 | E13: 16 | F13: 80.2 | G13: 104.4 | H13: 69.6 | I13: 88.3 | J13: 0 | K13: Fibre | L13: SmartCampus
A14: Cap Avenues | B14: 82 | C14: 100 | D14: 100 | E14: 8 | F14: 54.3 | G14: 74.8 | H14: 36.5 | I14: 63.1 | J14: 0 | K14: Fibre | L14: SmartCampus
A15: Caucriauville | B15: 238 | C15: 100 | D15: 100 | E15: 25 | F15: 136.3 | G15: 158.9 | H15: 132.2 | I15: 152 | J15: 0 | K15: Fibre | L15: SmartCampus
A16: Cité universitaire campus 1 Bat Lorge | B16: 22 | C16: 100 | D16: 99.98 | E16: 65 | F16: 6.9 | G16: 8.8 | H16: 5.8 | I16: 8.2 | J16: 0 | K16: ADSL | L16: SmartCampus | M16: Le 10/06/21 / responsabilité SmartCampus / Site injoignable / durée : 0.0 heure(s) : Site injoignable Diagnostic : aucun équipement n'est joignable sur le site Périmètre de l'incident : l'ensemble du site. Impact de l'incident : coupure du service Le site a-t-il été informé? non Alerte Kiwi "#21449125" ouverte le 10/06/2021 à 17:54 Résultat : Le service est rétabli sur le site Cité universitaire campus 1 Bat Lorge suite à la prise en charge de l'incident par nos équipes.
A17: Cité Universitaire Campus 1 Cité Campus | B17: 704 | C17: 100 | D17: 99.27 | E17: 4 | F17: 390.1 | G17: 466.4 | H17: 360.1 | I17: 417.5 | J17: 1 | K17: Fibre | L17: SmartCampus | M17: Le 10/06/21 / responsabilité SmartCampus / Site injoignable / durée : 5.0 heure(s) : Site injoignable Diagnostic : aucun équipement n'est joignable sur le site Périmètre de l'incident : l'ensemble du site. Impact de l'incident : coupure du service Le site a-t-il été informé? non Alerte Kiwi "#21449114" ouverte le 10/06/2021 à 12:06 Résultat : Le service est rétabli sur le site Campus 1 (Cité U) suite à la prise en charge de l'incident par nos équipes.
A18: Cité Universitaire Campus 1(batiment F, B,G) | B18: 343 | C18: 100 | D18: 99.27 | E18: 4 | F18: 276.6 | G18: 322.6 | H18: 247.9 | I18: 293 | J18: 1 | K18: Fibre | L18: SmartCampus | M18: Le 10/06/21 / responsabilité SmartCampus / Site injoignable / durée : 5.0 heure(s) : Site injoignable Diagnostic : aucun équipement n'est joignable sur le site Périmètre de l'incident : l'ensemble du site. Impact de l'incident : coupure du service Le site a-t-il été informé? non Alerte Kiwi "#21449110" ouverte le 10/06/2021 à 12:06 Résultat : Le service est rétabli sur le site Campus 1 (Cité U) suite à la prise en charge de l'incident par nos équipes.
A19: CLOVIS | B19: 100 | C19: 100 | D19: 100 | E19: 31 | F19: 54 | G19: 79.2 | H19: 47.1 | I19: 64.7 | J19: 0 | K19: Fibre | L19: SmartCampus
A20: Côte de Nacre | B20: 324 | C20: 100 | D20: 100 | E20: 4 | F20: 804.4 | G20: 852.9 | H20: 792.4 | I20: 817.8 | J20: 0 | K20: Fibre | L20: SmartCampus
A21: Crous Caen - Herouville - Grémillon A, B, C, D, E | B21: 596 | C21: 99.8 | D21: 99.52 | E21: 7 | F21: 210.8 | G21: 299.8 | H21: 154.8 | I21: 231.7 | J21: 0 | K21: Fibre | L21: SmartCampus | M21: Le 11/06/21 / responsabilité SmartCampus / Site injoignable / durée : 2.0 heure(s) : Site injoignable Diagnostic : aucun équipement n'est joignable sur le site Périmètre de l'incident : l'ensemble du site. Impact de l'incident : coupure du service Le site a-t-il été informé? non Alerte Kiwi "#21449173" ouverte le 11/06/2021 à 17:42 Résultat : Le service est rétabli sur le site Herouville Grémillon (bat A à E) suite à la prise en charge de l'incident par nos équipes. Le 11/06/21 / responsabilité SmartCampus / Site injoignable / durée : 1.0 heure(s) : Site injoignable / service Wifirst totalement indisponible Diagnostic : Les équipements Wifirst sont injoignables ou les services Wifirst ne sont plus opérationnels Périmètre : l’ensemble du site Impact : Service interrompu Résultat : Action(s) réalisée(s) : Commentaire : le service est rétabli suite à défaut énergie sur site
A22: CROUS CAEN - Lebisey | B22: 867 | C22: 100 | D22: 100 | E22: 15 | F22: 408.8 | G22: 521.2 | H22: 364.1 | I22: 439.9 | J22: 0 | K22: Fibre | L22: PlanetCampus
A23: DUGUAY TROUIN | B23: 97 | C23: 100 | D23: 100 | E23: 23 | F23: 78.1 | G23: 90.3 | H23: 73.2 | I23: 83.8 | J23: 0 | K23: Fibre | L23: SmartCampus
A24: Erik Satie | B24: 180 | C24: 100 | D24: 100 | E24: 4 | F24: 128.9 | G24: 157.3 | H24: 119.9 | I24: 139.7 | J24: 0 | K24: Fibre | L24: SmartCampus
A25: Galois | B25: 148 | C25: 100 | D25: 100 | E25: 11 | F25: 74.5 | G25: 104.2 | H25: 60.4 | I25: 83.5 | J25: 0 | K25: Fibre | L25: SmartCampus
A26: Georges Charpak | B26: 75 | C26: 100 | D26: 100 | E26: 8 | F26: 58.4 | G26: 75.4 | H26: 55.6 | I26: 65.4 | J26: 0 | K26: Fibre | L26: SmartCampus
A27: Godehilde | B27: 119 | C27: 100 | D27: 100 | E27: 6 | F27: 87.7 | G27: 102.5 | H27: 79.3 | I27: 94.2 | J27: 0 | K27: Fibre | L27: SmartCampus
A28: Jardins St Paul A-B | B28: 95 | C28: 100 | D28: 100 | E28: 24 | F28: 65.8 | G28: 78.8 | H28: 58.8 | I28: 71.6 | J28: 0 | K28: Fibre | L28: SmartCampus
A29: l'Iton | B29: 270 | C29: 100 | D29: 100 | E29: 12 | F29: 206.6 | G29: 243.5 | H29: 194.6 | I29: 219.5 | J29: 0 | K29: Fibre | L29: SmartCampus
A30: La Varende | B30: 101 | C30: 100 | D30: 99.96 | E30: 4 | F30: 51.8 | G30: 82.9 | H30: 45.2 | I30: 60.7 | J30: 0 | K30: Fibre | L30: SmartCampus | M30: Le 21/06/21 / responsabilité SmartCampus / Site injoignable / durée : 0.0 heure(s) : Site injoignable Diagnostic : aucun équipement n'est joignable sur le site Périmètre de l'incident : l'ensemble du site. Impact de l'incident : coupure du service Le site a-t-il été informé? non Alerte Kiwi "#21449594" ouverte le 21/06/2021 à 11:50 Résultat : Le service est rétabli sur le site La Varende suite à la prise en charge de l'incident par nos équipes.
A31: Labedoyere | B31: 96 | C31: 100 | D31: 99.43 | E31: 24 | F31: 52.8 | G31: 73.4 | H31: 46.6 | I31: 61.2 | J31: 1 | K31: Fibre | L31: SmartCampus | M31: Le 02/06/21 / responsabilité SmartCampus / Site injoignable / durée : 4.0 heure(s) : Site injoignable Diagnostic : aucun équipement n'est joignable sur le site Périmètre de l'incident : l'ensemble du site. Impact de l'incident : coupure du service Le site a-t-il été informé? non Alerte Kiwi "#21448688" ouverte le 02/06/2021 à 20:12 Résultat : site à nouveau joignable
A32: Le Havre Delavigne A-B-C | B32: 120 | C32: 100 | D32: 100 | E32: 18 | F32: 68.2 | G32: 89.6 | H32: 60.4 | I32: 76.8 | J32: 0 | K32: Fibre | L32: SmartCampus
A33: Le Rouvray | B33: 141 | C33: 100 | D33: 100 | E33: 4 | F33: 69.8 | G33: 115.6 | H33: 55.6 | I33: 84.5 | J33: 0 | K33: Fibre | L33: SmartCampus
A34: Lecesne | B34: 138 | C34: 100 | D34: 100 | E34: 23 | F34: 59.3 | G34: 90.6 | H34: 48.9 | I34: 71 | J34: 0 | K34: Fibre | L34: PlanetCampus
A35: Madrillet (A, B, C) | B35: 99 | C35: 100 | D35: 100 | E35: 4 | F35: 30.5 | G35: 65.6 | H35: 17.2 | I35: 40.6 | J35: 0 | K35: Fibre | L35: SmartCampus
A36: Malibran | B36: 139 | C36: 100 | D36: 100 | E36: 4 | F36: 94.5 | G36: 111.1 | H36: 90.9 | I36: 101.4 | J36: 0 | K36: Fibre | L36: SmartCampus
A37: Panorama 1 (Honneger-Saint Saens-Boiledieu) | B37: 308 | C37: 100 | D37: 100 | E37: 4 | F37: 48.3 | G37: 76 | H37: 42.2 | I37: 59.3 | J37: 0 | K37: Fibre | L37: SmartCampus
A38: Panorama 2 (Scudery-Maupassant-Flaubert-Delavigne-Ango) | B38: 495 | C38: 100 | D38: 100 | E38: 4 | F38: 110.6 | G38: 135.9 | H38: 100.1 | I38: 120.1 | J38: 0 | K38: Fibre | L38: SmartCampus
A39: Panorama 3 (Thomas Corneille-Pierre Corneille-Gericault-Dufy-PleiadeB) | B39: 379 | C39: 100 | D39: 100 | E39: 4 | F39: 44.8 | G39: 65.7 | H39: 35.7 | I39: 51.9 | J39: 0 | K39: Fibre | L39: SmartCampus
A40: Panorama 4 Cité du Bois (Poussin-Monet) | B40: 620 | C40: 100 | D40: 100 | E40: 4 | F40: 133.4 | G40: 170.2 | H40: 113.4 | I40: 145.1 | J40: 0 | K40: Fibre | L40: SmartCampus
A41: Pierre Gilles de Gennes - Rouen | B41: 115 | C41: 100 | D41: 100 | E41: 27 | F41: 72 | G41: 92.7 | H41: 63.2 | I41: 82 | J41: 0 | K41: Fibre | L41: SmartCampus
A42: Pléiade B | B42: 125 | C42: 100 | D42: 100 | E42: 4 | F42: 25.7 | G42: 34.2 | H42: 23.1 | I42: 28.8 | J42: 0 | K42: Fibre | L42: SmartCampus
A43: Résidence Edmont Bacot Bat 1-9 | B43: 745 | C43: 100 | D43: 100 | E43: 4 | F43: 752.8 | G43: 823.3 | H43: 732.4 | I43: 777.7 | J43: 0 | K43: Fibre | L43: SmartCampus
A44: Résidence Edmont Bacot Bat A,B,C | B44: 171 | C44: 97.97 | D44: 97.97 | E44: 4 | F44: 129 | G44: 160.7 | H44: 132.7 | I44: 148.7 | J44: 1 | K44: Fibre | L44: SmartCampus | M44: Le 23/06/21 / responsabilité SmartCampus / Site injoignable / durée : 14.0 heure(s) : Site injoignable / service Wifirst totalement indisponible Diagnostic : Les équipements Wifirst sont injoignables ou les services Wifirst ne sont plus opérationnels Périmètre : l’ensemble du site Impact : Service interrompu Résultat : Action(s) réalisée(s) : Commentaire : wibox remplacé ; conf OK , test avec le client OK
A45: Résidence La Pléiade A1-A2-A3 | B45: 970 | C45: 100 | D45: 100 | E45: 4 | F45: 189.4 | G45: 256.9 | H45: 172.4 | I45: 210.8 | J45: 0 | K45: Fibre | L45: SmartCampus
A46: Résidence Universitaire Flora Tristan | B46: 220 | C46: 99.8 | D46: 99.51 | E46: 7 | F46: 100.8 | G46: 140.4 | H46: 85.7 | I46: 112.1 | J46: 0 | K46: Fibre | L46: PlanetCampus | M46: Le 11/06/21 / responsabilité SmartCampus / Site injoignable / durée : 2.0 heure(s) : Site injoignable Diagnostic : aucun équipement n'est joignable sur le site Périmètre de l'incident : l'ensemble du site. Impact de l'incident : coupure du service Le site a-t-il été informé? non Alerte Kiwi "#21449171" ouverte le 11/06/2021 à 17:40 Résultat : Le service est rétabli sur le site Résidence Universitaire Flora Tristan suite à la prise en charge de l'incident par nos équipes. Le 11/06/21 / responsabilité SmartCampus / Site injoignable / durée : 1.0 heure(s) : Site injoignable / service Wifirst totalement indisponible Diagnostic : Les équipements Wifirst sont injoignables ou les services Wifirst ne sont plus opérationnels Périmètre : l’ensemble du site Impact : Service interrompu Résultat : Action(s) réalisée(s) : Commentaire : le service est rétabli suite à défaut énergie sur site
A47: Saint-Nicolas | B47: 141 | C47: 100 | D47: 99.73 | E47: 23 | F47: 89.8 | G47: 115.5 | H47: 79 | I47: 95.9 | J47: 0 | K47: Fibre | L47: SmartCampus | M47: Le 27/06/21 / responsabilité SmartCampus / Site injoignable / durée : 1.0 heure(s) : Site injoignable Diagnostic : aucun équipement n'est joignable sur le site Périmètre de l'incident : l'ensemble du site. Impact de l'incident : coupure du service Le site a-t-il été informé? non Alerte Kiwi "#21449897" ouverte le 27/06/2021 à 13:50 Résultat : Le service est rétabli sur le site Saint-Nicolas suite à la prise en charge de l'incident par nos équipes.

Sheet ORLEANS TOURS
A3: Etablissement | B3: NB Chb | C3: Dispo (resp. SC) (%) | D3: Dispo (toutes resp) (%) | E3: LatMax (ms) | F3: BPMin (Mb/s) | G3: BPMoy (Mb/s) | H3: BPMin 19h-23h (Mb/s) | I3: BPMoy 19h-23h (Mb/s) | J3: Nb de Chb fibrées | K3: Nb de Chb en cours de fibrage
A4: CROUS ORLEANS TOURS | B4: =SUM(B8:B42) -> 5470 | C4: =SUMPRODUCT(B8:B42,C8:C42)/SUM(B8:B42) -> 99.99969287 | D4: =SUMPRODUCT(B8:B42,D8:D42)/SUM(B8:B42) -> 99.8977075 | E4: =SUMPRODUCT(B8:B42,E8:E42)/SUM(B8:B42) -> 11.69744059 | F4: =SUMPRODUCT(B8:B42,F8:F42)/SUM(B8:B42) -> 134.8590128 | G4: =SUMPRODUCT(B8:B42,G8:G42)/SUM(B8:B42) -> 178.6377879 | H4: =SUMPRODUCT(B8:B42,H8:H42)/SUM(B8:B42) -> 115.806106 | I4: =SUMPRODUCT(B8:B42,I8:I42)/SUM(B8:B42) -> 148.7691408 | J4: =SUMIFS(B8:B42,K8:K42,"=Fibre") -> 5397 | K4: =SUMIFS(B8:B42,K8:K42,"=Fibrage en cours") -> 0
J5: =J4/B4 -> 0.986654479 | K5: =K4/B4 -> 0
A7: Résidence | B7: NB Chb | C7: Dispo (resp. SC) (%) | D7: Dispo (toutes resp) (%) | E7: LatMax (ms) | F7: BPMin (Mb/s) | G7: BPMoy (Mb/s) | H7: BPMin 19h-23h (Mb/s) | I7: BPMoy 19h-23h (Mb/s) | J7: Hors GTR | K7: Collecte | L7: Type de service | M7: Remarques
A8: Amarillys | B8: 48 | C8: 100 | D8: 100 | E8: 16 | F8: 74.6 | G8: 84.3 | H8: 62.4 | I8: 77.8 | J8: 0 | K8: Fibre | L8: PlanetCampus
A9: Aristote | B9: 252 | C9: 100 | D9: 100 | E9: 3 | F9: 77.4 | G9: 101.7 | H9: 68 | I9: 84.9 | J9: 0 | K9: Fibre | L9: PlanetCampus
A10: Campo Santo | B10: 126 | C10: 100 | D10: 100 | E10: 13 | F10: 78.1 | G10: 101.9 | H10: 74.8 | I10: 90 | J10: 0 | K10: Fibre | L10: SmartCampus
A11: Charlemagne | B11: 35 | C11: 100 | D11: 100 | E11: 52 | F11: 51.1 | G11: 58.6 | H11: 48.1 | I11: 55.2 | J11: 0 | K11: Fibre | L11: PlanetCampus
A12: Christophe Colomb | B12: 78 | C12: 100 | D12: 100 | E12: 5 | F12: 62 | G12: 79.4 | H12: 53.8 | I12: 67.3 | J12: 0 | K12: Fibre | L12: PlanetCampus
A13: Cité universitaire des TANNEURS | B13: 153 | C13: 100 | D13: 100 | E13: 12 | F13: 93.5 | G13: 114.4 | H13: 87.2 | I13: 102.5 | J13: 0 | K13: Fibre | L13: SmartCampus
A14: Coinchettes | B14: 55 | C14: 100 | D14: 92.76 | E14: 42 | F14: 6.8 | G14: 8.7 | H14: 6.8 | I14: 8.3 | J14: 1 | K14: ADSL | L14: SmartCampus | M14: Le 25/06/21 / responsabilité SmartCampus / Site injoignable / durée : 52.0 heure(s) : Site injoignable Diagnostic : aucun équipement n'est joignable sur le site Périmètre de l'incident : l'ensemble du site. Impact de l'incident : coupure du service Le site a-t-il été informé? non Alerte Kiwi "#21449861" ouverte le 25/06/2021 à 15:16 Résultat : Action(s) réalisée(s) : Commentaire : La baie a disjoncté. Modem Ligne 2 sur le mauvais port du switch (port 7) deplacé sur le port 2. test ligne 2 OK. disjoncteur ON de la baie. Test ligne 1 OK. Test Ligne 3 OK. RAS Site UP si le service tombe à nouveau ré-intervenir pour changé le modem 4G.
A15: Desfray | B15: 113 | C15: 100 | D15: 100 | E15: 43 | F15: 103.3 | G15: 122 | H15: 90.9 | I15: 109.4 | J15: 0 | K15: Fibre | L15: PlanetCampus
A16: Dessaux | B16: 110 | C16: 100 | D16: 100 | E16: 13 | F16: 55.3 | G16: 86.4 | H16: 48.6 | I16: 65.8 | J16: 0 | K16: Fibre | L16: PlanetCampus
A17: Ducoux | B17: 98 | C17: 100 | D17: 100 | E17: 40 | F17: 68.2 | G17: 85.9 | H17: 63.4 | I17: 74.6 | J17: 0 | K17: Fibre | L17: PlanetCampus
A18: Europa Tours | B18: 168 | C18: 99.99 | D18: 99.99 | E18: 29 | F18: 96.7 | G18: 120.4 | H18: 88.6 | I18: 105.7 | J18: 0 | K18: Fibre | L18: SmartCampus | M18: Le 16/06/21 / responsabilité SmartCampus / Site injoignable / durée : 0.0 heure(s) : Site injoignable / service Wifirst totalement indisponible Diagnostic : Les équipements Wifirst sont injoignables ou les services Wifirst ne sont plus opérationnels Périmètre : l’ensemble du site Impact : Service interrompu Résultat : TP en cours : https://ticket-v2.wifirst.net/tickets#?id=228433
A19: Flandres | B19: 62 | C19: 100 | D19: 100 | E19: 43 | F19: 66.7 | G19: 77 | H19: 62.2 | I19: 71.1 | J19: 0 | K19: Fibre | L19: PlanetCampus
A20: Gibjoncs | B20: 206 | C20: 100 | D20: 100 | E20: 12 | F20: 137.5 | G20: 159.8 | H20: 126.4 | I20: 144.9 | J20: 0 | K20: Fibre | L20: PlanetCampus
A21: Grandmont | B21: 535 | C21: 100 | D21: 100 | E21: 9 | F21: 465.7 | G21: 582 | H21: 382.6 | I21: 496.7 | J21: 0 | K21: Fibre | L21: PlanetCampus
A22: Helene Boucher Tours | B22: 89 | C22: 100 | D22: 100 | E22: 13 | F22: 59.5 | G22: 77 | H22: 51.7 | I22: 65.4 | J22: 0 | K22: Fibre | L22: PlanetCampus
A23: Hotel Dieu | B23: 74 | C23: 100 | D23: 100 | E23: 18 | F23: 67.4 | G23: 81.8 | H23: 63 | I23: 72.2 | J23: 0 | K23: Fibre | L23: PlanetCampus
A24: Jacquard | B24: 39 | C24: 100 | D24: 96.01 | E24: 19 | F24: 58.6 | G24: 63.2 | H24: 55.4 | I24: 60.8 | J24: 1 | K24: Fibre | L24: PlanetCampus | M24: Le 02/06/21 / responsabilité SmartCampus / Site injoignable / durée : 28.0 heure(s) : Site injoignable Diagnostic : aucun équipement n'est joignable sur le site Périmètre de l'incident : l'ensemble du site. Impact de l'incident : coupure du service Le site a-t-il été informé? non Alerte Kiwi "#21448664" ouverte le 02/06/2021 à 12:04 Résultat : Action(s) réalisée(s) : Commentaire : Problème d'alimentation électrique disjoncteur Off. Site Up aprés reboot. RAS.
A25: Jean Zay - Chartres | B25: 51 | C25: 100 | D25: 100 | E25: 5 | F25: 68.5 | G25: 78.5 | H25: 63.5 | I25: 71.8 | J25: 0 | K25: Fibre | L25: PlanetCampus
A26: L'Indien (Hetres - Roses - Dahlias) | B26: 654 | C26: 100 | D26: 100 | E26: 3 | F26: 150.1 | G26: 229.1 | H26: 120.5 | I26: 170 | J26: 0 | K26: Fibre | L26: PlanetCampus
A27: La Chapelle | B27: 18 | C27: 100 | D27: 100 | E27: 47 | F27: 8.3 | G27: 9.5 | H27: 7.5 | I27: 9.2 | J27: 0 | K27: ADSL | L27: SmartCampus
A28: La Croix Montoire-Petit Trianon | B28: 60 | C28: 100 | D28: 100 | E28: 5 | F28: 92.5 | G28: 97.1 | H28: 90.2 | I28: 95.3 | J28: 0 | K28: Fibre | L28: SmartCampus
A29: Les Charmes | B29: 190 | C29: 100 | D29: 100 | E29: 3 | F29: 50 | G29: 74.6 | H29: 47 | I29: 57.3 | J29: 0 | K29: Fibre | L29: PlanetCampus
A30: Les Chataigniers | B30: 338 | C30: 100 | D30: 100 | E30: 3 | F30: 84.6 | G30: 128.6 | H30: 77.5 | I30: 101.8 | J30: 0 | K30: Fibre | L30: PlanetCampus
A31: Les Garennes | B31: 235 | C31: 100 | D31: 100 | E31: 6 | F31: 73.1 | G31: 136.1 | H31: 48.3 | I31: 93.5 | J31: 0 | K31: Fibre | L31: PlanetCampus
A32: Les Magnolias | B32: 190 | C32: 100 | D32: 100 | E32: 3 | F32: 51.2 | G32: 74.4 | H32: 47.6 | I32: 59.6 | J32: 0 | K32: Fibre | L32: PlanetCampus
A33: Les Ormes | B33: 246 | C33: 100 | D33: 100 | E33: 3 | F33: 88.7 | G33: 106.3 | H33: 77.2 | I33: 96.7 | J33: 0 | K33: Fibre | L33: PlanetCampus
A34: Marie Curie - Lahitolle | B34: 81 | C34: 100 | D34: 99.95 | E34: 12 | F34: 71.5 | G34: 84.9 | H34: 65.6 | I34: 78.6 | J34: 0 | K34: Fibre | L34: SmartCampus | M34: Le 29/06/21 / responsabilité SmartCampus / Site injoignable / durée : 0.0 heure(s) : Site injoignable Diagnostic : aucun équipement n'est joignable sur le site Périmètre de l'incident : l'ensemble du site. Impact de l'incident : coupure du service Le site a-t-il été informé? non Alerte Kiwi "#21449966" ouverte le 29/06/2021 à 09:50 Résultat : Le service est rétabli sur le site Marie Curie - Lahitolle suite à la prise en charge de l'incident par nos équipes.
A35: Merleau Ponty | B35: 51 | C35: 100 | D35: 100 | E35: 12 | F35: 57.3 | G35: 66.7 | H35: 54.8 | I35: 62 | J35: 0 | K35: Fibre | L35: PlanetCampus
A36: Rabelais - Tours | B36: 160 | C36: 100 | D36: 100 | E36: 12 | F36: 60.3 | G36: 110.4 | H36: 43.9 | I36: 80.5 | J36: 0 | K36: Fibre | L36: SmartCampus
A37: Rocheron | B37: 80 | C37: 100 | D37: 100 | E37: 33 | F37: 65.9 | G37: 84.9 | H37: 53.7 | I37: 72.5 | J37: 0 | K37: Fibre | L37: PlanetCampus
A38: Saint Symphorien | B38: 150 | C38: 100 | D38: 100 | E38: 9 | F38: 49.2 | G38: 70.3 | H38: 39.8 | I38: 55.9 | J38: 0 | K38: Fibre | L38: SmartCampus
A39: Sanitas | B39: 127 | C39: 100 | D39: 100 | E39: 34 | F39: 77.5 | G39: 99.4 | H39: 68.5 | I39: 87.6 | J39: 0 | K39: Fibre | L39: SmartCampus
A40: Technopole Tours | B40: 400 | C40: 100 | D40: 100 | E40: 12 | F40: 247.4 | G40: 315.4 | H40: 232.3 | I40: 272.3 | J40: 0 | K40: Fibre | L40: PlanetCampus
A41: Tonnelle - Tours | B41: 126 | C41: 100 | D41: 100 | E41: 13 | F41: 76.7 | G41: 100.2 | H41: 62.9 | I41: 86.6 | J41: 0 | K41: Fibre | L41: PlanetCampus
A42: Toussaint Desanti | B42: 72 | C42: 100 | D42: 100 | E42: 4 | F42: 68.4 | G42: 77.9 | H42: 63 | I42: 71.2 | J42: 0 | K42: Fibre | L42: PlanetCampus

Sheet POITIERS
A3: Etablissement | B3: NB Chb | C3: Dispo (resp. SC) (%) | D3: Dispo (toutes resp) (%) | E3: LatMax (ms) | F3: BPMin (Mb/s) | G3: BPMoy (Mb/s) | H3: BPMin 19h-23h (Mb/s) | I3: BPMoy 19h-23h (Mb/s) | J3: Nb de Chb fibrées | K3: Nb de Chb en cours de fibrage
A4: CROUS POITIERS | B4: =SUM(B8:B11) -> 589 | C4: =SUMPRODUCT(B8:B11,C8:C11)/SUM(B8:B11) -> 100 | D4: =SUMPRODUCT(B8:B11,D8:D11)/SUM(B8:B11) -> 99.89813243 | E4: =SUMPRODUCT(B8:B11,E8:E11)/SUM(B8:B11) -> 13.6672326 | F4: =SUMPRODUCT(B8:B11,F8:F11)/SUM(B8:B11) -> 536.5619694 | G4: =SUMPRODUCT(B8:B11,G8:G11)/SUM(B8:B11) -> 589.7925297 | H4: =SUMPRODUCT(B8:B11,H8:H11)/SUM(B8:B11) -> 521.0541596 | I4: =SUMPRODUCT(B8:B11,I8:I11)/SUM(B8:B11) -> 556.9904924 | J4: =SUMIFS(B8:B11,K8:K11,"=Fibre") -> 589 | K4: =SUMIFS(B8:B11,K8:K11,"=Fibrage en cours") -> 0
J5: =J4/B4 -> 1 | K5: =K4/B4 -> 0
A7: Résidence | B7: NB Chb | C7: Dispo (resp. SC) (%) | D7: Dispo (toutes resp) (%) | E7: LatMax (ms) | F7: BPMin (Mb/s) | G7: BPMoy (Mb/s) | H7: BPMin 19h-23h (Mb/s) | I7: BPMoy 19h-23h (Mb/s) | J7: Hors GTR | K7: Collecte | L7: Type de service | M7: Remarques
A8: CROUS POITIERS / COULOMB | B8: 30 | C8: 100 | D8: 100 | E8: 10 | F8: 38.4 | G8: 49.6 | H8: 30.5 | I8: 42.7 | J8: 0 | K8: Fibre | L8: PlanetCampus
A9: L'Auberge Espagnole | B9: 63 | C9: 100 | D9: 100 | E9: 10 | F9: 51.4 | G9: 69.8 | H9: 46.1 | I9: 58.4 | J9: 0 | K9: Fibre | L9: SmartCampus
A10: Rabelais-Poitiers | B10: 400 | C10: 100 | D10: 99.85 | E10: 13 | F10: 765 | G10: 835.3 | H10: 745.8 | I10: 792 | J10: 0 | K10: Fibre | L10: PlanetCampus | M10: Le 18/06/21 / responsabilité SmartCampus / Site injoignable / durée : 1.0 heure(s) : Site injoignable Diagnostic : aucun équipement n'est joignable sur le site Périmètre de l'incident : l'ensemble du site. Impact de l'incident : coupure du service Le site a-t-il été informé? non Alerte Kiwi "#21449480" ouverte le 18/06/2021 à 13:22 Résultat : Le service est rétabli sur le site Rabelais - Poitiers suite à la prise en charge de l'incident par nos équipes.
A11: Saint Eloi | B11: 96 | C11: 100 | D11: 100 | E11: 20 | F11: 58.8 | G11: 76.9 | H11: 49.6 | I11: 65.7 | J11: 0 | K11: Fibre | L11: PlanetCampus

Sheet REIMS
A3: Etablissement | B3: NB Chb | C3: Dispo (resp. SC) (%) | D3: Dispo (toutes resp) (%) | E3: LatMax (ms) | F3: BPMin (Mb/s) | G3: BPMoy (Mb/s) | H3: BPMin 19h-23h (Mb/s) | I3: BPMoy 19h-23h (Mb/s) | J3: Nb de Chb fibrées | K3: Nb de Chb en cours de fibrage
A4: CROUS REIMS | B4: =SUM(B8:B23) -> 2382 | C4: =SUMPRODUCT(B8:B23,C8:C23)/SUM(B8:B23) -> 100 | D4: =SUMPRODUCT(B8:B23,D8:D23)/SUM(B8:B23) -> 100 | E4: =SUMPRODUCT(B8:B23,E8:E23)/SUM(B8:B23) -> 5.790092359 | F4: =SUMPRODUCT(B8:B23,F8:F23)/SUM(B8:B23) -> 135.6256927 | G4: =SUMPRODUCT(B8:B23,G8:G23)/SUM(B8:B23) -> 170.0960537 | H4: =SUMPRODUCT(B8:B23,H8:H23)/SUM(B8:B23) -> 119.2288833 | I4: =SUMPRODUCT(B8:B23,I8:I23)/SUM(B8:B23) -> 147.9626784 | J4: =SUMIFS(B8:B23,K8:K23,"=Fibre") -> 2382 | K4: =SUMIFS(B8:B23,K8:K23,"=Fibrage en cours") -> 0
J5: =J4/B4 -> 1 | K5: =K4/B4 -> 0
A7: Résidence | B7: NB Chb | C7: Dispo (resp. SC) (%) | D7: Dispo (toutes resp) (%) | E7: LatMax (ms) | F7: BPMin (Mb/s) | G7: BPMoy (Mb/s) | H7: BPMin 19h-23h (Mb/s) | I7: BPMoy 19h-23h (Mb/s) | J7: Hors GTR | K7: Collecte | L7: Type de service | M7: Remarques
A8: Bazeilles | B8: 28 | C8: 100 | D8: 100 | E8: 20 | F8: 49.6 | G8: 52.6 | H8: 49.4 | I8: 52.1 | J8: 0 | K8: Fibre | L8: SmartCampus
A9: Berlioz | B9: 165 | C9: 100 | D9: 100 | E9: 3 | F9: 68 | G9: 110.4 | H9: 52.1 | I9: 79.7 | J9: 0 | K9: Fibre | L9: PlanetCampus
A10: Billard | B10: 100 | C10: 100 | D10: 100 | E10: 3 | F10: 77.6 | G10: 86.1 | H10: 71.6 | I10: 82.4 | J10: 0 | K10: Fibre | L10: PlanetCampus
A11: CHARBONNEAUX | B11: 225 | C11: 100 | D11: 100 | E11: 3 | F11: 178.8 | G11: 211.7 | H11: 163.2 | I11: 190.5 | J11: 0 | K11: Fibre | L11: PlanetCampus
A12: Courtines | B12: 48 | C12: 100 | D12: 100 | E12: 14 | F12: 54.3 | G12: 62.7 | H12: 51.3 | I12: 58.9 | J12: 0 | K12: Fibre | L12: SmartCampus
A13: Evariste Galois Reims | B13: 308 | C13: 100 | D13: 100 | E13: 3 | F13: 206 | G13: 243.3 | H13: 183.9 | I13: 216.5 | J13: 0 | K13: Fibre | L13: PlanetCampus
A14: Facultes | B14: 225 | C14: 100 | D14: 100 | E14: 3 | F14: 121.9 | G14: 154 | H14: 105.1 | I14: 133.7 | J14: 0 | K14: Fibre | L14: SmartCampus
A15: FJT Chalons - Le Faubourg (CROUS) | B15: 39 | C15: 100 | D15: 100 | E15: 17 | F15: 53 | G15: 59 | H15: 49.9 | I15: 56.1 | J15: 0 | K15: Fibre | L15: PlanetCampus
A16: Gerard Philippe | B16: 330 | C16: 100 | D16: 100 | E16: 3 | F16: 207.2 | G16: 254.8 | H16: 185.2 | I16: 228.9 | J16: 0 | K16: Fibre | L16: PlanetCampus
A17: Jean Baptiste Clément | B17: 17 | C17: 100 | D17: 100 | E17: 19 | F17: 39.2 | G17: 45.5 | H17: 31 | I17: 42.2 | J17: 0 | K17: Fibre | L17: PlanetCampus
A18: La Gravière | B18: 39 | C18: 100 | D18: 100 | E18: 19 | F18: 48.2 | G18: 59.4 | H18: 35.3 | I18: 54.6 | J18: 0 | K18: Fibre | L18: PlanetCampus
A19: LE LOMBARD | B19: 120 | C19: 100 | D19: 100 | E19: 13 | F19: 43.8 | G19: 79.2 | H19: 31.9 | I19: 57.8 | J19: 0 | K19: Fibre | L19: SmartCampus
A20: Maison des Etudiants Charleville | B20: 75 | C20: 100 | D20: 100 | E20: 21 | F20: 64.5 | G20: 75.1 | H20: 60.7 | I20: 69.5 | J20: 0 | K20: Fibre | L20: PlanetCampus
A21: Paul Fort | B21: 250 | C21: 100 | D21: 100 | E21: 3 | F21: 166.6 | G21: 195.1 | H21: 159.1 | I21: 178.5 | J21: 0 | K21: Fibre | L21: PlanetCampus
A22: Theilard de Chardin | B22: 248 | C22: 100 | D22: 100 | E22: 3 | F22: 136.5 | G22: 185.8 | H22: 116.7 | I22: 151.3 | J22: 0 | K22: Fibre | L22: PlanetCampus
A23: Villehardouin | B23: 165 | C23: 100 | D23: 100 | E23: 13 | F23: 63 | G23: 104.1 | H23: 32.3 | I23: 74.4 | J23: 0 | K23: Fibre | L23: SmartCampus

Sheet RENNES-BRETAGNE
A3: Etablissement | B3: NB Chb | C3: Dispo (resp. SC) (%) | D3: Dispo (toutes resp) (%) | E3: LatMax (ms) | F3: BPMin (Mb/s) | G3: BPMoy (Mb/s) | H3: BPMin 19h-23h (Mb/s) | I3: BPMoy 19h-23h (Mb/s) | J3: Nb de Chb fibrées | K3: Nb de Chb en cours de fibrage
A4: CROUS RENNES-BRETAGNE | B4: =SUM(B8:B46) -> 7848 | C4: =SUMPRODUCT(B8:B46,C8:C46)/SUM(B8:B46) -> 99.86737258 | D4: =SUMPRODUCT(B8:B46,D8:D46)/SUM(B8:B46) -> 99.51747197 | E4: =SUMPRODUCT(B8:B46,E8:E46)/SUM(B8:B46) -> 11.94508155 | F4: =SUMPRODUCT(B8:B46,F8:F46)/SUM(B8:B46) -> 188.7149592 | G4: =SUMPRODUCT(B8:B46,G8:G46)/SUM(B8:B46) -> 244.6246814 | H4: =SUMPRODUCT(B8:B46,H8:H46)/SUM(B8:B46) -> 168.6193298 | I4: =SUMPRODUCT(B8:B46,I8:I46)/SUM(B8:B46) -> 207.6818298 | J4: =SUMIFS(B8:B46,K8:K46,"=Fibre") -> 7697 | K4: =SUMIFS(B8:B46,K8:K46,"=Fibrage en cours") -> 0
J5: =J4/B4 -> 0.9807594292 | K5: =K4/B4 -> 0
A7: Résidence | B7: NB Chb | C7: Dispo (resp. SC) (%) | D7: Dispo (toutes resp) (%) | E7: LatMax (ms) | F7: BPMin (Mb/s) | G7: BPMoy (Mb/s) | H7: BPMin 19h-23h (Mb/s) | I7: BPMoy 19h-23h (Mb/s) | J7: Hors GTR | K7: Collecte | L7: Type de service | M7: Remarques
A8: Barbara | B8: 98 | C8: 100 | D8: 100 | E8: 9 | F8: 74.7 | G8: 88.6 | H8: 67.6 | I8: 78.8 | J8: 0 | K8: Fibre | L8: PlanetCampus
A9: Beauregard | B9: 93 | C9: 100 | D9: 100 | E9: 8 | F9: 64.8 | G9: 85.3 | H9: 56.3 | I9: 72.3 | J9: 0 | K9: Fibre | L9: PlanetCampus
A10: Branly | B10: 304 | C10: 100 | D10: 100 | E10: 22 | F10: 159.1 | G10: 199 | H10: 146.6 | I10: 189.7 | J10: 0 | K10: Fibre | L10: PlanetCampus
A11: Brest Le Bouguen | B11: 379 | C11: 100 | D11: 100 | E11: 15 | F11: 271.6 | G11: 313.7 | H11: 252.6 | I11: 287.4 | J11: 0 | K11: Fibre | L11: PlanetCampus
A12: Gernugan | B12: 57 | C12: 100 | D12: 100 | E12: 14 | F12: 57.1 | G12: 66.8 | H12: 48.6 | I12: 61.1 | J12: 0 | K12: Fibre | L12: PlanetCampus
A13: Jean Ferrat - Buttes de Coesmes A | B13: 40 | C13: 92.38 | D13: 92.38 | E13: 52 | F13: 10.1 | G13: 13 | H13: 9.7 | I13: 12.7 | J13: 1 | K13: ADSL | L13: SmartCampus | M13: Le 17/06/21 / responsabilité SmartCampus / Site injoignable / durée : 54.0 heure(s) : Site injoignable Diagnostic : aucun équipement n'est joignable sur le site Périmètre de l'incident : l'ensemble du site. Impact de l'incident : coupure du service Le site a-t-il été informé? non Alerte Kiwi "#21449455" ouverte le 17/06/2021 à 23:24 Résultat : La wibox a été remplacéTout est OK.
A14: Jean Ferrat - Buttes de Coesmes C et B | B14: 79 | C14: 100 | D14: 100 | E14: 57 | F14: 12 | G14: 13.8 | H14: 10.7 | I14: 12.9 | J14: 0 | K14: ADSL | L14: SmartCampus
A15: Jules Ferry | B15: 140 | C15: 100 | D15: 100 | E15: 16 | F15: 93.2 | G15: 115.8 | H15: 80.7 | I15: 100.8 | J15: 0 | K15: Fibre | L15: PlanetCampus
A16: Kergoat | B16: 736 | C16: 100 | D16: 100 | E16: 15 | F16: 451.8 | G16: 501.6 | H16: 420.1 | I16: 470 | J16: 0 | K16: Fibre | L16: PlanetCampus
A17: La Gare | B17: 86 | C17: 100 | D17: 100 | E17: 8 | F17: 149.8 | G17: 169.1 | H17: 137 | I17: 159.3 | J17: 0 | K17: Fibre | L17: PlanetCampus
A18: La Harpe | B18: 130 | C18: 100 | D18: 100 | E18: 8 | F18: 87 | G18: 105.6 | H18: 78.7 | I18: 94.4 | J18: 0 | K18: Fibre | L18: PlanetCampus
A19: La Touche | B19: 131 | C19: 100 | D19: 100 | E19: 8 | F19: 96.2 | G19: 121.7 | H19: 84.1 | I19: 105.5 | J19: 0 | K19: Fibre | L19: PlanetCampus
A20: Languedoc | B20: 185 | C20: 100 | D20: 95.2 | E20: 10 | F20: 101.8 | G20: 144.7 | H20: 88.9 | I20: 123.3 | J20: 1 | K20: Fibre | L20: PlanetCampus | M20: Le 12/06/21 / responsabilité SmartCampus / Site injoignable / durée : 0.0 heure(s) : Site injoignable Diagnostic : aucun équipement n'est joignable sur le site Périmètre de l'incident : l'ensemble du site. Impact de l'incident : coupure du service Le site a-t-il été informé? non Alerte Kiwi "#21449193" ouverte le 12/06/2021 à 12:54 Résultat : Le service est rétabli sur le site Languedoc suite à la prise en charge de l'incident par nos équipes. Le 23/06/21 / responsabilité SmartCampus / Site injoignable / durée : 34.0 heure(s) : Site injoignable Diagnostic : aucun équipement n'est joignable sur le site Périmètre de l'incident : l'ensemble du site. Impact de l'incident : coupure du service Le site a-t-il été informé? non Alerte Kiwi "#21449725" ouverte le 23/06/2021 à 09:44 Résultat : Le service est rétabli sur le site Languedoc suite à la prise en charge de l'incident par nos équipes.
A21: Lann Trussac | B21: 312 | C21: 100 | D21: 100 | E21: 17 | F21: 188.9 | G21: 238.7 | H21: 176.9 | I21: 199.2 | J21: 0 | K21: Fibre | L21: PlanetCampus
A22: Lanredec 1 | B22: 145 | C22: 100 | D22: 100 | E22: 16 | F22: 62.9 | G22: 101 | H22: 48.6 | I22: 73.2 | J22: 0 | K22: Fibre | L22: PlanetCampus
A23: Lanredec 2 | B23: 143 | C23: 100 | D23: 100 | E23: 20 | F23: 78.3 | G23: 106 | H23: 52.4 | I23: 87.2 | J23: 0 | K23: Fibre | L23: SmartCampus
A24: Lanveur (Les Sequoias et Les Palmiers) | B24: 46 | C24: 100 | D24: 100 | E24: 13 | F24: 332.4 | G24: 358.4 | H24: 324.8 | I24: 340.3 | J24: 0 | K24: Fibre | L24: PlanetCampus
A25: Loucheur | B25: 72 | C25: 100 | D25: 100 | E25: 13 | F25: 75.2 | G25: 86 | H25: 69.3 | I25: 80.2 | J25: 0 | K25: Fibre | L25: PlanetCampus
A26: Michel Denis (Normandie Saumurois) | B26: 150 | C26: 100 | D26: 100 | E26: 8 | F26: 64.2 | G26: 103.2 | H26: 50 | I26: 78.8 | J26: 0 | K26: Fibre | L26: PlanetCampus
A27: Moulin de Joué | B27: 67 | C27: 100 | D27: 100 | E27: 8 | F27: 60.7 | G27: 71 | H27: 56.4 | I27: 65.2 | J27: 0 | K27: Fibre | L27: PlanetCampus
A28: Paul Ricoeur Cité Internationale | B28: 79 | C28: 100 | D28: 100 | E28: 8 | F28: 52.3 | G28: 75.2 | H28: 45.7 | I28: 59.4 | J28: 0 | K28: Fibre | L28: SmartCampus
A29: Rennes Beaulieu 29 E | B29: 250 | C29: 100 | D29: 99.07 | E29: 17 | F29: 53.4 | G29: 79.1 | H29: 39.1 | I29: 63.2 | J29: 1 | K29: Fibre | L29: SmartCampus | M29: Le 22/06/21 / responsabilité SmartCampus / Site injoignable / durée : 6.0 heure(s) : Site injoignable Diagnostic : aucun équipement n'est joignable sur le site Périmètre de l'incident : l'ensemble du site. Impact de l'incident : coupure du service Le site a-t-il été informé? non Alerte Kiwi "#21449654" ouverte le 22/06/2021 à 09:30 Résultat : Le service est rétabli sur le site Beaulieu 29 suite à la prise en charge de l'incident par nos équipes.
A30: Rennes Beaulieu 29 F | B30: 251 | C30: 100 | D30: 100 | E30: 0 | F30: 99 | G30: 99 | H30: 99 | I30: 99 | J30: 0 | K30: Fibre | L30: SmartCampus
A31: Rennes Beaulieu 29 G | B31: 200 | C31: 100 | D31: 100 | E31: 8 | F31: 133.7 | G31: 151.8 | H31: 124.6 | I31: 140.7 | J31: 0 | K31: Fibre | L31: SmartCampus
A32: Rennes Beaulieu 33 A | B32: 251 | C32: 100 | D32: 100 | E32: 0 | F32: 99 | G32: 99 | H32: 99 | I32: 99 | J32: 0 | K32: Fibre | L32: SmartCampus
A33: Rennes Beaulieu 33 D B2 C | B33: 614 | C33: 100 | D33: 100 | E33: 20 | F33: 40.3 | G33: 167.6 | H33: 15.6 | I33: 75.2 | J33: 0 | K33: Fibre | L33: SmartCampus
A34: Rennes Mirabeau H | B34: 77 | C34: 100 | D34: 100 | E34: 9 | F34: 10.5 | G34: 20.6 | H34: 7.1 | I34: 14.4 | J34: 0 | K34: Fibre | L34: SmartCampus
A35: Rennes Mirabeau I | B35: 77 | C35: 100 | D35: 100 | E35: 9 | F35: 16.4 | G35: 22.7 | H35: 6.4 | I35: 19 | J35: 0 | K35: Fibre | L35: SmartCampus
A36: Rennes Mirabeau J | B36: 156 | C36: 100 | D36: 100 | E36: 8 | F36: 78.4 | G36: 106.2 | H36: 67.8 | I36: 87.9 | J36: 0 | K36: Fibre | L36: SmartCampus
A37: Rennes Mirabeau K | B37: 156 | C37: 100 | D37: 89.58 | E37: 9 | F37: 13 | G37: 43.3 | H37: 8.6 | I37: 26.6 | J37: 1 | K37: Fibre | L37: SmartCampus | M37: Le 16/06/21 / responsabilité SmartCampus / Site injoignable / durée : 75.0 heure(s) : Site injoignable Diagnostic : aucun équipement n'est joignable sur le site Périmètre de l'incident : l'ensemble du site. Impact de l'incident : coupure du service Le site a-t-il été informé? non Alerte Kiwi "#21449346" ouverte le 16/06/2021 à 11:06 Résultat : Le câble d'alimentation de la wibox était débranché. Tout est up arpès reboot.
A38: Rennes Mirabeau L | B38: 154 | C38: 100 | D38: 100 | E38: 8 | F38: 106.7 | G38: 131.2 | H38: 95.3 | I38: 113.4 | J38: 0 | K38: Fibre | L38: SmartCampus
A39: Rennes Patton A&B | B39: 335 | C39: 100 | D39: 100 | E39: 8 | F39: 99.9 | G39: 143.6 | H39: 84.6 | I39: 112.6 | J39: 0 | K39: Fibre | L39: PlanetCampus
A40: Rennes Sevigne | B40: 247 | C40: 97.02 | D40: 97.02 | E40: 8 | F40: 105.9 | G40: 154.6 | H40: 87 | I40: 137.8 | J40: 1 | K40: Fibre | L40: PlanetCampus | M40: Le 28/06/21 / responsabilité SmartCampus / Site injoignable / durée : 20.0 heure(s) : Site injoignable Diagnostic : aucun équipement n'est joignable sur le site Périmètre de l'incident : l'ensemble du site. Impact de l'incident : coupure du service Le site a-t-il été informé? non Alerte Kiwi "#21449904" ouverte le 28/06/2021 à 03:58 Résultat : Action(s) réalisée(s) : Commentaire : remplacement wibox H.S effectué: OK test de connexion effectué: OK 44/44 Access Points are OK 8/8 Switches are OK. Le 30/06/21 / responsabilité SmartCampus / Site injoignable / durée : 0.0 heure(s) : Site injoignable / service Wifirst totalement indisponible Diagnostic : Les équipements Wifirst sont injoignables ou les services Wifirst ne sont plus opérationnels Périmètre : l’ensemble du site Impact : Service interrompu modem joignable switch ping ok - non accessible cause modem non à jours-- upgrade en cours wibox ping nok - donc non accessible client non joignable Résultat : Action(s) réalisée(s) : Commentaire : problème résolu après reboot du switch et prov de la wibox
A41: Saint Helier A | B41: 32 | C41: 100 | D41: 100 | E41: 0 | F41: 0 | G41: 0 | H41: 0 | I41: 0 | J41: 0 | K41: ADSL | L41: PlanetCampus
A42: Saint Helier N | B42: 80 | C42: 100 | D42: 100 | E42: 8 | F42: 61.7 | G42: 75.6 | H42: 47.6 | I42: 66.1 | J42: 0 | K42: Fibre | L42: PlanetCampus
A43: Universitaire Quimper | B43: 151 | C43: 100 | D43: 100 | E43: 12 | F43: 145.6 | G43: 169.2 | H43: 138.8 | I43: 159.2 | J43: 0 | K43: Fibre | L43: PlanetCampus
A44: Villejean Alsace Ouessant -Cézembre-Bréhat | B44: 1045 | C44: 100 | D44: 100 | E44: 7 | F44: 502.8 | G44: 673.6 | H44: 444.9 | I44: 554.7 | J44: 0 | K44: Fibre | L44: SmartCampus
A45: Villejean Ouest Maine1 | B45: 150 | C45: 100 | D45: 100 | E45: 8 | F45: 113.5 | G45: 126 | H45: 108.8 | I45: 120.1 | J45: 0 | K45: Fibre | L45: SmartCampus
A46: Villejean Ouest Maine2 | B46: 150 | C46: 100 | D46: 100 | E46: 7 | F46: 110 | G46: 123.9 | H46: 101.3 | I46: 114.6 | J46: 0 | K46: Fibre | L46: SmartCampus

Sheet STRASBOURG
A3: Etablissement | B3: NB Chb | C3: Dispo (resp. SC) (%) | D3: Dispo (toutes resp) (%) | E3: LatMax (ms) | F3: BPMin (Mb/s) | G3: BPMoy (Mb/s) | H3: BPMin 19h-23h (Mb/s) | I3: BPMoy 19h-23h (Mb/s) | J3: Nb de Chb fibrées | K3: Nb de Chb en cours de fibrage
A4: CROUS STRASBOURG | B4: =SUM(B8:B29) -> 5193 | C4: =SUMPRODUCT(B8:B29,C8:C29)/SUM(B8:B29) -> 99.58048527 | D4: =SUMPRODUCT(B8:B29,D8:D29)/SUM(B8:B29) -> 99.53489505 | E4: =SUMPRODUCT(B8:B29,E8:E29)/SUM(B8:B29) -> 8.265934912 | F4: =SUMPRODUCT(B8:B29,F8:F29)/SUM(B8:B29) -> 217.6563066 | G4: =SUMPRODUCT(B8:B29,G8:G29)/SUM(B8:B29) -> 278.3857115 | H4: =SUMPRODUCT(B8:B29,H8:H29)/SUM(B8:B29) -> 141.2756018 | I4: =SUMPRODUCT(B8:B29,I8:I29)/SUM(B8:B29) -> 232.1272867 | J4: =SUMIFS(B8:B29,K8:K29,"=Fibre") -> 5133 | K4: =SUMIFS(B8:B29,K8:K29,"=Fibrage en cours") -> 0
J5: =J4/B4 -> 0.988445985 | K5: =K4/B4 -> 0
A7: Résidence | B7: NB Chb | C7: Dispo (resp. SC) (%) | D7: Dispo (toutes resp) (%) | E7: LatMax (ms) | F7: BPMin (Mb/s) | G7: BPMoy (Mb/s) | H7: BPMin 19h-23h (Mb/s) | I7: BPMoy 19h-23h (Mb/s) | J7: Hors GTR | K7: Collecte | L7: Type de service | M7: Remarques
A8: Alfred Weiss 1 | B8: 360 | C8: 100 | D8: 100 | E8: 9 | F8: 186.4 | G8: 243.2 | H8: 158 | I8: 203.2 | J8: 0 | K8: Fibre | L8: PlanetCampus
A9: Alfred Weiss 2 | B9: 225 | C9: 100 | D9: 100 | E9: 9 | F9: 98.7 | G9: 139.2 | H9: 56.2 | I9: 108.5 | J9: 0 | K9: Fibre | L9: PlanetCampus
A10: Cattleyas | B10: 429 | C10: 100 | D10: 100 | E10: 9 | F10: 200.7 | G10: 265.4 | H10: 168.4 | I10: 217.7 | J10: 0 | K10: Fibre | L10: PlanetCampus
A11: Katia et Maurice Krafft Bat 46 | B11: 121 | C11: 100 | D11: 100 | E11: 12 | F11: 68.8 | G11: 94.3 | H11: 63.9 | I11: 77 | J11: 0 | K11: Fibre | L11: PlanetCampus
A12: Les Agapanthes | B12: 109 | C12: 100 | D12: 100 | E12: 8 | F12: 81.4 | G12: 139.7 | H12: 74 | I12: 98.2 | J12: 0 | K12: Fibre | L12: PlanetCampus
A13: Les Alternants | B13: 200 | C13: 100 | D13: 100 | E13: 8 | F13: 388.1 | G13: 426.9 | H13: 315 | I13: 397.8 | J13: 0 | K13: Fibre | L13: PlanetCampus
A14: Les Berges | B14: 60 | C14: 100 | D14: 100 | E14: 0 | F14: 0 | G14: 0 | H14: 0 | I14: 0 | J14: 0 | K14: ADSL | L14: SmartCampus
A15: Les Flamboyants Batiment A | B15: 404 | C15: 100 | D15: 100 | E15: 7 | F15: 488 | G15: 562.2 | H15: 461.8 | I15: 512 | J15: 0 | K15: Fibre | L15: PlanetCampus
A16: Les Hauts de l'Illberg | B16: 137 | C16: 100 | D16: 100 | E16: 10 | F16: 149.1 | G16: 176.1 | H16: 139.4 | I16: 155.6 | J16: 0 | K16: Fibre | L16: PlanetCampus
A17: Les Héliotropes | B17: 197 | C17: 100 | D17: 100 | E17: 8 | F17: 359.1 | G17: 411.5 | H17: 328.9 | I17: 376.1 | J17: 0 | K17: Fibre | L17: PlanetCampus
A18: Master et Doctorat BAT B | B18: 152 | C18: 100 | D18: 100 | E18: 10 | F18: 80.5 | G18: 109.4 | H18: 67 | I18: 88.3 | J18: 0 | K18: Fibre | L18: PlanetCampus
A19: Paul Appell Bâtiment A | B19: 252 | C19: 100 | D19: 99.82 | E19: 8 | F19: 66.7 | G19: 112.8 | H19: 34.5 | I19: 80.4 | J19: 0 | K19: Fibre | L19: SmartCampus | M19: Le 09/06/21 / responsabilité SmartCampus / Site injoignable / durée : 1.0 heure(s) : Site injoignable Diagnostic : aucun équipement n'est joignable sur le site Périmètre de l'incident : l'ensemble du site. Impact de l'incident : coupure du service Le site a-t-il été informé? non Alerte Kiwi "#21449024" ouverte le 09/06/2021 à 17:58 Résultat : Le service est rétabli sur le site Paul Appell suite à la prise en charge de l'incident par nos équipes.
A20: Paul Appell Bâtiment B | B20: 215 | C20: 100 | D20: 99.82 | E20: 9 | F20: 78.2 | G20: 114.6 | H20: 46.2 | I20: 87 | J20: 0 | K20: Fibre | L20: SmartCampus | M20: Le 09/06/21 / responsabilité SmartCampus / Site injoignable / durée : 1.0 heure(s) : Site injoignable Diagnostic : aucun équipement n'est joignable sur le site Périmètre de l'incident : l'ensemble du site. Impact de l'incident : coupure du service Le site a-t-il été informé? non Alerte Kiwi "#21449021" ouverte le 09/06/2021 à 17:58 Résultat : Le service est rétabli sur le site Paul Appell suite à la prise en charge de l'incident par nos équipes.
A21: Paul Appell Bâtiment C | B21: 218 | C21: 100 | D21: 99.82 | E21: 8 | F21: 91.6 | G21: 121.3 | H21: 76.2 | I21: 101.4 | J21: 0 | K21: Fibre | L21: SmartCampus | M21: Le 09/06/21 / responsabilité SmartCampus / Site injoignable / durée : 1.0 heure(s) : Site injoignable Diagnostic : aucun équipement n'est joignable sur le site Périmètre de l'incident : l'ensemble du site. Impact de l'incident : coupure du service Le site a-t-il été informé? non Alerte Kiwi "#21449023" ouverte le 09/06/2021 à 17:58 Résultat : Le service est rétabli sur le site Paul Appell suite à la prise en charge de l'incident par nos équipes.
A22: Paul Appell Bâtiment D | B22: 224 | C22: 100 | D22: 99.82 | E22: 8 | F22: 146.3 | G22: 146.4 | H22: 146.3 | I22: 146.4 | J22: 0 | K22: Fibre | L22: SmartCampus | M22: Le 09/06/21 / responsabilité SmartCampus / Site injoignable / durée : 1.0 heure(s) : Site injoignable Diagnostic : aucun équipement n'est joignable sur le site Périmètre de l'incident : l'ensemble du site. Impact de l'incident : coupure du service Le site a-t-il été informé? non Alerte Kiwi "#21449022" ouverte le 09/06/2021 à 17:58 Résultat : Le service est rétabli sur le site Paul Appell suite à la prise en charge de l'incident par nos équipes.
A23: Paul Appell Batiment E | B23: 271 | C23: 100 | D23: 100 | E23: 0 | F23: 175.5 | G23: 175.5 | H23: 175.5 | I23: 175.5 | J23: 0 | K23: Fibre | L23: SmartCampus
A24: Paul Appell Bâtiment F | B24: 188 | C24: 100 | D24: 100 | E24: 0 | F24: 90 | G24: 90 | H24: 90 | I24: 90 | J24: 0 | K24: Fibre | L24: SmartCampus
A25: Paul Appell Bâtiment SUMPS | B25: 1 | C25: 100 | D25: 99.91 | E25: 0 | F25: 0 | G25: 0 | H25: 0 | I25: 0 | J25: 0 | K25: Fibre | L25: SmartCampus | M25: Le 09/06/21 / responsabilité SmartCampus / Site injoignable / durée : 0.0 heure(s) : Site injoignable / service Wifirst totalement indisponible Diagnostic : Les équipements Wifirst sont injoignables ou les services Wifirst ne sont plus opérationnels Périmètre : l’ensemble du site Impact : Service interrompu Résultat : Action(s) réalisée(s) : Commentaire :
A26: Residence Expressions | B26: 166 | C26: 100 | D26: 99.56 | E26: 10 | F26: 81.6 | G26: 114.7 | H26: 31.2 | I26: 89.3 | J26: 0 | K26: Fibre | L26: PlanetCampus | M26: Le 29/06/21 / responsabilité SmartCampus / Site injoignable / durée : 3.0 heure(s) : Site injoignable Diagnostic : aucun équipement n'est joignable sur le site Périmètre de l'incident : l'ensemble du site. Impact de l'incident : coupure du service Le site a-t-il été informé? non Alerte Kiwi "#21450000" ouverte le 29/06/2021 à 16:48 Résultat : Le service est rétabli sur le site Résidence Expressions suite à la prise en charge de l'incident par nos équipes.
A27: Résidence Gallia | B27: 213 | C27: 100 | D27: 100 | E27: 9 | F27: 119.1 | G27: 155.4 | H27: 108.3 | I27: 135.4 | J27: 0 | K27: Fibre | L27: PlanetCampus
A28: Robertsau | B28: 904 | C28: 100 | D28: 100 | E28: 9 | F28: 369.4 | G28: 538.5 | H28: 39.7 | I28: 399 | J28: 0 | K28: Fibre | L28: PlanetCampus
A29: Somme | B29: 147 | C29: 85.18 | D29: 85.18 | E29: 23 | F29: 243.6 | G29: 246.5 | H29: 243.6 | I29: 248.4 | J29: 1 | K29: Fibre | L29: PlanetCampus | M29: Le 20/06/21 / responsabilité SmartCampus / Site injoignable / durée : 106.0 heure(s) : Site injoignable Diagnostic : aucun équipement n'est joignable sur le site Périmètre de l'incident : l'ensemble du site. Impact de l'incident : coupure du service Le site a-t-il été informé? non Alerte Kiwi "#21449568" ouverte le 20/06/2021 à 21:14 Résultat : De nouveau Pont radio ont été installé : PNR sur le port 4 du SW principal en 172.22.0.51 PRR sur le port 9 du SW principal du Hotspot Flamboyant A en 172.22.0.50 Tout est up sur SoMME

Sheet TOULOUSE
A3: Etablissement | B3: NB Chb | C3: Dispo (resp. SC) (%) | D3: Dispo (toutes resp) (%) | E3: LatMax (ms) | F3: BPMin (Mb/s) | G3: BPMoy (Mb/s) | H3: BPMin 19h-23h (Mb/s) | I3: BPMoy 19h-23h (Mb/s) | J3: Nb de Chb fibrées | K3: Nb de Chb en cours de fibrage
A4: CROUS TOULOUSE | B4: =SUM(B8:B34) -> 7219 | C4: =SUMPRODUCT(B8:B34,C8:C34)/SUM(B8:B34) -> 100 | D4: =SUMPRODUCT(B8:B34,D8:D34)/SUM(B8:B34) -> 99.92236875 | E4: =SUMPRODUCT(B8:B34,E8:E34)/SUM(B8:B34) -> 15.61642887 | F4: =SUMPRODUCT(B8:B34,F8:F34)/SUM(B8:B34) -> 246.5980745 | G4: =SUMPRODUCT(B8:B34,G8:G34)/SUM(B8:B34) -> 336.2584568 | H4: =SUMPRODUCT(B8:B34,H8:H34)/SUM(B8:B34) -> 201.6686106 | I4: =SUMPRODUCT(B8:B34,I8:I34)/SUM(B8:B34) -> 272.1272614 | J4: =SUMIFS(B8:B34,K8:K34,"=Fibre") -> 7174 | K4: =SUMIFS(B8:B34,K8:K34,"=Fibrage en cours") -> 0
J5: =J4/B4 -> 0.9937664496 | K5: =K4/B4 -> 0
A7: Résidence | B7: NB Chb | C7: Dispo (resp. SC) (%) | D7: Dispo (toutes resp) (%) | E7: LatMax (ms) | F7: BPMin (Mb/s) | G7: BPMoy (Mb/s) | H7: BPMin 19h-23h (Mb/s) | I7: BPMoy 19h-23h (Mb/s) | J7: Hors GTR | K7: Collecte | L7: Type de service | M7: Remarques
A8: Aerophile | B8: 235 | C8: 100 | D8: 100 | E8: 16 | F8: 77.5 | G8: 131.6 | H8: 60.3 | I8: 95.6 | J8: 0 | K8: Fibre | L8: PlanetCampus
A9: Arsenal - Bât A | B9: 227 | C9: 100 | D9: 100 | E9: 11 | F9: 118.2 | G9: 155.1 | H9: 107.8 | I9: 135.7 | J9: 0 | K9: Fibre | L9: PlanetCampus
A10: Arsenal bât B et C | B10: 431 | C10: 100 | D10: 100 | E10: 11 | F10: 204.7 | G10: 259.2 | H10: 187.1 | I10: 223.1 | J10: 0 | K10: Fibre | L10: PlanetCampus
A11: At'Ome | B11: 100 | C11: 100 | D11: 100 | E11: 18 | F11: 48.9 | G11: 79.7 | H11: 34.5 | I11: 61.3 | J11: 0 | K11: Fibre | L11: PlanetCampus
A12: Chapou | B12: 1311 | C12: 100 | D12: 100 | E12: 15 | F12: 501.6 | G12: 673.9 | H12: 364.1 | I12: 532.9 | J12: 0 | K12: Fibre | L12: PlanetCampus
A13: Cité du Taur | B13: 62 | C13: 100 | D13: 100 | E13: 15 | F13: 52.1 | G13: 66.5 | H13: 42.4 | I13: 58.9 | J13: 0 | K13: Fibre | L13: PlanetCampus
A14: Clement Ader | B14: 250 | C14: 100 | D14: 100 | E14: 15 | F14: 133.9 | G14: 180.4 | H14: 111.7 | I14: 148 | J14: 0 | K14: Fibre | L14: PlanetCampus
A15: Colonel Roche | B15: 502 | C15: 100 | D15: 100 | E15: 16 | F15: 146.3 | G15: 251.5 | H15: 85.3 | I15: 180.1 | J15: 0 | K15: Fibre | L15: PlanetCampus
A16: CROUS TOULOUSE Humanité 1 et 2 | B16: 300 | C16: 100 | D16: 100 | E16: 15 | F16: 197.8 | G16: 240.7 | H16: 178.8 | I16: 217.3 | J16: 0 | K16: Fibre | L16: PlanetCampus
A17: Crous Toulouse LARREY | B17: 98 | C17: 100 | D17: 100 | E17: 16 | F17: 66 | G17: 81.4 | H17: 61.3 | I17: 75.4 | J17: 0 | K17: Fibre | L17: PlanetCampus
A18: CROUS TOULOUSE Residence Laperouse | B18: 48 | C18: 100 | D18: 100 | E18: 16 | F18: 59.4 | G18: 64.6 | H18: 56.6 | I18: 62.2 | J18: 0 | K18: Fibre | L18: PlanetCampus
A19: ENSAT | B19: 124 | C19: 100 | D19: 100 | E19: 16 | F19: 85.4 | G19: 103.3 | H19: 77.1 | I19: 91.8 | J19: 0 | K19: Fibre | L19: PlanetCampus
A20: Faucher | B20: 972 | C20: 100 | D20: 100 | E20: 17 | F20: 376.9 | G20: 538.6 | H20: 336.3 | I20: 427.6 | J20: 0 | K20: Fibre | L20: PlanetCampus
A21: Jacqueline Auriol- Toulouse | B21: 98 | C21: 100 | D21: 100 | E21: 22 | F21: 52.3 | G21: 73 | H21: 47.8 | I21: 61 | J21: 0 | K21: Fibre | L21: PlanetCampus
A22: La Coulée Verte | B22: 119 | C22: 100 | D22: 96.18 | E22: 15 | F22: 56.1 | G22: 85.9 | H22: 43.6 | I22: 65.2 | J22: 1 | K22: Fibre | L22: PlanetCampus | M22: Le 31/05/21 / responsabilité SmartCampus / Site injoignable / durée : 27.0 heure(s) : Site injoignable Diagnostic : aucun équipement n'est joignable sur le site Périmètre de l'incident : l'ensemble du site. Impact de l'incident : coupure du service Le site a-t-il été informé? non Alerte Kiwi "#21448577" ouverte le 01/06/2021 à 01:02 Résultat : Le service est rétabli sur le site La Coulée Verte suite à la prise en charge de l'incident par nos équipes.
A23: Latecoere | B23: 146 | C23: 100 | D23: 100 | E23: 14 | F23: 75.5 | G23: 103.9 | H23: 73.2 | I23: 89.1 | J23: 0 | K23: Fibre | L23: PlanetCampus
A24: Le Sidobre | B24: 72 | C24: 100 | D24: 98.53 | E24: 16 | F24: 69.2 | G24: 78.4 | H24: 61 | I24: 73.5 | J24: 1 | K24: Fibre | L24: PlanetCampus | M24: Le 30/06/21 / responsabilité SmartCampus / Site injoignable / durée : 18.0 heure(s) : Site injoignable Diagnostic : aucun équipement n'est joignable sur le site Périmètre de l'incident : l'ensemble du site. Impact de l'incident : coupure du service Le site a-t-il été informé? non Alerte Kiwi "#21450012" ouverte le 30/06/2021 à 04:32 Résultat : Le service est rétabli sur le site Le Sidobre suite à la prise en charge de l'incident par nos équipes.
A25: Les Jardins de l'Université | B25: 129 | C25: 100 | D25: 100 | E25: 12 | F25: 99.2 | G25: 111.3 | H25: 93 | I25: 106.3 | J25: 0 | K25: Fibre | L25: PlanetCampus
A26: Maryse Bastié | B26: 277 | C26: 100 | D26: 100 | E26: 15 | F26: 85.3 | G26: 164.1 | H26: 67.3 | I26: 116.2 | J26: 0 | K26: Fibre | L26: PlanetCampus
A27: Notre Dame | B27: 89 | C27: 100 | D27: 100 | E27: 15 | F27: 58.9 | G27: 76.8 | H27: 50.7 | I27: 66.6 | J27: 0 | K27: Fibre | L27: PlanetCampus
A28: Olympe de Gouges - Toulouse | B28: 615 | C28: 100 | D28: 100 | E28: 17 | F28: 295.4 | G28: 400.9 | H28: 258.6 | I28: 327.9 | J28: 0 | K28: Fibre | L28: PlanetCampus
A29: Parc Bellevue | B29: 153 | C29: 100 | D29: 100 | E29: 16 | F29: 102.8 | G29: 121.5 | H29: 92.2 | I29: 111.8 | J29: 0 | K29: Fibre | L29: PlanetCampus
A30: Paul Voivenel 1 & 2 | B30: 198 | C30: 100 | D30: 100 | E30: 18 | F30: 103.6 | G30: 138.6 | H30: 94 | I30: 118.1 | J30: 0 | K30: Fibre | L30: PlanetCampus
A31: Petit Varèse | B31: 50 | C31: 100 | D31: 100 | E31: 30 | F31: 6.1 | G31: 25.5 | H31: 5.2 | I31: 27.7 | J31: 0 | K31: Fibre | L31: SmartCampus
A32: Residence l'Astrolabe | B32: 68 | C32: 100 | D32: 100 | E32: 18 | F32: 61 | G32: 73.8 | H32: 57.1 | I32: 67.5 | J32: 0 | K32: Fibre | L32: PlanetCampus
A33: Résidence Nobel | B33: 45 | C33: 100 | D33: 100 | E33: 30 | F33: 5.6 | G33: 7.5 | H33: 5.4 | I33: 7.2 | J33: 0 | K33: ADSL | L33: SmartCampus
A34: Simone Veil (CROUS TOULOUSE) | B34: 500 | C34: 100 | D34: 100 | E34: 15 | F34: 273.2 | G34: 318 | H34: 254.7 | I34: 288.7 | J34: 0 | K34: Fibre | L34: PlanetCampus

Sheet VERSAILLES
A3: Etablissement | B3: NB Chb | C3: Dispo (resp. SC) (%) | D3: Dispo (toutes resp) (%) | E3: LatMax (ms) | F3: BPMin (Mb/s) | G3: BPMoy (Mb/s) | H3: BPMin 19h-23h (Mb/s) | I3: BPMoy 19h-23h (Mb/s) | J3: Nb de Chb fibrées | K3: Nb de Chb en cours de fibrage
A4: CROUS VERSAILLES | B4: =SUM(B8:B46) -> 8620 | C4: =SUMPRODUCT(B8:B46,C8:C46)/SUM(B8:B46) -> 99.90233063 | D4: =SUMPRODUCT(B8:B46,D8:D46)/SUM(B8:B46) -> 99.78479814 | E4: =SUMPRODUCT(B8:B46,E8:E46)/SUM(B8:B46) -> 3.618793503 | F4: =SUMPRODUCT(B8:B46,F8:F46)/SUM(B8:B46) -> 196.5346056 | G4: =SUMPRODUCT(B8:B46,G8:G46)/SUM(B8:B46) -> 264.9219606 | H4: =SUMPRODUCT(B8:B46,H8:H46)/SUM(B8:B46) -> 165.6491531 | I4: =SUMPRODUCT(B8:B46,I8:I46)/SUM(B8:B46) -> 216.8408817 | J4: =SUMIFS(B8:B46,K8:K46,"=Fibre") -> 8559 | K4: =SUMIFS(B8:B46,K8:K46,"=Fibrage en cours") -> 0
J5: =J4/B4 -> 0.9929234339 | K5: =K4/B4 -> 0
A7: Résidence | B7: NB Chb | C7: Dispo (resp. SC) (%) | D7: Dispo (toutes resp) (%) | E7: LatMax (ms) | F7: BPMin (Mb/s) | G7: BPMoy (Mb/s) | H7: BPMin 19h-23h (Mb/s) | I7: BPMoy 19h-23h (Mb/s) | J7: Hors GTR | K7: Collecte | L7: Type de service | M7: Remarques
A8: Adrienne Bolland | B8: 120 | C8: 100 | D8: 100 | E8: 10 | F8: 52.7 | G8: 87.3 | H8: 40.8 | I8: 66.1 | J8: 0 | K8: Fibre | L8: SmartCampus
A9: C 3.5 | B9: 307 | C9: 99.53 | D9: 99.53 | E9: 2 | F9: 41.3 | G9: 143.4 | H9: 16 | I9: 66.7 | J9: 0 | K9: Fibre | L9: PlanetCampus | M9: Le 09/06/21 / responsabilité SmartCampus / Site injoignable / durée : 3.0 heure(s) : Site injoignable Diagnostic : aucun équipement n'est joignable sur le site Périmètre de l'incident : l'ensemble du site. Impact de l'incident : coupure du service Le site a-t-il été informé? non Alerte Kiwi "#21449000" ouverte le 09/06/2021 à 12:16 Résultat : Action(s) réalisée(s) : Commentaire :
A10: Charlotte PERRIAND (anciennement Antony Renaissance ) | B10: 179 | C10: 100 | D10: 100 | E10: 2 | F10: 6.4 | G10: 44.9 | H10: 3.3 | I10: 16.8 | J10: 0 | K10: Fibre | L10: SmartCampus
A11: Chatenay Malabry | B11: 604 | C11: 100 | D11: 100 | E11: 12 | F11: 739.9 | G11: 831.5 | H11: 700.4 | I11: 783.3 | J11: 0 | K11: Fibre | L11: PlanetCampus
A12: Clichy | B12: 158 | C12: 100 | D12: 100 | E12: 2 | F12: 96.7 | G12: 141.1 | H12: 75.1 | I12: 113.3 | J12: 0 | K12: Fibre | L12: SmartCampus
A13: Dragueur | B13: 109 | C13: 100 | D13: 100 | E13: 4 | F13: 69 | G13: 91.3 | H13: 46.9 | I13: 76.7 | J13: 0 | K13: Fibre | L13: PlanetCampus
A14: Emilie du Chatelet | B14: 200 | C14: 99.67 | D14: 99.21 | E14: 4 | F14: 132.4 | G14: 150.3 | H14: 122.5 | I14: 138.2 | J14: 0 | K14: Fibre | L14: PlanetCampus | M14: Le 09/06/21 / responsabilité SmartCampus / Site injoignable / durée : 3.0 heure(s) : Site injoignable Diagnostic : aucun équipement n'est joignable sur le site Périmètre de l'incident : l'ensemble du site. Impact de l'incident : coupure du service Le site a-t-il été informé? non Alerte Kiwi "#21449001" ouverte le 09/06/2021 à 12:18 Résultat : Le service est rétabli sur le site Emilie du Chatelet suite à la prise en charge de l'incident par nos équipes. Le 09/06/21 / responsabilité SmartCampus / Site injoignable / durée : 2.0 heure(s) : Site injoignable / service Wifirst totalement indisponible Incident général SFR dans le département 91 Résultat : IG SFR , résolu
A15: Fleming | B15: 732 | C15: 99.67 | D15: 99.09 | E15: 2 | F15: 421 | G15: 571.6 | H15: 373.8 | I15: 458.6 | J15: 0 | K15: Fibre | L15: PlanetCampus | M15: Le 09/06/21 / responsabilité SmartCampus / Site injoignable / durée : 3.0 heure(s) : Site injoignable Diagnostic : aucun équipement n'est joignable sur le site Périmètre de l'incident : l'ensemble du site. Impact de l'incident : coupure du service Le site a-t-il été informé? non Alerte Kiwi "#21449003" ouverte le 09/06/2021 à 12:18 Résultat : Le service est rétabli sur le site Fleming suite à la prise en charge de l'incident par nos équipes. Le 09/06/21 / responsabilité SmartCampus / Site injoignable / durée : 2.0 heure(s) : Site injoignable / service Wifirst totalement indisponible Incident général SFR dans le département 91 Résultat : IG SFR , résolu Le 30/06/21 / responsabilité SmartCampus / Site injoignable / durée : 0.0 heure(s) : Site injoignable Diagnostic : aucun équipement n'est joignable sur le site Périmètre de l'incident : l'ensemble du site. Impact de l'incident : coupure du service Le site a-t-il été informé? non Alerte Kiwi "#21450031" ouverte le 30/06/2021 à 13:40 Résultat : Le service est rétabli sur le site Fleming suite à la prise en charge de l'incident par nos équipes.
A16: Flora Tristan Evry | B16: 319 | C16: 100 | D16: 100 | E16: 4 | F16: 102.4 | G16: 169 | H16: 48.2 | I16: 118.8 | J16: 0 | K16: Fibre | L16: PlanetCampus
A17: Fontenay St Sauveurs | B17: 207 | C17: 100 | D17: 100 | E17: 14 | F17: 91.7 | G17: 138.9 | H17: 57.3 | I17: 102 | J17: 0 | K17: Fibre | L17: PlanetCampus
A18: Jacqueline Auriol | B18: 165 | C18: 100 | D18: 100 | E18: 2 | F18: 66.9 | G18: 102.8 | H18: 39.3 | I18: 77.1 | J18: 0 | K18: Fibre | L18: SmartCampus
A19: Jacqueline de Romilly | B19: 49 | C19: 100 | D19: 100 | E19: 2 | F19: 59.1 | G19: 77.9 | H19: 54.4 | I19: 69.2 | J19: 0 | K19: Fibre | L19: SmartCampus
A20: Jean Zay Antony | B20: 316 | C20: 100 | D20: 100 | E20: 2 | F20: 717.4 | G20: 817.3 | H20: 690.7 | I20: 744.5 | J20: 0 | K20: Fibre | L20: PlanetCampus
A21: L'Echiquier Cergy BAT A | B21: 225 | C21: 100 | D21: 100 | E21: 1 | F21: 75.7 | G21: 129.3 | H21: 45.4 | I21: 92 | J21: 0 | K21: Fibre | L21: PlanetCampus
A22: L'ile Bâtiment Equerre | B22: 302 | C22: 99.67 | D22: 99.21 | E22: 3 | F22: 156.6 | G22: 223.1 | H22: 129.9 | I22: 181.4 | J22: 0 | K22: Fibre | L22: PlanetCampus | M22: Le 09/06/21 / responsabilité SmartCampus / Site injoignable / durée : 3.0 heure(s) : Site injoignable Diagnostic : aucun équipement n'est joignable sur le site Périmètre de l'incident : l'ensemble du site. Impact de l'incident : coupure du service Le site a-t-il été informé? non Alerte Kiwi "#21449006" ouverte le 09/06/2021 à 12:20 Résultat : Le service est rétabli sur le site L'ile suite à la prise en charge de l'incident par nos équipes. Le 09/06/21 / responsabilité SmartCampus / Site injoignable / durée : 2.0 heure(s) : Site injoignable / service Wifirst totalement indisponible Incident général SFR dans le département 91 Résultat : IG SFR , résolu
A23: La Croix Saint Sylvere | B23: 200 | C23: 100 | D23: 100 | E23: 2 | F23: 498.5 | G23: 541.3 | H23: 452.5 | I23: 509.1 | J23: 0 | K23: Fibre | L23: PlanetCampus
A24: La Fresque | B24: 60 | C24: 100 | D24: 100 | E24: 3 | F24: 50.2 | G24: 64.5 | H24: 42.2 | I24: 58.5 | J24: 0 | K24: Fibre | L24: SmartCampus
A25: Le Bosquet | B25: 159 | C25: 100 | D25: 100 | E25: 1 | F25: 75.4 | G25: 115.5 | H25: 61.2 | I25: 93.3 | J25: 0 | K25: Fibre | L25: SmartCampus
A26: Les Aunettes | B26: 173 | C26: 100 | D26: 100 | E26: 3 | F26: 147.5 | G26: 165.6 | H26: 141.9 | I26: 154.3 | J26: 0 | K26: Fibre | L26: SmartCampus
A27: les chateaux | B27: 130 | C27: 100 | D27: 100 | E27: 2 | F27: 26.5 | G27: 62.1 | H27: 22.2 | I27: 38.6 | J27: 0 | K27: Fibre | L27: PlanetCampus
A28: Les Chenes d'Or | B28: 99 | C28: 100 | D28: 100 | E28: 3 | F28: 37.4 | G28: 66.3 | H28: 20.3 | I28: 45.4 | J28: 0 | K28: Fibre | L28: PlanetCampus
A29: Marguerite Yourcenar Bâtiment 1 | B29: 300 | C29: 100 | D29: 100 | E29: 4 | F29: 175.8 | G29: 228.5 | H29: 152.3 | I29: 192.4 | J29: 0 | K29: Fibre | L29: PlanetCampus
A30: Nanterre - Bâtiment A & B | B30: 283 | C30: 100 | D30: 100 | E30: 1 | F30: 80.8 | G30: 160.2 | H30: 43.6 | I30: 105.4 | J30: 0 | K30: Fibre | L30: PlanetCampus
A31: Nanterre - Bâtiment C & D | B31: 283 | C31: 100 | D31: 100 | E31: 1 | F31: 67.4 | G31: 153 | H31: 55.8 | I31: 99.8 | J31: 0 | K31: Fibre | L31: PlanetCampus
A32: Nanterre - Bâtiment E & F | B32: 283 | C32: 100 | D32: 100 | E32: 1 | F32: 89.2 | G32: 153.6 | H32: 60.9 | I32: 108.7 | J32: 0 | K32: Fibre | L32: PlanetCampus
A33: Nanterre - Bâtiment G & H | B33: 283 | C33: 100 | D33: 100 | E33: 1 | F33: 67 | G33: 145.4 | H33: 17.3 | I33: 86.9 | J33: 0 | K33: Fibre | L33: PlanetCampus
A34: Neuville | B34: 180 | C34: 100 | D34: 100 | E34: 1 | F34: 96.4 | G34: 147.3 | H34: 79.4 | I34: 116.9 | J34: 0 | K34: Fibre | L34: PlanetCampus
A35: NF1 - NF1BIS | B35: 507 | C35: 99.67 | D35: 99.21 | E35: 2 | F35: 175.1 | G35: 267.6 | H35: 105.3 | I35: 191.1 | J35: 0 | K35: Fibre | L35: SmartCampus | M35: Le 09/06/21 / responsabilité SmartCampus / Site injoignable / durée : 3.0 heure(s) : Site injoignable Diagnostic : aucun équipement n'est joignable sur le site Périmètre de l'incident : l'ensemble du site. Impact de l'incident : coupure du service Le site a-t-il été informé? non Alerte Kiwi "#21449004" ouverte le 09/06/2021 à 12:20 Résultat : Le service est rétabli sur le site Georges Sand (ex- NF1-NF1BIS) suite à la prise en charge de l'incident par nos équipes. Le 09/06/21 / responsabilité SmartCampus / Site injoignable / durée : 2.0 heure(s) : Site injoignable / service Wifirst totalement indisponible Incident général SFR dans le département 91 Résultat : IG SFR , résolu
A36: Olympe de gouges (CROUS VERSAILLES) | B36: 274 | C36: 100 | D36: 100 | E36: 2 | F36: 76.7 | G36: 145.7 | H36: 23.7 | I36: 92.5 | J36: 0 | K36: Fibre | L36: PlanetCampus
A37: Paris Habitat | B37: 263 | C37: 99.67 | D37: 99.21 | E37: 5 | F37: 33.1 | G37: 124 | H37: 10.2 | I37: 57.2 | J37: 0 | K37: Fibre | L37: PlanetCampus | M37: Le 09/06/21 / responsabilité SmartCampus / Site injoignable / durée : 3.0 heure(s) : Site injoignable Diagnostic : aucun équipement n'est joignable sur le site Périmètre de l'incident : l'ensemble du site. Impact de l'incident : coupure du service Le site a-t-il été informé? non Alerte Kiwi "#21449002" ouverte le 09/06/2021 à 12:18 Résultat : Le service est rétabli sur le site Paris Habitat suite à la prise en charge de l'incident par nos équipes. Le 09/06/21 / responsabilité SmartCampus / Site injoignable / durée : 2.0 heure(s) : Site injoignable / service Wifirst totalement indisponible Incident général SFR dans le département 91 Résultat : IG SFR , résolu
A38: Rene Cassin | B38: 161 | C38: 100 | D38: 100 | E38: 4 | F38: 74.1 | G38: 109.7 | H38: 53.1 | I38: 84.6 | J38: 0 | K38: Fibre | L38: SmartCampus
A39: Résidence Bagneux | B39: 102 | C39: 100 | D39: 100 | E39: 2 | F39: 20.7 | G39: 59.9 | H39: 4.1 | I39: 35.7 | J39: 0 | K39: Fibre | L39: PlanetCampus
A40: Residence des Linandes bat 4 à 8 | B40: 171 | C40: 100 | D40: 100 | E40: 2 | F40: 111.4 | G40: 149.6 | H40: 90.7 | I40: 124.8 | J40: 0 | K40: Fibre | L40: SmartCampus
A41: Résidence Jean-Baptiste Lamarck | B41: 110 | C41: 100 | D41: 100 | E41: 2 | F41: 133.1 | G41: 162.2 | H41: 126.5 | I41: 142.2 | J41: 0 | K41: Fibre | L41: SmartCampus
A42: Résidence Louise Bourgeois | B42: 110 | C42: 99.67 | D42: 99.67 | E42: 3 | F42: 51.2 | G42: 82.2 | H42: 28.9 | I42: 59.4 | J42: 0 | K42: Fibre | L42: SmartCampus | M42: Le 09/06/21 / responsabilité SmartCampus / Site injoignable / durée : 2.0 heure(s) : Site injoignable / service Wifirst totalement indisponible Incident général SFR dans le département 91 Résultat : IG SFR , résolu
A43: Résidence Simone Weil | B43: 155 | C43: 100 | D43: 100 | E43: 4 | F43: 39.5 | G43: 68.6 | H43: 26.7 | I43: 48.4 | J43: 0 | K43: Fibre | L43: SmartCampus
A44: Résidences des Linandes - Bat principal | B44: 61 | C44: 100 | D44: 100 | E44: 38 | F44: 13.2 | G44: 14.7 | H44: 12.4 | I44: 14.1 | J44: 0 | K44: ADSL | L44: SmartCampus
A45: Saint-Cloud | B45: 166 | C45: 100 | D45: 100 | E45: 1 | F45: 90.1 | G45: 139.9 | H45: 55.5 | I45: 104.1 | J45: 0 | K45: Fibre | L45: SmartCampus
A46: Vauban | B46: 115 | C46: 100 | D46: 99.97 | E46: 3 | F46: 136.3 | G46: 162.4 | H46: 126.7 | I46: 147.1 | J46: 0 | K46: Fibre | L46: SmartCampus | M46: Le 30/06/21 / responsabilité SmartCampus / Site injoignable / durée : 1.0 heure(s) : Site injoignable Diagnostic : aucun équipement n'est joignable sur le site Périmètre de l'incident : l'ensemble du site. Impact de l'incident : coupure du service Le site a-t-il été informé? non Alerte Kiwi "#21450046" ouverte le 30/06/2021 à 21:48 Résultat : Le service est rétabli sur le site Vauban suite à la prise en charge de l'incident par nos équipes.
